Service Delivery Area(T),Service Delivery Team(T),ExpenditureGroup(T),Account(T),Supplier Name(T),Trans Date,Amount
Adult Social Care,ASC Directorate,Supplies & Services,Mobile Phones,EE LTD EQUIPMENT,27/04/2023,142
Adult Social Care,ASC Prevention & Enablement,Employees,Employee Costs Recharged,SHROPSHIRE COMMUNITY HEALTH NHS TRUST,05/04/2023,8943
Adult Social Care,ASC Prevention & Enablement,Employees,Employee Costs Recharged,SHROPSHIRE COMMUNITY HEALTH NHS TRUST,05/04/2023,18512
Adult Social Care,ASC Prevention & Enablement,Employees,Employee Costs Recharged,SHROPSHIRE COMMUNITY HEALTH NHS TRUST,20/04/2023,19662
Adult Social Care,ASC Prevention & Enablement,Third Party Payments,Nursing Expenditure,NHS Shropshire Telford & Wrekin ,06/04/2023,6720
Adult Social Care,ASC Prevention & Enablement,Transport-Related Expenditure,Taxi Costs,Cartello Ambulance,19/04/2023,157.5
Adult Social Care,ASC Prevention & Enablement,Transport-Related Expenditure,Taxi Costs,Cartello Ambulance,19/04/2023,183.75
Adult Social Care,ASC Prevention & Enablement,Transport-Related Expenditure,Taxi Costs,Cartello Ambulance,19/04/2023,183.75
Adult Social Care,ASC Prevention & Enablement,Transport-Related Expenditure,Taxi Costs,Cartello Ambulance,19/04/2023,183.75
Adult Social Care,ASC Prevention & Enablement,Transport-Related Expenditure,Taxi Costs,Cartello Ambulance,19/04/2023,157.5
Adult Social Care,ASC Prevention & Enablement,Employees,Other Employee Costs,Medgen LTD,26/04/2023,1737.9
Adult Social Care,ASC Prevention & Enablement,Employees,Other Employee Costs,Medgen LTD,19/04/2023,2448.65
Adult Social Care,ASC Prevention & Enablement,Employees,Other Employee Costs,Medgen LTD,19/04/2023,1409.32
Adult Social Care,ASC Prevention & Enablement,Employees,Other Employee Costs,Medgen LTD,19/04/2023,1909.2
Adult Social Care,ASC Prevention & Enablement,Employees,Other Employee Costs,Medgen LTD,19/04/2023,1302.68
Adult Social Care,ASC Prevention & Enablement,Employees,Other Employee Costs,Medgen LTD,19/04/2023,1887.8
Adult Social Care,ASC Prevention & Enablement,Employees,Other Employee Costs,Medgen LTD,19/04/2023,1754.3
Adult Social Care,ASC Prevention & Enablement,Employees,Other Employee Costs,Medgen LTD,19/04/2023,944.35
Adult Social Care,ASC Prevention & Enablement,Employees,Other Employee Costs,Medgen LTD,19/04/2023,1387.68
Adult Social Care,ASC Prevention & Enablement,Employees,Other Employee Costs,Medgen LTD,19/04/2023,1306.12
Adult Social Care,ASC Prevention & Enablement,Employees,Other Employee Costs,Medgen LTD,19/04/2023,1723.9
Adult Social Care,ASC Prevention & Enablement,Employees,Other Employee Costs,Medgen LTD,19/04/2023,1422
Adult Social Care,ASC Prevention & Enablement,Employees,Other Employee Costs,Medgen LTD,19/04/2023,1022.18
Adult Social Care,ASC Prevention & Enablement,Employees,Other Employee Costs,Medgen LTD,19/04/2023,1337.46
Adult Social Care,ASC Prevention & Enablement,Employees,Other Employee Costs,Medgen LTD,19/04/2023,337.9
Adult Social Care,ASC Prevention & Enablement,Employees,Other Employee Costs,Medgen LTD,19/04/2023,131.21
Adult Social Care,ASC Prevention & Enablement,Employees,Other Employee Costs,Medgen LTD,19/04/2023,675.8
Adult Social Care,ASC Prevention & Enablement,Employees,Other Employee Costs,Medgen LTD,19/04/2023,641.82
Adult Social Care,ASC Prevention & Enablement,Employees,Other Employee Costs,Medgen LTD,19/04/2023,1664.42
Adult Social Care,ASC Prevention & Enablement,Employees,Other Employee Costs,Medgen LTD,19/04/2023,298.16
Adult Social Care,ASC Prevention & Enablement,Employees,Other Employee Costs,Medgen LTD,19/04/2023,1440.4
Adult Social Care,ASC Prevention & Enablement,Employees,Other Employee Costs,Medgen LTD,19/04/2023,1040.5
Adult Social Care,ASC Prevention & Enablement,Employees,Other Employee Costs,Medgen LTD,19/04/2023,281.4
Adult Social Care,ASC Prevention & Enablement,Employees,Other Employee Costs,Medgen LTD,19/04/2023,950.25
Adult Social Care,ASC Prevention & Enablement,Employees,Other Employee Costs,Medgen LTD,19/04/2023,638.94
Adult Social Care,ASC Prevention & Enablement,Employees,Other Employee Costs,Medgen LTD,19/04/2023,668.06
Adult Social Care,ASC Prevention & Enablement,Employees,Other Employee Costs,Medgen LTD,19/04/2023,1902.2
Adult Social Care,ASC Prevention & Enablement,Employees,Other Employee Costs,CHRISBEON OFFICE SUPPLIES,19/04/2023,1148.14
Adult Social Care,ASC Prevention & Enablement,Employees,Other Employee Costs,Medgen LTD,19/04/2023,2951.3
Adult Social Care,ASC Prevention & Enablement,Employees,Other Employee Costs,Medgen LTD,19/04/2023,1727.5
Adult Social Care,ASC Prevention & Enablement,Employees,Other Employee Costs,Medgen LTD,19/04/2023,1695.5
Adult Social Care,"Assurance, Transformation & Financial Management",Supplies & Services,Systems Procurement,Prepaid Financial Services Limited,05/04/2023,410.15
Adult Social Care,"Assurance, Transformation & Financial Management",Supplies & Services,Systems Procurement,Prepaid Financial Services Limited,05/04/2023,618.85
Adult Social Care,"Assurance, Transformation & Financial Management",Third Party Payments,Other Care Purchasing,Redwood Health Care Limited,11/04/2023,210
Adult Social Care,"Commissioning, Procurement & Brokerage",Supplies & Services,Comp Software (Purch / Hire),BIP SOLUTIONS LTD,04/04/2023,11000
Adult Social Care,"Commissioning, Procurement & Brokerage",Third Party Payments,Interpreters Fees,WORD 360 ,20/04/2023,3919.76
Adult Social Care,"Commissioning, Procurement & Brokerage",Supplies & Services,Other Grants (Expenses),TELFORD & WREKIN CVS,18/04/2023,18500
Adult Social Care,Community Social Work & Adult Safeguarding,Supplies & Services,Medical Consultants Fees,JLS Medical Services Ltd,27/04/2023,1394.2
Adult Social Care,My Options,Supplies & Services,Mobile Phones,EE LTD EQUIPMENT ,27/04/2023,142
Adult Social Care,My Options,Supplies & Services,Computer Software (Maint),Nourish Care Systems Ltd,14/04/2023,650
Adult Social Care,My Options,Premises-Related Expenditure,Clean Mats & Toilet Requisites,PHS GROUP,20/04/2023,125.22
Adult Social Care,My Options,Supplies & Services,Equipment - Repair,Power Point Stores,25/04/2023,337.49
Adult Social Care,My Options,Supplies & Services,Laundry & Towel Hire,PHS GROUP,05/04/2023,247.05
Adult Social Care,My Options,Transport-Related Expenditure,Licences,MOTION PICTURE LICENSING COMPANY,21/04/2023,453.38
Adult Social Care,My Options,Premises-Related Expenditure,Hire Of Rooms,All Saints Wellington,25/04/2023,240
Adult Social Care,My Options,Premises-Related Expenditure,Hire Of Rooms,Dawley Baptist Church,05/04/2023,176
Adult Social Care,My Options,Employees,Agency Supply Costs,Safehands Recruitment,28/04/2023,1914
Adult Social Care,My Options,Employees,Agency Supply Costs,Nurse Plus and Carer Plus Limited,28/04/2023,1613.02
Adult Social Care,My Options,Employees,Agency Supply Costs,Nurse Plus and Carer Plus Limited,21/04/2023,2013.43
Adult Social Care,My Options,Employees,Agency Supply Costs,Nurse Plus and Carer Plus Limited,14/04/2023,1898
Adult Social Care,My Options,Employees,Agency Supply Costs,Safehands Recruitment,14/04/2023,2895.2
Adult Social Care,My Options,Employees,Agency Supply Costs,Safehands Recruitment,21/04/2023,2480.5
Adult Social Care,My Options,Employees,Agency Supply Costs,Safehands Recruitment,13/04/2023,2402.2
Adult Social Care,My Options,Employees,Agency Supply Costs,Nurse Plus and Carer Plus Limited,13/04/2023,905.34
Adult Social Care,My Options,Premises-Related Expenditure,Clean Mats & Toilet Requisites,PHS GROUP,06/04/2023,1469
Adult Social Care,My Options,Supplies & Services,Equipment - Purchase,MEDACO,13/04/2023,130
Adult Social Care,My Options,Employees,Agency Supply Costs,Acton Banks Limited,28/04/2023,279.5
Adult Social Care,My Options,Employees,Agency Supply Costs,Acton Banks Limited,28/04/2023,311.35
Adult Social Care,My Options,Employees,Agency Supply Costs,Acton Banks Limited,28/04/2023,255.55
Adult Social Care,My Options,Employees,Agency Supply Costs,Acton Banks Limited,28/04/2023,263.45
Adult Social Care,My Options,Employees,Agency Supply Costs,Acton Banks Limited,28/04/2023,231.6
Adult Social Care,My Options,Employees,Agency Supply Costs,Acton Banks Limited,28/04/2023,279.5
Adult Social Care,My Options,Employees,Agency Supply Costs,Acton Banks Limited,28/04/2023,227.53
Adult Social Care,My Options,Employees,Agency Supply Costs,Acton Banks Limited,28/04/2023,311.35
Adult Social Care,My Options,Employees,Agency Supply Costs,Acton Banks Limited,28/04/2023,311.35
Adult Social Care,My Options,Employees,Agency Supply Costs,Acton Banks Limited,28/04/2023,311.35
Adult Social Care,My Options,Employees,Agency Supply Costs,Acton Banks Limited,28/04/2023,311.35
Adult Social Care,My Options,Employees,Agency Supply Costs,Acton Banks Limited,28/04/2023,311.35
Adult Social Care,My Options,Employees,Agency Supply Costs,Acton Banks Limited,28/04/2023,231.6
Adult Social Care,My Options,Employees,Agency Supply Costs,Acton Banks Limited,28/04/2023,227.53
Adult Social Care,My Options,Employees,Agency Supply Costs,Acton Banks Limited,28/04/2023,311.35
Adult Social Care,My Options,Employees,Agency Supply Costs,Acton Banks Limited,28/04/2023,311.35
Adult Social Care,My Options,Employees,Agency Supply Costs,JN Recruitment,28/04/2023,462
Adult Social Care,My Options,Employees,Agency Supply Costs,Safehands Recruitment,28/04/2023,2216.05
Adult Social Care,My Options,Employees,Agency Supply Costs,Safehands Recruitment,28/04/2023,816.2
Adult Social Care,My Options,Employees,Agency Supply Costs,Safehands Recruitment,28/04/2023,156.75
Adult Social Care,My Options,Employees,Agency Supply Costs,Nurse Plus and Carer Plus Limited,28/04/2023,618.64
Adult Social Care,My Options,Employees,Agency Supply Costs,Nurse Plus and Carer Plus Limited,28/04/2023,1034.3
Adult Social Care,My Options,Employees,Agency Supply Costs,Nurse Plus and Carer Plus Limited,28/04/2023,450.3
Adult Social Care,My Options,Employees,Agency Supply Costs,Safehands Recruitment,28/04/2023,601
Adult Social Care,My Options,Employees,Agency Supply Costs,Nurse Plus and Carer Plus Limited,28/04/2023,1769.41
Adult Social Care,My Options,Employees,Agency Supply Costs,Nurse Plus and Carer Plus Limited,28/04/2023,5708.64
Adult Social Care,My Options,Employees,Agency Supply Costs,Acton Banks Limited,14/04/2023,311.35
Adult Social Care,My Options,Employees,Agency Supply Costs,Acton Banks Limited,14/04/2023,311.35
Adult Social Care,My Options,Employees,Agency Supply Costs,Acton Banks Limited,14/04/2023,622.7
Adult Social Care,My Options,Employees,Agency Supply Costs,Acton Banks Limited,14/04/2023,231.6
Adult Social Care,My Options,Employees,Agency Supply Costs,Acton Banks Limited,14/04/2023,227.53
Adult Social Care,My Options,Employees,Agency Supply Costs,Acton Banks Limited,14/04/2023,227.53
Adult Social Care,My Options,Employees,Agency Supply Costs,Safehands Recruitment,14/04/2023,130.9
Adult Social Care,My Options,Employees,Agency Supply Costs,Acton Banks Limited,14/04/2023,311.35
Adult Social Care,My Options,Employees,Agency Supply Costs,Acton Banks Limited,14/04/2023,311.35
Adult Social Care,My Options,Employees,Agency Supply Costs,Acton Banks Limited,14/04/2023,311.35
Adult Social Care,My Options,Employees,Agency Supply Costs,Acton Banks Limited,21/04/2023,227.53
Adult Social Care,My Options,Employees,Agency Supply Costs,Acton Banks Limited,21/04/2023,287.4
Adult Social Care,My Options,Employees,Agency Supply Costs,Acton Banks Limited,21/04/2023,311.35
Adult Social Care,My Options,Employees,Agency Supply Costs,Acton Banks Limited,21/04/2023,311.35
Adult Social Care,My Options,Employees,Agency Supply Costs,Nurse Plus and Carer Plus Limited,21/04/2023,149.63
Adult Social Care,My Options,Employees,Agency Supply Costs,Nurse Plus and Carer Plus Limited,21/04/2023,480.03
Adult Social Care,My Options,Employees,Agency Supply Costs,Nurse Plus and Carer Plus Limited,21/04/2023,835.35
Adult Social Care,My Options,Employees,Agency Supply Costs,Nurse Plus and Carer Plus Limited,21/04/2023,558.6
Adult Social Care,My Options,Employees,Agency Supply Costs,Acton Banks Limited,21/04/2023,311.35
Adult Social Care,My Options,Employees,Agency Supply Costs,Acton Banks Limited,21/04/2023,622.7
Adult Social Care,My Options,Employees,Agency Supply Costs,Acton Banks Limited,21/04/2023,311.35
Adult Social Care,My Options,Employees,Agency Supply Costs,Acton Banks Limited,21/04/2023,227.53
Adult Social Care,My Options,Employees,Agency Supply Costs,Acton Banks Limited,21/04/2023,311.35
Adult Social Care,My Options,Employees,Agency Supply Costs,Acton Banks Limited,21/04/2023,311.35
Adult Social Care,My Options,Employees,Agency Supply Costs,Acton Banks Limited,21/04/2023,311.35
Adult Social Care,My Options,Employees,Agency Supply Costs,Acton Banks Limited,21/04/2023,311.35
Adult Social Care,My Options,Employees,Agency Supply Costs,Nurse Plus and Carer Plus Limited,21/04/2023,4904.59
Adult Social Care,My Options,Employees,Agency Supply Costs,Nurse Plus and Carer Plus Limited,21/04/2023,2196.64
Adult Social Care,My Options,Employees,Agency Supply Costs,Acton Banks Limited,21/04/2023,311.35
Adult Social Care,My Options,Employees,Agency Supply Costs,Acton Banks Limited,14/04/2023,311.35
Adult Social Care,My Options,Employees,Agency Supply Costs,Acton Banks Limited,14/04/2023,415.29
Adult Social Care,My Options,Employees,Agency Supply Costs,Nurse Plus and Carer Plus Limited,14/04/2023,630.64
Adult Social Care,My Options,Employees,Agency Supply Costs,Safehands Recruitment,14/04/2023,2056.41
Adult Social Care,My Options,Employees,Agency Supply Costs,Acton Banks Limited,14/04/2023,231.6
Adult Social Care,My Options,Employees,Agency Supply Costs,Acton Banks Limited,14/04/2023,227.53
Adult Social Care,My Options,Employees,Agency Supply Costs,Acton Banks Limited,14/04/2023,311.35
Adult Social Care,My Options,Employees,Agency Supply Costs,Acton Banks Limited,14/04/2023,311.35
Adult Social Care,My Options,Employees,Agency Supply Costs,Acton Banks Limited,14/04/2023,622.7
Adult Social Care,My Options,Employees,Agency Supply Costs,Acton Banks Limited,14/04/2023,311.35
Adult Social Care,My Options,Employees,Agency Supply Costs,Nurse Plus and Carer Plus Limited,14/04/2023,5283.88
Adult Social Care,My Options,Employees,Agency Supply Costs,Nurse Plus and Carer Plus Limited,14/04/2023,2655.51
Adult Social Care,My Options,Employees,Agency Supply Costs,Safehands Recruitment,14/04/2023,1432.25
Adult Social Care,My Options,Employees,Agency Supply Costs,Acton Banks Limited,14/04/2023,311.35
Adult Social Care,My Options,Employees,Agency Supply Costs,Acton Banks Limited,14/04/2023,311.35
Adult Social Care,My Options,Employees,Agency Supply Costs,Acton Banks Limited,14/04/2023,227.53
Adult Social Care,My Options,Employees,Agency Supply Costs,Acton Banks Limited,14/04/2023,311.35
Adult Social Care,My Options,Employees,Agency Supply Costs,Acton Banks Limited,14/04/2023,311.35
Adult Social Care,My Options,Employees,Agency Supply Costs,Acton Banks Limited,14/04/2023,311.35
Adult Social Care,My Options,Employees,Agency Supply Costs,Acton Banks Limited,14/04/2023,311.35
Adult Social Care,My Options,Employees,Agency Supply Costs,Acton Banks Limited,14/04/2023,279.5
Adult Social Care,My Options,Employees,Agency Supply Costs,Acton Banks Limited,14/04/2023,415.29
Adult Social Care,My Options,Employees,Agency Supply Costs,Acton Banks Limited,14/04/2023,311.35
Adult Social Care,My Options,Employees,Agency Supply Costs,Nurse Plus and Carer Plus Limited,14/04/2023,562.15
Adult Social Care,My Options,Employees,Agency Supply Costs,Nurse Plus and Carer Plus Limited,14/04/2023,989.69
Adult Social Care,My Options,Employees,Agency Supply Costs,Safehands Recruitment,14/04/2023,277.2
Adult Social Care,My Options,Employees,Agency Supply Costs,Safehands Recruitment,14/04/2023,1355.2
Adult Social Care,My Options,Employees,Agency Supply Costs,Safehands Recruitment,14/04/2023,130.9
Adult Social Care,My Options,Employees,Agency Supply Costs,Safehands Recruitment,21/04/2023,549.65
Adult Social Care,My Options,Employees,Agency Supply Costs,Safehands Recruitment,21/04/2023,564.3
Adult Social Care,My Options,Employees,Agency Supply Costs,Safehands Recruitment,21/04/2023,847
Adult Social Care,My Options,Employees,Agency Supply Costs,Safehands Recruitment,21/04/2023,585.95
Adult Social Care,My Options,Employees,Agency Supply Costs,Safehands Recruitment,21/04/2023,2266.6
Adult Social Care,My Options,Employees,Agency Supply Costs,Safehands Recruitment,21/04/2023,292.6
Adult Social Care,My Options,Employees,Agency Supply Costs,Acton Banks Limited,13/04/2023,311.35
Adult Social Care,My Options,Employees,Agency Supply Costs,Acton Banks Limited,13/04/2023,311.35
Adult Social Care,My Options,Employees,Agency Supply Costs,Acton Banks Limited,13/04/2023,231.6
Adult Social Care,My Options,Employees,Agency Supply Costs,Acton Banks Limited,13/04/2023,311.35
Adult Social Care,My Options,Employees,Agency Supply Costs,Acton Banks Limited,13/04/2023,311.35
Adult Social Care,My Options,Employees,Agency Supply Costs,Acton Banks Limited,13/04/2023,311.35
Adult Social Care,My Options,Employees,Agency Supply Costs,Acton Banks Limited,13/04/2023,311.35
Adult Social Care,My Options,Employees,Agency Supply Costs,Acton Banks Limited,13/04/2023,311.35
Adult Social Care,My Options,Employees,Agency Supply Costs,Acton Banks Limited,13/04/2023,311.35
Adult Social Care,My Options,Employees,Agency Supply Costs,Acton Banks Limited,13/04/2023,311.35
Adult Social Care,My Options,Employees,Agency Supply Costs,Acton Banks Limited,13/04/2023,311.35
Adult Social Care,My Options,Employees,Agency Supply Costs,Acton Banks Limited,13/04/2023,311.35
Adult Social Care,My Options,Employees,Agency Supply Costs,Acton Banks Limited,13/04/2023,231.6
Adult Social Care,My Options,Employees,Agency Supply Costs,Acton Banks Limited,13/04/2023,231.6
Adult Social Care,My Options,Employees,Agency Supply Costs,Acton Banks Limited,13/04/2023,231.6
Adult Social Care,My Options,Employees,Agency Supply Costs,Acton Banks Limited,13/04/2023,231.6
Adult Social Care,My Options,Employees,Agency Supply Costs,Acton Banks Limited,13/04/2023,311.35
Adult Social Care,My Options,Employees,Agency Supply Costs,Nurse Plus and Carer Plus Limited,13/04/2023,1927.51
Adult Social Care,My Options,Employees,Agency Supply Costs,Nurse Plus and Carer Plus Limited,13/04/2023,3667.84
Adult Social Care,My Options,Employees,Agency Supply Costs,Nurse Plus and Carer Plus Limited,13/04/2023,149.63
Adult Social Care,My Options,Employees,Agency Supply Costs,Nurse Plus and Carer Plus Limited,13/04/2023,480.03
Adult Social Care,My Options,Employees,Agency Supply Costs,Nurse Plus and Carer Plus Limited,13/04/2023,230.45
Adult Social Care,My Options,Employees,Agency Supply Costs,Safehands Recruitment,13/04/2023,475.5
Adult Social Care,My Options,Employees,Agency Supply Costs,Safehands Recruitment,13/04/2023,2018.93
Adult Social Care,My Options,Employees,Agency Supply Costs,Safehands Recruitment,13/04/2023,1108.8
Adult Social Care,My Options,Employees,Agency Supply Costs,Safehands Recruitment,13/04/2023,809.05
Adult Social Care,My Options,Employees,Agency Supply Costs,Safehands Recruitment,13/04/2023,455.05
Adult Social Care,My Options,Employees,Agency Supply Costs,JN Recruitment,13/04/2023,1009.26
Adult Social Care,My Options,Employees,Agency Supply Costs,JN Recruitment,13/04/2023,781
Adult Social Care,My Options,Employees,Agency Supply Costs,JN Recruitment,21/04/2023,908.88
Adult Social Care,My Options,Employees,Agency Supply Costs,Acton Banks Limited,21/04/2023,227.53
Adult Social Care,My Options,Employees,Agency Supply Costs,Acton Banks Limited,21/04/2023,231.6
Adult Social Care,My Options,Employees,Agency Supply Costs,Acton Banks Limited,21/04/2023,622.7
Adult Social Care,My Options,Employees,Agency Supply Costs,Acton Banks Limited,21/04/2023,227.53
Adult Social Care,My Options,Employees,Agency Supply Costs,Acton Banks Limited,21/04/2023,251.48
Adult Social Care,My Options,Employees,Agency Supply Costs,Acton Banks Limited,21/04/2023,311.35
Adult Social Care,My Options,Employees,Agency Supply Costs,Acton Banks Limited,21/04/2023,311.35
Adult Social Care,My Options,Employees,Agency Supply Costs,Acton Banks Limited,21/04/2023,463.19
Adult Social Care,My Options,Employees,Agency Supply Costs,Acton Banks Limited,28/04/2023,311.35
Adult Social Care,My Options,Employees,Agency Supply Costs,Acton Banks Limited,28/04/2023,263.45
Adult Social Care,My Options,Employees,Agency Supply Costs,Acton Banks Limited,28/04/2023,311.35
Adult Social Care,My Options,Employees,Agency Supply Costs,Acton Banks Limited,28/04/2023,311.35
Adult Social Care,My Options,Employees,Agency Supply Costs,Acton Banks Limited,28/04/2023,311.35
Adult Social Care,My Options,Employees,Agency Supply Costs,Safehands Recruitment,28/04/2023,277.2
Adult Social Care,My Options,Supplies & Services,Computer Software (Maint),Access UK Ltd,13/04/2023,644.4
Adult Social Care,My Options,Supplies & Services,Equipment - Purchase,WB Building Services Limited,26/04/2023,144.04
Adult Social Care,My Options,Supplies & Services,Respite Care,Redacted Personal information,03/04/2023,1030.48
Adult Social Care,My Options,Supplies & Services,Respite Care,Redacted Personal information,03/04/2023,1636.64
Adult Social Care,My Options,Supplies & Services,Respite Care,Redacted Personal information,03/04/2023,831.36
Adult Social Care,My Options,Supplies & Services,Respite Care,Redacted Personal information,21/04/2023,588.85
Adult Social Care,My Options,Supplies & Services,Respite Care,Redacted Personal information,21/04/2023,981.58
Adult Social Care,My Options,Supplies & Services,Respite Care,Redacted Personal information,06/04/2023,204.23
Adult Social Care,My Options,Employees,Agency Supply Costs,Nurse Plus and Carer Plus Limited,28/04/2023,838.2
Adult Social Care,My Options,Employees,Agency Supply Costs,Iconic Care Limited,19/04/2023,2165
Adult Social Care,My Options,Employees,Agency Supply Costs,Iconic Care Limited,19/04/2023,894
Adult Social Care,My Options,Employees,Agency Supply Costs,Iconic Care Limited,19/04/2023,882
Adult Social Care,My Options,Employees,Agency Supply Costs,Iconic Care Limited,19/04/2023,714
Adult Social Care,My Options,Employees,Agency Supply Costs,Iconic Care Limited,19/04/2023,940
Adult Social Care,My Options,Employees,Agency Supply Costs,Iconic Care Limited,19/04/2023,1062
Adult Social Care,My Options,Employees,Agency Supply Costs,Iconic Care Limited,19/04/2023,1494
Adult Social Care,My Options,Employees,Agency Supply Costs,Nurse Plus and Carer Plus Limited,21/04/2023,1508.4
Adult Social Care,My Options,Employees,Agency Supply Costs,Safehands Recruitment,21/04/2023,9749.88
Adult Social Care,My Options,Employees,Agency Supply Costs,Nurse Plus and Carer Plus Limited,14/04/2023,1508.4
Adult Social Care,My Options,Employees,Agency Supply Costs,Safehands Recruitment,14/04/2023,12520.76
Adult Social Care,My Options,Employees,Agency Supply Costs,Safehands Recruitment,13/04/2023,8311.33
Adult Social Care,My Options,Employees,Agency Supply Costs,Safehands Recruitment,28/04/2023,10680.45
Adult Social Care,My Options,Capital Expenditure,Payments to Contractor,PAVE AWAYS LTD,28/04/2023,150361.5
Adult Social Care,Prevention & Independence - Older Adults & Disability,Supplies & Services,CL - Repairs & Maintenance,CLEANIT CLEANING SERVICES,06/04/2023,850
Adult Social Care,Prevention & Independence - Older Adults & Disability,Transport-Related Expenditure,Taxi Costs,Cartello Ambulance,06/04/2023,183.75
Adult Social Care,Prevention & Independence - Older Adults & Disability,Transport-Related Expenditure,Taxi Costs,Cartello Ambulance,06/04/2023,183.75
Adult Social Care,Prevention & Independence - Older Adults & Disability,Transport-Related Expenditure,Taxi Costs,Cartello Ambulance,06/04/2023,255
Adult Social Care,Prevention & Independence - Older Adults & Disability,Transport-Related Expenditure,Taxi Costs,Telford and Wrekin Community Enterprise LTD,06/04/2023,144
Adult Social Care,Prevention & Independence - Older Adults & Disability,Transport-Related Expenditure,Taxi Costs,Go Carz,13/04/2023,112
Adult Social Care,Prevention & Independence - Older Adults & Disability,Transport-Related Expenditure,Taxi Costs,Go Carz,13/04/2023,114.8
Adult Social Care,Prevention & Independence - Older Adults & Disability,Transport-Related Expenditure,Taxi Costs,Telford Taxi Hire Limited,21/04/2023,800
Adult Social Care,Prevention & Independence - Older Adults & Disability,Transport-Related Expenditure,Taxi Costs,Telford and Wrekin Community Enterprise LTD,21/04/2023,144
Adult Social Care,Prevention & Independence - Older Adults & Disability,Supplies & Services,Aids & Appliances,RNIB ENTERPRISES LTD ,21/04/2023,215
Adult Social Care,Prevention & Independence - Older Adults & Disability,Supplies & Services,Aids & Appliances,Alert-it Care Alarms,11/04/2023,525
Adult Social Care,Prevention & Independence - Older Adults & Disability,Supplies & Services,Aids & Appliances,Easylink,11/04/2023,144.82
Adult Social Care,Prevention & Independence - Older Adults & Disability,Supplies & Services,Aids & Appliances,Canary Care Global Limited,11/04/2023,319
Adult Social Care,Prevention & Independence - Older Adults & Disability,Supplies & Services,Aids & Appliances,Medequip,11/04/2023,204.75
Adult Social Care,Prevention & Independence - Older Adults & Disability,Supplies & Services,Equipment - Repair,STANNAH LIFT SERVICES LTD,04/04/2023,467.52
Adult Social Care,Prevention & Independence - Older Adults & Disability,Supplies & Services,Equipment - Repair,Closomat Limited,26/04/2023,190
Adult Social Care,Prevention & Independence - Older Adults & Disability,Supplies & Services,Aids & Appliances,Wealden Rehab,11/04/2023,199.55
Adult Social Care,Prevention & Independence - Older Adults & Disability,Supplies & Services,Aids & Appliances,SHROPSHIRE COMMUNITY HEALTH NHS TRUST,04/04/2023,233.62
Adult Social Care,Prevention & Independence - Older Adults & Disability,Supplies & Services,Aids & Appliances,Nottingham Rehab Ltd,05/04/2023,474.17
Adult Social Care,Prevention & Independence - Older Adults & Disability,Supplies & Services,Aids & Appliances,OSPREY HEALTHCARE LTD,25/04/2023,105
Adult Social Care,Prevention & Independence - Older Adults & Disability,Supplies & Services,Aids & Appliances,SHROPSHIRE COMMUNITY HEALTH NHS TRUST,12/04/2023,6301.66
Adult Social Care,Prevention & Independence - Older Adults & Disability,Supplies & Services,Mobile Phones,EE LTD EQUIPMENT,27/04/2023,142
Adult Social Care,Prevention & Independence - Older Adults & Disability,Supplies & Services,CL - Repairs & Maintenance,Vortex Cleaning Ltd,06/04/2023,1000
Adult Social Care,Prevention & Independence - Older Adults & Disability,Employees,Agency Supply Costs,Reed Talent Solutions Ltd,06/04/2023,1440
Adult Social Care,Prevention & Independence - Older Adults & Disability,Employees,Agency Supply Costs,Reed Talent Solutions Ltd,06/04/2023,720
Adult Social Care,Prevention & Independence - Older Adults & Disability,Employees,Agency Supply Costs,Reed Talent Solutions Ltd,06/04/2023,-360
Children's Safeguarding & Family Support,Child Protection & Family Support,Premises-Related Expenditure,Hire Of Rooms,AFC Telford Holdings Limited,14/04/2023,1500
Children's Safeguarding & Family Support,Child Protection & Family Support,Supplies & Services,Section 17 Childrens Act,AST FLOORCOVERINGS LTD,14/04/2023,591.29
Children's Safeguarding & Family Support,Child Protection & Family Support,Supplies & Services,Other Grants (Expenses),Midlands Partnership NHS Foundation Trust,14/04/2023,44297.69
Children's Safeguarding & Family Support,Child Protection & Family Support,Supplies & Services,Other Grants (Expenses),Midlands Partnership NHS Foundation Trust,17/04/2023,44297.69
Children's Safeguarding & Family Support,Family Connect & Childrens Centres,Premises-Related Expenditure,Electricity,Guinness Sustainable Schools,21/04/2023,226.18
Children's Safeguarding & Family Support,Family Connect & Childrens Centres,Premises-Related Expenditure,R&M -Building Other,GRANVILLE CONSTRUCTION & MAINTENANCE LTD,14/04/2023,147.5
Children's Safeguarding & Family Support,Family Connect & Childrens Centres,Premises-Related Expenditure,R&M -Building Other,Security Wise Ltd,14/04/2023,180
Children's Safeguarding & Family Support,Family Connect & Childrens Centres,Premises-Related Expenditure,R&M -Building Other,JCE & SONS LTD,06/04/2023,270
Children's Safeguarding & Family Support,Family Connect & Childrens Centres,Supplies & Services,Equipment - Purchase,Security Wise Ltd,21/04/2023,1006
Children's Safeguarding & Family Support,Family Connect & Childrens Centres,Supplies & Services,Bulk Refuse Contracts Hire,GREEN SKIPS LTD,14/04/2023,180
Children's Safeguarding & Family Support,Family Connect & Childrens Centres,Supplies & Services,Mobile Phones,EE LTD EQUIPMENT ,27/04/2023,142
Children's Safeguarding & Family Support,Family Connect & Childrens Centres,Supplies & Services,Other Grants (Expenses),CHILDCARE SOS,06/04/2023,144
Children's Safeguarding & Family Support,Family Connect & Childrens Centres,Supplies & Services,Other Grants (Expenses),CHILDCARE SOS,06/04/2023,144
Children's Safeguarding & Family Support,Family Connect & Childrens Centres,Supplies & Services,Other Grants (Expenses),CHILDCARE SOS,06/04/2023,144
Children's Safeguarding & Family Support,Family Connect & Childrens Centres,Supplies & Services,Other Grants (Expenses),Totally Branded,13/04/2023,1045
Children's Safeguarding & Family Support,Family Connect & Childrens Centres,Supplies & Services,Comp Hardware (Purch / Hire),CCS MEDIA LIMITED,26/04/2023,164.45
Children's Safeguarding & Family Support,"Family Placements, Children in Care, Leaving Care & Emergency Duty Team",Supplies & Services,Furniture - Purchase,ONLINE ERGONOMICS LTD,27/04/2023,240.5
Children's Safeguarding & Family Support,"Family Placements, Children in Care, Leaving Care & Emergency Duty Team",Supplies & Services,Form F Assessments,ES-PBS Services,11/04/2023,500
Children's Safeguarding & Family Support,"Family Placements, Children in Care, Leaving Care & Emergency Duty Team",Supplies & Services,Form F Assessments,ES-PBS Services,11/04/2023,1000
Children's Safeguarding & Family Support,"Family Placements, Children in Care, Leaving Care & Emergency Duty Team",Supplies & Services,Form F Assessments,ES-PBS Services,11/04/2023,1500
Children's Safeguarding & Family Support,"Family Placements, Children in Care, Leaving Care & Emergency Duty Team",Supplies & Services,Aids & Appliances,Tough Furniture Ltd,27/04/2023,574
Children's Safeguarding & Family Support,"Family Placements, Children in Care, Leaving Care & Emergency Duty Team",Supplies & Services,Aids & Appliances,MIDSHIRES MOBILITY GROUP,27/04/2023,2302.75
Children's Safeguarding & Family Support,"Family Placements, Children in Care, Leaving Care & Emergency Duty Team",Supplies & Services,Aids & Appliances,MIDSHIRES MOBILITY GROUP,27/04/2023,2360.75
Children's Safeguarding & Family Support,"Family Placements, Children in Care, Leaving Care & Emergency Duty Team",Employees,Staff Training,Leaving Care Training & Consultancy Service,18/04/2023,1767.61
Children's Safeguarding & Family Support,"Family Placements, Children in Care, Leaving Care & Emergency Duty Team",Employees,Staff Training,SHROPSHIRE COUNCIL,11/04/2023,192
Children's Safeguarding & Family Support,"Family Placements, Children in Care, Leaving Care & Emergency Duty Team",Employees,Staff Training,Under 17 Drivers Path Finder Ltd,26/04/2023,900
Children's Safeguarding & Family Support,"Family Placements, Children in Care, Leaving Care & Emergency Duty Team",Supplies & Services,Materials,Telford Balloons,11/04/2023,202.5
Children's Safeguarding & Family Support,"Family Placements, Children in Care, Leaving Care & Emergency Duty Team",Supplies & Services,Section 17 Childrens Act,Shropshire Council & Benefits ,11/04/2023,692.64
Children's Safeguarding & Family Support,"Family Placements, Children in Care, Leaving Care & Emergency Duty Team",Supplies & Services,Section 17 Childrens Act,WREKIN HOUSING TRUST,26/04/2023,306.2
Children's Safeguarding & Family Support,"Family Placements, Children in Care, Leaving Care & Emergency Duty Team",Transport-Related Expenditure,Season Tickets,ARRIVA MIDLANDS LTD,13/04/2023,950
Children's Safeguarding & Family Support,"Family Placements, Children in Care, Leaving Care & Emergency Duty Team",Premises-Related Expenditure,Hire Of Rooms,MEETING POINT TRUST LTD,11/04/2023,105
Children's Safeguarding & Family Support,"Family Placements, Children in Care, Leaving Care & Emergency Duty Team",Supplies & Services,Doctors Fees,WOODSIDE MEDICAL PRACTICE,04/04/2023,125
Children's Safeguarding & Family Support,"Family Placements, Children in Care, Leaving Care & Emergency Duty Team",Third Party Payments,Interpreters Fees,Premium Linguistic Services,13/04/2023,1357.55
Children's Safeguarding & Family Support,"Family Placements, Children in Care, Leaving Care & Emergency Duty Team",Third Party Payments,Interpreters Fees,Premium Linguistic Services,13/04/2023,511
Children's Safeguarding & Family Support,"Family Placements, Children in Care, Leaving Care & Emergency Duty Team",Employees,Recruitment Advertising,Council Advertising Network,13/04/2023,1000
Children's Safeguarding & Family Support,"Family Placements, Children in Care, Leaving Care & Emergency Duty Team",Employees,Staff Training,SHROPSHIRE COUNCIL ,14/04/2023,400
Children's Safeguarding & Family Support,"Family Placements, Children in Care, Leaving Care & Emergency Duty Team",Employees,Staff Training,Ability Smart Ltd,27/04/2023,4746
Children's Safeguarding & Family Support,"Family Placements, Children in Care, Leaving Care & Emergency Duty Team",Premises-Related Expenditure,Hire Of Rooms,Dawley Baptist Church,04/04/2023,289.02
Children's Safeguarding & Family Support,"Family Placements, Children in Care, Leaving Care & Emergency Duty Team",Premises-Related Expenditure,Trade Refuse,Restore Datashred,27/04/2023,100.33
Children's Safeguarding & Family Support,"Family Placements, Children in Care, Leaving Care & Emergency Duty Team",Supplies & Services,Comp Software (Purch / Hire),PHOENIX SOFTWARE LTD,24/04/2023,373.47
Children's Safeguarding & Family Support,"Family Placements, Children in Care, Leaving Care & Emergency Duty Team",Supplies & Services,Form F Assessments,Kite Fostering Consultancy Ltd,27/04/2023,500
Children's Safeguarding & Family Support,"Family Placements, Children in Care, Leaving Care & Emergency Duty Team",Supplies & Services,Form F Assessments,Kite Fostering Consultancy Ltd,27/04/2023,254.32
Children's Safeguarding & Family Support,"Family Placements, Children in Care, Leaving Care & Emergency Duty Team",Supplies & Services,Advertising,Newsquest Media Group,13/04/2023,2800
Children's Safeguarding & Family Support,"Family Placements, Children in Care, Leaving Care & Emergency Duty Team",Third Party Payments,Residential Expenditure,"NHS Shropshire, Telford and Wrekin CCG",06/04/2023,105250.49
Children's Safeguarding & Family Support,Safeguarding Advisory,Third Party Payments,Private Contractors,Change Grow Live Services Ltd,06/04/2023,4642.5
Children's Safeguarding & Family Support,Safeguarding Advisory,Employees,Training Expenses,NSPCC Learning,13/04/2023,7500
Children's Safeguarding & Family Support,Safeguarding Advisory,Supplies & Services,Publications,Birmingham Children's Trust,05/04/2023,453.57
"Communities, Customer & Commercial Services","Communities, Customer & Commercial Services",Supplies & Services,Legal Expenses,L B SOLICITORS,04/04/2023,771
"Communities, Customer & Commercial Services",Community Services,Supplies & Services,Grants To Voluntary Organis,TELFORD & WREKIN CITIZENS ADVICE BUREAU,05/04/2023,232000
"Communities, Customer & Commercial Services",Community Services,Transfer Payments,Crisis Assistance Awards,Telford Crisis Support,05/04/2023,115472
"Communities, Customer & Commercial Services",Community Services,Transfer Payments,Crisis Assistance Awards,Telford and Wrekin Interfaith Council,04/04/2023,47000
"Communities, Customer & Commercial Services",Community Services,Supplies & Services,Printing - Other,The Campaign Company,17/04/2023,25829
"Communities, Customer & Commercial Services",Community Services,Supplies & Services,Grants To Voluntary Organis,St Georges Air Cadets,13/04/2023,1000
"Communities, Customer & Commercial Services",Community Services,Supplies & Services,Grants To Voluntary Organis,BOURNVILLE VILLAGE TRUST,27/04/2023,250
"Communities, Customer & Commercial Services",Community Services,Supplies & Services,Grants To Voluntary Organis,Telford and Wrekin Interfaith Council,14/04/2023,10000
"Communities, Customer & Commercial Services",Community Services,Supplies & Services,Grants To Voluntary Organis,A Better Tomorrow C.I.C.,24/04/2023,10000
"Communities, Customer & Commercial Services",Community Services,Supplies & Services,Grants To Voluntary Organis,MADELEY PARISH COUNCIL,13/04/2023,3180
"Communities, Customer & Commercial Services",Community Services,Supplies & Services,Grants To Voluntary Organis,PARK LANE CENTRE,24/04/2023,3000
"Communities, Customer & Commercial Services",Community Services,Supplies & Services,Grants To Voluntary Organis,WATERS UPTON PARISH COUNCIL,27/04/2023,800
"Communities, Customer & Commercial Services",Community Services,Premises-Related Expenditure,Electricity,West Mercia Energy (WME),25/04/2023,578.9
"Communities, Customer & Commercial Services",Community Services,Capital Expenditure,Payments to Contractor,R & D Peugeot Manchester,27/04/2023,210
"Communities, Customer & Commercial Services",Community Services,Capital Expenditure,Payments to Contractor,R & D Peugeot Manchester,27/04/2023,-3000
"Communities, Customer & Commercial Services",Community Services,Capital Expenditure,Payments to Contractor,R & D Peugeot Manchester,27/04/2023,-6100.66
"Communities, Customer & Commercial Services",Community Services,Capital Expenditure,Payments to Contractor,R & D Peugeot Manchester,27/04/2023,27910
"Communities, Customer & Commercial Services",Community Services,Capital Expenditure,Payments to Contractor,R & D Peugeot Manchester,27/04/2023,595
"Communities, Customer & Commercial Services",Community Services,Capital Expenditure,Payments to Contractor,R & D Peugeot Manchester,27/04/2023,210
"Communities, Customer & Commercial Services",Community Services,Capital Expenditure,Expenditure on loans & other financial assistance,Dawley Town Hall,27/04/2023,553
"Communities, Customer & Commercial Services",Community Services,Capital Expenditure,Payments to Contractor,R & D Peugeot Manchester,27/04/2023,27910
"Communities, Customer & Commercial Services",Community Services,Capital Expenditure,Payments to Contractor,R & D Peugeot Manchester,27/04/2023,595.83
"Communities, Customer & Commercial Services",Community Services,Capital Expenditure,Payments to Contractor,R & D Peugeot Manchester,27/04/2023,210
"Communities, Customer & Commercial Services",Community Services,Capital Expenditure,Payments to Contractor,R & D Peugeot Manchester,27/04/2023,-3000
"Communities, Customer & Commercial Services",Community Services,Capital Expenditure,Payments to Contractor,R & D Peugeot Manchester,27/04/2023,-6100.65
"Communities, Customer & Commercial Services",Community Services,Capital Expenditure,Payments to Contractor,R & D Peugeot Manchester,27/04/2023,19670.18
"Communities, Customer & Commercial Services",Community Services,Capital Expenditure,Payments to Contractor,R & D Peugeot Manchester,27/04/2023,27910
"Communities, Customer & Commercial Services",Community Services,Capital Expenditure,Payments to Contractor,R & D Peugeot Manchester,27/04/2023,595.83
"Communities, Customer & Commercial Services",Community Services,Capital Expenditure,Payments to Contractor,R & D Peugeot Manchester,27/04/2023,210
"Communities, Customer & Commercial Services",Community Services,Capital Expenditure,Payments to Contractor,R & D Peugeot Manchester,27/04/2023,-3000
"Communities, Customer & Commercial Services",Community Services,Capital Expenditure,Payments to Contractor,R & D Peugeot Manchester,27/04/2023,-6100.65
"Communities, Customer & Commercial Services",Community Services,Capital Expenditure,Payments to Contractor,R & D Peugeot Manchester,27/04/2023,-3000
"Communities, Customer & Commercial Services",Community Services,Capital Expenditure,Payments to Contractor,R & D Peugeot Manchester,27/04/2023,-6099.82
"Communities, Customer & Commercial Services",Community Services,Capital Expenditure,Payments to Contractor,R & D Peugeot Manchester,27/04/2023,27910
"Communities, Customer & Commercial Services",Community Services,Capital Expenditure,Payments to Contractor,R & D Peugeot Manchester,27/04/2023,595.83
"Communities, Customer & Commercial Services",Community Services,Capital Expenditure,Payments to Contractor,R & D Peugeot Manchester,24/04/2023,-6100.65
"Communities, Customer & Commercial Services",Community Services,Capital Expenditure,Payments to Contractor,R & D Peugeot Manchester,24/04/2023,-3000
"Communities, Customer & Commercial Services",Community Services,Capital Expenditure,Payments to Contractor,R & D Peugeot Manchester,24/04/2023,210
"Communities, Customer & Commercial Services",Community Services,Capital Expenditure,Payments to Contractor,R & D Peugeot Manchester,24/04/2023,595.83
"Communities, Customer & Commercial Services",Community Services,Capital Expenditure,Payments to Contractor,R & D Peugeot Manchester,24/04/2023,27910
"Communities, Customer & Commercial Services",Community Services,Capital Expenditure,Other Capital Expenditure,John Osman Groundcare,11/04/2023,-4000
"Communities, Customer & Commercial Services",Community Services,Capital Expenditure,Other Capital Expenditure,John Osman Groundcare,11/04/2023,18950
"Communities, Customer & Commercial Services",Culture & Events,Supplies & Services,Equipment - Purchase,GRANVILLE CONSTRUCTION & MAINTENANCE LTD,14/04/2023,154.64
"Communities, Customer & Commercial Services",Culture & Events,Supplies & Services,Service Contracts,FREELANCE BUSINESS ASSOCIATES,11/04/2023,1080
"Communities, Customer & Commercial Services",Culture & Events,Supplies & Services,Service Contracts,PROKILL UK LIMITED,26/04/2023,159.6
"Communities, Customer & Commercial Services",Culture & Events,Supplies & Services,Promotion Expenses,crowdEngage Limited,26/04/2023,326.01
"Communities, Customer & Commercial Services",Culture & Events,Supplies & Services,Advertising,WHATS ON MAGAZINES LTD,03/04/2023,275
"Communities, Customer & Commercial Services",Culture & Events,Supplies & Services,Promotion Expenses,WHATS ON MAGAZINES LTD,04/04/2023,275
"Communities, Customer & Commercial Services",Culture & Events,Supplies & Services,Advertising,Colston Media Ltd,06/04/2023,170
"Communities, Customer & Commercial Services",Culture & Events,Supplies & Services,Promotion Expenses,Spektrix Limited,26/04/2023,2486.62
"Communities, Customer & Commercial Services",Culture & Events,Supplies & Services,Advertising,THE MIDLAND NEWS ASSOCIATION LTD,26/04/2023,1295.02
"Communities, Customer & Commercial Services",Culture & Events,Supplies & Services,Artistes Fees,One Night In Dublin Ltd,03/04/2023,2736.75
"Communities, Customer & Commercial Services",Culture & Events,Supplies & Services,Artistes Fees,Casey's Cordingley Hall,17/04/2023,115.24
"Communities, Customer & Commercial Services",Culture & Events,Supplies & Services,Artistes Fees,A C CONCERTS LTD,20/04/2023,4754.5
"Communities, Customer & Commercial Services",Culture & Events,Supplies & Services,Artistes Fees,Made To Measure Productions Ltd,20/04/2023,15964.28
"Communities, Customer & Commercial Services",Culture & Events,Supplies & Services,Promotion Expenses,Ticketplan Limited,27/04/2023,600.92
"Communities, Customer & Commercial Services",Culture & Events,Supplies & Services,Provisions,BIKOLD,25/04/2023,248.21
"Communities, Customer & Commercial Services",Culture & Events,Supplies & Services,Wet Resale Provision,MOLSON COORS BREWING COMPANY UK LTD,21/04/2023,145.73
"Communities, Customer & Commercial Services",Culture & Events,Supplies & Services,Wet Resale Provision,MOLSON COORS BREWING COMPANY UK LTD,21/04/2023,232.74
"Communities, Customer & Commercial Services",Culture & Events,Supplies & Services,Wet Resale Provision,MOLSON COORS BREWING COMPANY UK LTD,21/04/2023,148.08
"Communities, Customer & Commercial Services",Culture & Events,Supplies & Services,Wet Resale Provision,MOLSON COORS BREWING COMPANY UK LTD,06/04/2023,179.48
"Communities, Customer & Commercial Services",Culture & Events,Supplies & Services,Wet Resale Provision,MOLSON COORS BREWING COMPANY UK LTD,06/04/2023,176.48
"Communities, Customer & Commercial Services",Culture & Events,Supplies & Services,Wet Resale Provision,MOLSON COORS BREWING COMPANY UK LTD,06/04/2023,220.38
"Communities, Customer & Commercial Services",Culture & Events,Supplies & Services,Wet Resale Provision,MOLSON COORS BREWING COMPANY UK LTD,06/04/2023,129.88
"Communities, Customer & Commercial Services",Culture & Events,Supplies & Services,Wet Resale Provision,MOLSON COORS BREWING COMPANY UK LTD,06/04/2023,129.88
"Communities, Customer & Commercial Services",Culture & Events,Supplies & Services,Wet Resale Provision,MOLSON COORS BREWING COMPANY UK LTD,06/04/2023,110.19
"Communities, Customer & Commercial Services",Culture & Events,Supplies & Services,Wet Resale Provision,MOLSON COORS BREWING COMPANY UK LTD,06/04/2023,132.69
"Communities, Customer & Commercial Services",Culture & Events,Supplies & Services,Wet Resale Provision,MOLSON COORS BREWING COMPANY UK LTD,13/04/2023,148.08
"Communities, Customer & Commercial Services",Culture & Events,Supplies & Services,Wet Resale Provision,MOLSON COORS BREWING COMPANY UK LTD,13/04/2023,110.19
"Communities, Customer & Commercial Services",Culture & Events,Supplies & Services,Wet Resale Provision,MOLSON COORS BREWING COMPANY UK LTD,13/04/2023,129.88
"Communities, Customer & Commercial Services",Culture & Events,Supplies & Services,Wet Resale Provision,MOLSON COORS BREWING COMPANY UK LTD,13/04/2023,110.19
"Communities, Customer & Commercial Services",Culture & Events,Supplies & Services,Wet Resale Provision,MOLSON COORS BREWING COMPANY UK LTD,26/04/2023,145.89
"Communities, Customer & Commercial Services",Culture & Events,Supplies & Services,Wet Resale Provision,MOLSON COORS BREWING COMPANY UK LTD,26/04/2023,116.37
"Communities, Customer & Commercial Services",Culture & Events,Supplies & Services,Wet Resale Provision,MOLSON COORS BREWING COMPANY UK LTD,26/04/2023,148.08
"Communities, Customer & Commercial Services",Culture & Events,Supplies & Services,Wet Resale Provision,MOLSON COORS BREWING COMPANY UK LTD,26/04/2023,145.73
"Communities, Customer & Commercial Services",Culture & Events,Supplies & Services,Furniture - Repair,GRANVILLE CONSTRUCTION & MAINTENANCE LTD,12/04/2023,153.2
"Communities, Customer & Commercial Services",Culture & Events,Supplies & Services,Wet Resale Provision,MOLSON COORS BREWING COMPANY UK LTD,13/04/2023,389.64
"Communities, Customer & Commercial Services",Culture & Events,Supplies & Services,Wet Resale Provision,MOLSON COORS BREWING COMPANY UK LTD,21/04/2023,145.73
"Communities, Customer & Commercial Services",Culture & Events,Supplies & Services,Wet Resale Provision,MOLSON COORS BREWING COMPANY UK LTD,13/04/2023,259.76
"Communities, Customer & Commercial Services",Culture & Events,Supplies & Services,Wet Resale Provision,MOLSON COORS BREWING COMPANY UK LTD,13/04/2023,129.88
"Communities, Customer & Commercial Services",Culture & Events,Supplies & Services,Wet Resale Provision,MOLSON COORS BREWING COMPANY UK LTD,26/04/2023,118.31
"Communities, Customer & Commercial Services",Culture & Events,Supplies & Services,Wet Resale Provision,MOLSON COORS BREWING COMPANY UK LTD,26/04/2023,291.46
"Communities, Customer & Commercial Services",Culture & Events,Premises-Related Expenditure,Gas,GAS DIRECT LTD,26/04/2023,138.31
"Communities, Customer & Commercial Services",Culture & Events,Supplies & Services,Crockery/Hardware/Light Equip,A1 BARSTUFF LTD,14/04/2023,282.91
"Communities, Customer & Commercial Services",Culture & Events,Supplies & Services,Confectionery & Snacks,Eden Farm Hulleys,13/04/2023,280.28
"Communities, Customer & Commercial Services",Culture & Events,Supplies & Services,Confectionery & Snacks,Eden Farm Hulleys,26/04/2023,371.84
"Communities, Customer & Commercial Services",Culture & Events,Supplies & Services,Wet Resale Provision,MOLSON COORS BREWING COMPANY UK LTD,26/04/2023,291.78
"Communities, Customer & Commercial Services",Culture & Events,Supplies & Services,Wet Resale Provision,MOLSON COORS BREWING COMPANY UK LTD,26/04/2023,183.68
"Communities, Customer & Commercial Services",Culture & Events,Supplies & Services,Wet Resale Provision,MOLSON COORS BREWING COMPANY UK LTD,26/04/2023,109.57
"Communities, Customer & Commercial Services",Culture & Events,Supplies & Services,Wet Resale Provision,MOLSON COORS BREWING COMPANY UK LTD,26/04/2023,465.48
"Communities, Customer & Commercial Services",Culture & Events,Supplies & Services,Wet Resale Provision,MOLSON COORS BREWING COMPANY UK LTD,26/04/2023,251.29
"Communities, Customer & Commercial Services",Culture & Events,Supplies & Services,Wet Resale Provision,MOLSON COORS BREWING COMPANY UK LTD,26/04/2023,419.12
"Communities, Customer & Commercial Services",Culture & Events,Supplies & Services,Wet Resale Provision,MOLSON COORS BREWING COMPANY UK LTD,26/04/2023,135.03
"Communities, Customer & Commercial Services",Culture & Events,Supplies & Services,Wet Resale Provision,MOLSON COORS BREWING COMPANY UK LTD,26/04/2023,116.4
"Communities, Customer & Commercial Services",Culture & Events,Supplies & Services,Wet Resale Provision,MOLSON COORS BREWING COMPANY UK LTD,26/04/2023,127.38
"Communities, Customer & Commercial Services",Culture & Events,Supplies & Services,Wet Resale Provision,MOLSON COORS BREWING COMPANY UK LTD,26/04/2023,113.82
"Communities, Customer & Commercial Services",Culture & Events,Supplies & Services,Confectionery & Snacks,Eden Farm Hulleys,04/04/2023,107.2
"Communities, Customer & Commercial Services",Culture & Events,Supplies & Services,Wet Resale Provision,MOLSON COORS BREWING COMPANY UK LTD,13/04/2023,220.38
"Communities, Customer & Commercial Services",Culture & Events,Supplies & Services,Wet Resale Provision,MOLSON COORS BREWING COMPANY UK LTD,13/04/2023,112.13
"Communities, Customer & Commercial Services",Culture & Events,Supplies & Services,Wet Resale Provision,MOLSON COORS BREWING COMPANY UK LTD,13/04/2023,158.94
"Communities, Customer & Commercial Services",Culture & Events,Supplies & Services,Wet Resale Provision,MOLSON COORS BREWING COMPANY UK LTD,13/04/2023,128.96
"Communities, Customer & Commercial Services",Culture & Events,Supplies & Services,Wet Resale Provision,MOLSON COORS BREWING COMPANY UK LTD,13/04/2023,124.74
"Communities, Customer & Commercial Services",Culture & Events,Supplies & Services,Wet Resale Provision,MOLSON COORS BREWING COMPANY UK LTD,13/04/2023,122.97
"Communities, Customer & Commercial Services",Culture & Events,Supplies & Services,Wet Resale Provision,MOLSON COORS BREWING COMPANY UK LTD,13/04/2023,114.08
"Communities, Customer & Commercial Services",Culture & Events,Employees,Recruitment Advertising,Arts Professional Media,03/04/2023,350
"Communities, Customer & Commercial Services",Culture & Events,Supplies & Services,Equipment - Hire,Event Furniture Hire Ltd,28/04/2023,1016
"Communities, Customer & Commercial Services",Culture & Events,Supplies & Services,Equipment - Hire,Ecodisco Ltd,05/04/2023,1880.4
"Communities, Customer & Commercial Services",Culture & Events,Supplies & Services,Equipment - Hire,Lighting and Illumination Technology Experience Limited,05/04/2023,11284
"Communities, Customer & Commercial Services",Culture & Events,Supplies & Services,Tobacco,CIRCUS SENSIBLE,17/04/2023,1995
"Communities, Customer & Commercial Services",Culture & Events,Supplies & Services,Equipment - Hire,J.E.F Scaffolding Ltd,26/04/2023,1765
"Communities, Customer & Commercial Services",Culture & Events,Supplies & Services,Artistes Fees,NACHDA SANSAAR DANCERS,11/04/2023,750
"Communities, Customer & Commercial Services",Culture & Events,Supplies & Services,First Aid,MW MEDICS LTD,26/04/2023,390
"Communities, Customer & Commercial Services",Culture & Events,Supplies & Services,Artistes Fees,J Amazing Camels,26/04/2023,1250
"Communities, Customer & Commercial Services",Culture & Events,Supplies & Services,Artistes Fees,Spirit Operations Ltd,24/04/2023,4500
"Communities, Customer & Commercial Services",Culture & Events,Supplies & Services,Artistes Fees,Secret Severn Art Trail,24/04/2023,1500
"Communities, Customer & Commercial Services",Customer Relationships & Welfare Services,Employees,Agency Supply Costs,E BROWN LTD,11/04/2023,1066.5
"Communities, Customer & Commercial Services",Customer Relationships & Welfare Services,Employees,Agency Supply Costs,E BROWN LTD,18/04/2023,850.5
"Communities, Customer & Commercial Services",Customer Relationships & Welfare Services,Supplies & Services,Other Grants (Expenses),Discretionary Household Support,05/04/2023,251.12
"Communities, Customer & Commercial Services",Customer Relationships & Welfare Services,Supplies & Services,Other Grants (Expenses),POST ROOM,05/04/2023,361
"Communities, Customer & Commercial Services",Customer Relationships & Welfare Services,Supplies & Services,Other Grants (Expenses),POST ROOM,05/04/2023,350
"Communities, Customer & Commercial Services",Customer Relationships & Welfare Services,Supplies & Services,Other Grants (Expenses),Discretionary Household Support,05/04/2023,361
"Communities, Customer & Commercial Services",Customer Relationships & Welfare Services,Supplies & Services,Other Grants (Expenses),Discretionary Household Support,05/04/2023,350
"Communities, Customer & Commercial Services",Customer Relationships & Welfare Services,Supplies & Services,Other Grants (Expenses),Discretionary Household Support,21/04/2023,160
"Communities, Customer & Commercial Services",Customer Relationships & Welfare Services,Supplies & Services,Other Grants (Expenses),Hawk Incentives Ltd ,04/04/2023,19744
"Communities, Customer & Commercial Services",Customer Relationships & Welfare Services,Supplies & Services,Other Grants (Expenses),Discretionary Household Support,26/04/2023,118
"Communities, Customer & Commercial Services",Customer Relationships & Welfare Services,Transfer Payments,Crisis Assistance Awards,PayPoint Network Limited,04/04/2023,750
"Communities, Customer & Commercial Services",Customer Relationships & Welfare Services,Transfer Payments,Crisis Assistance Awards,PayPoint Network Limited,19/04/2023,724
"Communities, Customer & Commercial Services",Customer Relationships & Welfare Services,Transfer Payments,Crisis Assistance Awards,PayPoint Network Limited,12/04/2023,744
"Communities, Customer & Commercial Services",Customer Relationships & Welfare Services,Supplies & Services,Administrative/Office Supplies,SIGNS EXPRESS,26/04/2023,422.16
"Communities, Customer & Commercial Services",Customer Relationships & Welfare Services,Supplies & Services,IT Services,NEC Software Solutions UK Ltd,05/04/2023,2925
"Communities, Customer & Commercial Services",Customer Relationships & Welfare Services,Supplies & Services,Interpretation,VISS Sign Language Interpreting Service,05/04/2023,115
"Communities, Customer & Commercial Services",Customer Relationships & Welfare Services,Supplies & Services,Consultancy,Airey Consultancy Services Ltd.,24/04/2023,650
"Communities, Customer & Commercial Services",Customer Relationships & Welfare Services,Supplies & Services,Blue Badge Assessments,Ascenti,05/04/2023,750
"Communities, Customer & Commercial Services",Customer Relationships & Welfare Services,Supplies & Services,Bus Pass Production,Euclid Limited,05/04/2023,943.02
"Communities, Customer & Commercial Services",Customer Relationships & Welfare Services,Transfer Payments,Crisis Assistance Awards,Kings of the Road,06/04/2023,475
"Communities, Customer & Commercial Services",Customer Relationships & Welfare Services,Transfer Payments,Crisis Assistance Awards,Kings of the Road,06/04/2023,375
"Communities, Customer & Commercial Services",Customer Relationships & Welfare Services,Transfer Payments,Crisis Assistance Awards,Kings of the Road,12/04/2023,445
"Communities, Customer & Commercial Services",Customer Relationships & Welfare Services,Transfer Payments,Crisis Assistance Awards,Kings of the Road,21/04/2023,345
"Communities, Customer & Commercial Services",ICT,Supplies & Services,Comp Software (Purch / Hire),PROCESS FLOWS UK LTD,21/04/2023,1890
"Communities, Customer & Commercial Services",ICT,Supplies & Services,Mobile Phones,EE LTD AIRTIME ,24/04/2023,12297.72
"Communities, Customer & Commercial Services",ICT,Supplies & Services,Telephones,BRITISH TELECOMMUNICATIONS PLC,24/04/2023,5737.44
"Communities, Customer & Commercial Services",ICT,Supplies & Services,Telephones,Trustmarque Solutions Limited,24/04/2023,2871.28
"Communities, Customer & Commercial Services",ICT,Supplies & Services,Text Messages,PROCESS FLOWS UK LTD,04/04/2023,371.1
"Communities, Customer & Commercial Services",ICT,Supplies & Services,Computer Software (Maint),PLANET DV,05/04/2023,1875
"Communities, Customer & Commercial Services",ICT,Supplies & Services,Computer Software (Maint),PLANET DV,05/04/2023,1231.02
"Communities, Customer & Commercial Services",ICT,Supplies & Services,Computer Software (Maint),PLANET DV,05/04/2023,1294.7
"Communities, Customer & Commercial Services",ICT,Premises-Related Expenditure,R&M -Buildings DLO Charge,PP ELECTRICAL SERVICES Ltd,04/04/2023,225
"Communities, Customer & Commercial Services",ICT,Premises-Related Expenditure,R&M -Buildings DLO Charge,Aqua Cooling Ltd,12/04/2023,1944.21
"Communities, Customer & Commercial Services",ICT,Supplies & Services,Telecomms,VODAFONE LTD,25/04/2023,1694
"Communities, Customer & Commercial Services",ICT,Supplies & Services,Comp Software (Purch / Hire),Dotted Eyes,27/04/2023,500
"Communities, Customer & Commercial Services",ICT,Supplies & Services,Telecomms,VIRGIN MEDIA BUSINES,27/04/2023,3240
"Communities, Customer & Commercial Services",ICT,Supplies & Services,Comp Software (Purch / Hire),IDOX SOFTWARE LTD,11/04/2023,27300
"Communities, Customer & Commercial Services",ICT,Supplies & Services,Comp Software (Purch / Hire),PILLAR SOFTWARE LIMITED,04/04/2023,1491
"Communities, Customer & Commercial Services",ICT,Supplies & Services,External Computer Use,ESTEEM SYSTEMS Ltd,04/04/2023,900
"Communities, Customer & Commercial Services",ICT,Supplies & Services,Stationery,PREMIER PAPER GROUP LTD,21/04/2023,196.88
"Communities, Customer & Commercial Services",ICT,Supplies & Services,Comp Hardware (Purch / Hire),CCS MEDIA LIMITED,11/04/2023,9743.36
"Communities, Customer & Commercial Services",ICT,Supplies & Services,Comp Software (Purch / Hire),PHOENIX SOFTWARE LTD,24/04/2023,146.16
"Communities, Customer & Commercial Services",ICT,Supplies & Services,Telephones,Ghekko LTD,18/04/2023,120
"Communities, Customer & Commercial Services",ICT,Supplies & Services,Comp Software (Purch / Hire),Bromcom Computers Plc,13/04/2023,1385.3
"Communities, Customer & Commercial Services",ICT,Capital Expenditure,Payments to Contractor,Recycle IT 4 U Ltd,26/04/2023,5736
"Communities, Customer & Commercial Services",ICT,Capital Expenditure,Payments to Contractor,ICTn Limited,27/04/2023,120
"Communities, Customer & Commercial Services",ICT,Capital Expenditure,Payments to Contractor,ICTn Limited,24/04/2023,145
"Communities, Customer & Commercial Services",ICT,Capital Expenditure,Payments to Contractor,FarrPoint Ltd,03/04/2023,1354.68
"Communities, Customer & Commercial Services",ICT,Capital Expenditure,Payments to Contractor,Bramble Hub Limited,27/04/2023,6687.5
"Communities, Customer & Commercial Services",ICT,Capital Expenditure,Computer Hardware,CCS MEDIA LIMITED,11/04/2023,196
"Communities, Customer & Commercial Services",ICT,Capital Expenditure,Computer Hardware,CCS MEDIA LIMITED,20/04/2023,178.08
"Communities, Customer & Commercial Services",ICT,Capital Expenditure,Computer Software,Access UK Ltd,26/04/2023,-1500
"Communities, Customer & Commercial Services",ICT,Capital Expenditure,Computer Hardware,CCS MEDIA LIMITED,26/04/2023,7890
"Communities, Customer & Commercial Services",Sport & Leisure,Premises-Related Expenditure,Electricity,EON next,21/04/2023,158.36
"Communities, Customer & Commercial Services",Sport & Leisure,Premises-Related Expenditure,Trade Refuse,GRANVILLE CONSTRUCTION & MAINTENANCE LTD,12/04/2023,181.95
"Communities, Customer & Commercial Services",Sport & Leisure,Supplies & Services,EEC Whole Milk,J DAIRIES,28/04/2023,829.53
"Communities, Customer & Commercial Services",Sport & Leisure,Supplies & Services,EEC Whole Milk,J DAIRIES,28/04/2023,1829.12
"Communities, Customer & Commercial Services",Sport & Leisure,Supplies & Services,Provisions,J DAIRIES,12/04/2023,1713.94
"Communities, Customer & Commercial Services",Sport & Leisure,Supplies & Services,EEC Whole Milk,J DAIRIES,12/04/2023,798.33
"Communities, Customer & Commercial Services",Sport & Leisure,Supplies & Services,Provisions,BIKOLD,20/04/2023,167.94
"Communities, Customer & Commercial Services",Sport & Leisure,Employees,Agency Supply Costs,TOTAL CATERING SOLUTONS RECRUITMENT LTD,12/04/2023,320
"Communities, Customer & Commercial Services",Sport & Leisure,Employees,Agency Supply Costs,TOTAL CATERING SOLUTONS RECRUITMENT LTD,12/04/2023,192
"Communities, Customer & Commercial Services",Sport & Leisure,Premises-Related Expenditure,Clean Mats & Toilet Requisites,Border Janitorial Supplies Limited,17/04/2023,134.68
"Communities, Customer & Commercial Services",Sport & Leisure,Premises-Related Expenditure,Clean Mats & Toilet Requisites,Border Janitorial Supplies Limited,26/04/2023,281.26
"Communities, Customer & Commercial Services",Sport & Leisure,Premises-Related Expenditure,Clean Mats & Toilet Requisites,Border Janitorial Supplies Limited,26/04/2023,196.5
"Communities, Customer & Commercial Services",Sport & Leisure,Premises-Related Expenditure,Clean Mats & Toilet Requisites,Border Janitorial Supplies Limited,26/04/2023,349.89
"Communities, Customer & Commercial Services",Sport & Leisure,Premises-Related Expenditure,Clean Mats & Toilet Requisites,Border Janitorial Supplies Limited,26/04/2023,106.68
"Communities, Customer & Commercial Services",Sport & Leisure,Premises-Related Expenditure,Clean Mats & Toilet Requisites,Border Janitorial Supplies Limited,26/04/2023,283.18
"Communities, Customer & Commercial Services",Sport & Leisure,Supplies & Services,Provisions,BIKOLD,28/04/2023,397.38
"Communities, Customer & Commercial Services",Sport & Leisure,Supplies & Services,Provisions,BIKOLD,28/04/2023,163.84
"Communities, Customer & Commercial Services",Sport & Leisure,Supplies & Services,Provisions,BIKOLD,28/04/2023,238.42
"Communities, Customer & Commercial Services",Sport & Leisure,Supplies & Services,Provisions,BIKOLD,28/04/2023,178.09
"Communities, Customer & Commercial Services",Sport & Leisure,Supplies & Services,Provisions,BIKOLD,28/04/2023,202.16
"Communities, Customer & Commercial Services",Sport & Leisure,Supplies & Services,Provisions,BIKOLD,28/04/2023,182.25
"Communities, Customer & Commercial Services",Sport & Leisure,Supplies & Services,Provisions,BIKOLD,28/04/2023,245.26
"Communities, Customer & Commercial Services",Sport & Leisure,Supplies & Services,Provisions,BIKOLD,28/04/2023,119.96
"Communities, Customer & Commercial Services",Sport & Leisure,Supplies & Services,Provisions,BIKOLD,28/04/2023,161.95
"Communities, Customer & Commercial Services",Sport & Leisure,Supplies & Services,Provisions,BIKOLD,28/04/2023,105.55
"Communities, Customer & Commercial Services",Sport & Leisure,Supplies & Services,Provisions,BIKOLD,28/04/2023,142.26
"Communities, Customer & Commercial Services",Sport & Leisure,Supplies & Services,Provisions,BIKOLD,28/04/2023,142.28
"Communities, Customer & Commercial Services",Sport & Leisure,Supplies & Services,Provisions,BIKOLD,28/04/2023,151.16
"Communities, Customer & Commercial Services",Sport & Leisure,Supplies & Services,Provisions,BIKOLD,28/04/2023,267.81
"Communities, Customer & Commercial Services",Sport & Leisure,Supplies & Services,Provisions,BIKOLD,28/04/2023,484.72
"Communities, Customer & Commercial Services",Sport & Leisure,Supplies & Services,Provisions,BIKOLD,28/04/2023,304.85
"Communities, Customer & Commercial Services",Sport & Leisure,Supplies & Services,Provisions,BIKOLD,28/04/2023,230.97
"Communities, Customer & Commercial Services",Sport & Leisure,Supplies & Services,Provisions,BIKOLD,28/04/2023,457.76
"Communities, Customer & Commercial Services",Sport & Leisure,Supplies & Services,Provisions,BIKOLD,28/04/2023,491.6
"Communities, Customer & Commercial Services",Sport & Leisure,Supplies & Services,Provisions,BIKOLD,28/04/2023,206.59
"Communities, Customer & Commercial Services",Sport & Leisure,Supplies & Services,Provisions,BIKOLD,28/04/2023,423.79
"Communities, Customer & Commercial Services",Sport & Leisure,Supplies & Services,Provisions,BIKOLD,28/04/2023,311.92
"Communities, Customer & Commercial Services",Sport & Leisure,Supplies & Services,Provisions,BIKOLD,28/04/2023,153.76
"Communities, Customer & Commercial Services",Sport & Leisure,Supplies & Services,Provisions,BIKOLD,28/04/2023,392.1
"Communities, Customer & Commercial Services",Sport & Leisure,Supplies & Services,Provisions,BIKOLD,28/04/2023,239.26
"Communities, Customer & Commercial Services",Sport & Leisure,Supplies & Services,Provisions,BIKOLD,28/04/2023,150.08
"Communities, Customer & Commercial Services",Sport & Leisure,Supplies & Services,Provisions,BIKOLD,28/04/2023,148.54
"Communities, Customer & Commercial Services",Sport & Leisure,Supplies & Services,Provisions,BIKOLD,28/04/2023,460.46
"Communities, Customer & Commercial Services",Sport & Leisure,Supplies & Services,Provisions,BIKOLD,28/04/2023,509.8
"Communities, Customer & Commercial Services",Sport & Leisure,Supplies & Services,Provisions,BIKOLD,28/04/2023,444.28
"Communities, Customer & Commercial Services",Sport & Leisure,Supplies & Services,Provisions,BIKOLD,28/04/2023,418.74
"Communities, Customer & Commercial Services",Sport & Leisure,Supplies & Services,Provisions,BIKOLD,28/04/2023,210.84
"Communities, Customer & Commercial Services",Sport & Leisure,Supplies & Services,Provisions,BIKOLD,28/04/2023,153.67
"Communities, Customer & Commercial Services",Sport & Leisure,Supplies & Services,Provisions,BIKOLD,28/04/2023,105.77
"Communities, Customer & Commercial Services",Sport & Leisure,Supplies & Services,Provisions,BIKOLD,28/04/2023,156.11
"Communities, Customer & Commercial Services",Sport & Leisure,Supplies & Services,Provisions,BIKOLD,28/04/2023,127.93
"Communities, Customer & Commercial Services",Sport & Leisure,Supplies & Services,Provisions,BIKOLD,28/04/2023,312.71
"Communities, Customer & Commercial Services",Sport & Leisure,Supplies & Services,Provisions,BIKOLD,28/04/2023,151.48
"Communities, Customer & Commercial Services",Sport & Leisure,Supplies & Services,Provisions,BIKOLD,28/04/2023,524.98
"Communities, Customer & Commercial Services",Sport & Leisure,Supplies & Services,Provisions,BIKOLD,28/04/2023,339.8
"Communities, Customer & Commercial Services",Sport & Leisure,Supplies & Services,Provisions,BIKOLD,28/04/2023,177.74
"Communities, Customer & Commercial Services",Sport & Leisure,Supplies & Services,Provisions,BIKOLD,28/04/2023,237
"Communities, Customer & Commercial Services",Sport & Leisure,Supplies & Services,Provisions,BIKOLD,28/04/2023,204.68
"Communities, Customer & Commercial Services",Sport & Leisure,Supplies & Services,Provisions,BIKOLD,28/04/2023,251.74
"Communities, Customer & Commercial Services",Sport & Leisure,Supplies & Services,Provisions,BIKOLD,28/04/2023,160.03
"Communities, Customer & Commercial Services",Sport & Leisure,Supplies & Services,Provisions,BIKOLD,28/04/2023,341.71
"Communities, Customer & Commercial Services",Sport & Leisure,Supplies & Services,Provisions,BIKOLD,28/04/2023,587.1
"Communities, Customer & Commercial Services",Sport & Leisure,Supplies & Services,Provisions,BIKOLD,28/04/2023,580.13
"Communities, Customer & Commercial Services",Sport & Leisure,Supplies & Services,Provisions,BIKOLD,28/04/2023,100.95
"Communities, Customer & Commercial Services",Sport & Leisure,Supplies & Services,Provisions,BIKOLD,28/04/2023,167.02
"Communities, Customer & Commercial Services",Sport & Leisure,Supplies & Services,Provisions,BIKOLD,28/04/2023,167.35
"Communities, Customer & Commercial Services",Sport & Leisure,Supplies & Services,Provisions,BIKOLD,28/04/2023,481.34
"Communities, Customer & Commercial Services",Sport & Leisure,Supplies & Services,Provisions,BIKOLD,28/04/2023,298.07
"Communities, Customer & Commercial Services",Sport & Leisure,Supplies & Services,Provisions,BIKOLD,28/04/2023,382.77
"Communities, Customer & Commercial Services",Sport & Leisure,Supplies & Services,Provisions,BIKOLD,28/04/2023,121.71
"Communities, Customer & Commercial Services",Sport & Leisure,Supplies & Services,Provisions,BIKOLD,28/04/2023,104.42
"Communities, Customer & Commercial Services",Sport & Leisure,Supplies & Services,Provisions,BIKOLD,28/04/2023,477.43
"Communities, Customer & Commercial Services",Sport & Leisure,Supplies & Services,Provisions,BIKOLD,28/04/2023,254.46
"Communities, Customer & Commercial Services",Sport & Leisure,Supplies & Services,Provisions,BIKOLD,28/04/2023,162.5
"Communities, Customer & Commercial Services",Sport & Leisure,Supplies & Services,Provisions,BIKOLD,28/04/2023,218.14
"Communities, Customer & Commercial Services",Sport & Leisure,Supplies & Services,Provisions,BIKOLD,28/04/2023,303.62
"Communities, Customer & Commercial Services",Sport & Leisure,Supplies & Services,Provisions,BIKOLD,28/04/2023,135.24
"Communities, Customer & Commercial Services",Sport & Leisure,Supplies & Services,Provisions,BIKOLD,28/04/2023,102
"Communities, Customer & Commercial Services",Sport & Leisure,Supplies & Services,Provisions,BIKOLD,28/04/2023,151.23
"Communities, Customer & Commercial Services",Sport & Leisure,Supplies & Services,Provisions,BIKOLD,28/04/2023,151.07
"Communities, Customer & Commercial Services",Sport & Leisure,Supplies & Services,Provisions,BIKOLD,28/04/2023,143.41
"Communities, Customer & Commercial Services",Sport & Leisure,Supplies & Services,Provisions,BIKOLD,28/04/2023,143.89
"Communities, Customer & Commercial Services",Sport & Leisure,Supplies & Services,Provisions,BIKOLD,28/04/2023,244.75
"Communities, Customer & Commercial Services",Sport & Leisure,Supplies & Services,Provisions,BIKOLD,28/04/2023,425.22
"Communities, Customer & Commercial Services",Sport & Leisure,Supplies & Services,Provisions,BIKOLD,28/04/2023,115.05
"Communities, Customer & Commercial Services",Sport & Leisure,Supplies & Services,Provisions,BIKOLD,28/04/2023,168.06
"Communities, Customer & Commercial Services",Sport & Leisure,Supplies & Services,Provisions,BIKOLD,28/04/2023,167.79
"Communities, Customer & Commercial Services",Sport & Leisure,Supplies & Services,Provisions,BIKOLD,28/04/2023,102.36
"Communities, Customer & Commercial Services",Sport & Leisure,Supplies & Services,Provisions,BIKOLD,28/04/2023,382.41
"Communities, Customer & Commercial Services",Sport & Leisure,Supplies & Services,Provisions,BIKOLD,28/04/2023,301.12
"Communities, Customer & Commercial Services",Sport & Leisure,Supplies & Services,Provisions,BIKOLD,28/04/2023,430.22
"Communities, Customer & Commercial Services",Sport & Leisure,Supplies & Services,Provisions,BIKOLD,28/04/2023,207.99
"Communities, Customer & Commercial Services",Sport & Leisure,Supplies & Services,Provisions,BIKOLD,28/04/2023,531.28
"Communities, Customer & Commercial Services",Sport & Leisure,Supplies & Services,Provisions,BIKOLD,28/04/2023,314.52
"Communities, Customer & Commercial Services",Sport & Leisure,Supplies & Services,Provisions,BIKOLD,28/04/2023,141.12
"Communities, Customer & Commercial Services",Sport & Leisure,Supplies & Services,Provisions,BIKOLD,28/04/2023,121.53
"Communities, Customer & Commercial Services",Sport & Leisure,Supplies & Services,Provisions,BIKOLD,28/04/2023,141.56
"Communities, Customer & Commercial Services",Sport & Leisure,Supplies & Services,Provisions,BIKOLD,28/04/2023,259.78
"Communities, Customer & Commercial Services",Sport & Leisure,Supplies & Services,Provisions,BIKOLD,28/04/2023,422.11
"Communities, Customer & Commercial Services",Sport & Leisure,Supplies & Services,Provisions,BIKOLD,28/04/2023,222.19
"Communities, Customer & Commercial Services",Sport & Leisure,Supplies & Services,Provisions,BIKOLD,28/04/2023,126.56
"Communities, Customer & Commercial Services",Sport & Leisure,Supplies & Services,Provisions,BIKOLD,28/04/2023,666.74
"Communities, Customer & Commercial Services",Sport & Leisure,Supplies & Services,Provisions,BIKOLD,28/04/2023,598.99
"Communities, Customer & Commercial Services",Sport & Leisure,Supplies & Services,Provisions,BIKOLD,28/04/2023,484.07
"Communities, Customer & Commercial Services",Sport & Leisure,Supplies & Services,Provisions,BIKOLD,28/04/2023,102.28
"Communities, Customer & Commercial Services",Sport & Leisure,Supplies & Services,Provisions,BIKOLD,28/04/2023,194.25
"Communities, Customer & Commercial Services",Sport & Leisure,Supplies & Services,Provisions,BIKOLD,28/04/2023,321.98
"Communities, Customer & Commercial Services",Sport & Leisure,Supplies & Services,Provisions,BIKOLD,28/04/2023,135.78
"Communities, Customer & Commercial Services",Sport & Leisure,Supplies & Services,Provisions,BIKOLD,28/04/2023,515.29
"Communities, Customer & Commercial Services",Sport & Leisure,Supplies & Services,Provisions,BIKOLD,28/04/2023,148.49
"Communities, Customer & Commercial Services",Sport & Leisure,Supplies & Services,Provisions,BIKOLD,28/04/2023,159.04
"Communities, Customer & Commercial Services",Sport & Leisure,Supplies & Services,Provisions,BIKOLD,28/04/2023,238.04
"Communities, Customer & Commercial Services",Sport & Leisure,Supplies & Services,Provisions,BIKOLD,28/04/2023,109.57
"Communities, Customer & Commercial Services",Sport & Leisure,Supplies & Services,Provisions,BIKOLD,28/04/2023,190.6
"Communities, Customer & Commercial Services",Sport & Leisure,Supplies & Services,Provisions,BIKOLD,28/04/2023,625.2
"Communities, Customer & Commercial Services",Sport & Leisure,Supplies & Services,Provisions,BIKOLD,28/04/2023,191.74
"Communities, Customer & Commercial Services",Sport & Leisure,Supplies & Services,Provisions,BIKOLD,28/04/2023,142
"Communities, Customer & Commercial Services",Sport & Leisure,Supplies & Services,Provisions,BIKOLD,28/04/2023,175.96
"Communities, Customer & Commercial Services",Sport & Leisure,Supplies & Services,Provisions,BIKOLD,28/04/2023,416.71
"Communities, Customer & Commercial Services",Sport & Leisure,Supplies & Services,Provisions,BIKOLD,28/04/2023,149.61
"Communities, Customer & Commercial Services",Sport & Leisure,Supplies & Services,Provisions,BIKOLD,28/04/2023,107.16
"Communities, Customer & Commercial Services",Sport & Leisure,Supplies & Services,Provisions,BIKOLD,28/04/2023,240.75
"Communities, Customer & Commercial Services",Sport & Leisure,Supplies & Services,Provisions,BIKOLD,28/04/2023,394.66
"Communities, Customer & Commercial Services",Sport & Leisure,Supplies & Services,Provisions,BIKOLD,28/04/2023,270.2
"Communities, Customer & Commercial Services",Sport & Leisure,Supplies & Services,Provisions,BIKOLD,28/04/2023,374.64
"Communities, Customer & Commercial Services",Sport & Leisure,Supplies & Services,Provisions,BIKOLD,28/04/2023,181.83
"Communities, Customer & Commercial Services",Sport & Leisure,Supplies & Services,Provisions,BIKOLD,28/04/2023,368.96
"Communities, Customer & Commercial Services",Sport & Leisure,Supplies & Services,Provisions,BIKOLD,28/04/2023,108.59
"Communities, Customer & Commercial Services",Sport & Leisure,Supplies & Services,Provisions,BIKOLD,28/04/2023,105.03
"Communities, Customer & Commercial Services",Sport & Leisure,Supplies & Services,Provisions,BIKOLD,28/04/2023,550.21
"Communities, Customer & Commercial Services",Sport & Leisure,Supplies & Services,Provisions,BIKOLD,28/04/2023,443.68
"Communities, Customer & Commercial Services",Sport & Leisure,Supplies & Services,Provisions,BIKOLD,28/04/2023,262.62
"Communities, Customer & Commercial Services",Sport & Leisure,Supplies & Services,Provisions,BIKOLD,28/04/2023,357.51
"Communities, Customer & Commercial Services",Sport & Leisure,Supplies & Services,Provisions,BIKOLD,28/04/2023,910.37
"Communities, Customer & Commercial Services",Sport & Leisure,Supplies & Services,Provisions,BIKOLD,28/04/2023,359.76
"Communities, Customer & Commercial Services",Sport & Leisure,Supplies & Services,Provisions,BIKOLD,28/04/2023,255.98
"Communities, Customer & Commercial Services",Sport & Leisure,Supplies & Services,Provisions,BIKOLD,28/04/2023,278.49
"Communities, Customer & Commercial Services",Sport & Leisure,Supplies & Services,Provisions,BIKOLD,28/04/2023,203.58
"Communities, Customer & Commercial Services",Sport & Leisure,Supplies & Services,Provisions,BIKOLD,28/04/2023,132.42
"Communities, Customer & Commercial Services",Sport & Leisure,Supplies & Services,Provisions,BIKOLD,28/04/2023,682.98
"Communities, Customer & Commercial Services",Sport & Leisure,Supplies & Services,Provisions,BIKOLD,28/04/2023,109.28
"Communities, Customer & Commercial Services",Sport & Leisure,Supplies & Services,Provisions,BIKOLD,28/04/2023,145.47
"Communities, Customer & Commercial Services",Sport & Leisure,Supplies & Services,Provisions,BIKOLD,28/04/2023,232.18
"Communities, Customer & Commercial Services",Sport & Leisure,Supplies & Services,Provisions,BIKOLD,28/04/2023,327.66
"Communities, Customer & Commercial Services",Sport & Leisure,Supplies & Services,Provisions,BIKOLD,28/04/2023,104.54
"Communities, Customer & Commercial Services",Sport & Leisure,Supplies & Services,Provisions,BIKOLD,28/04/2023,158.83
"Communities, Customer & Commercial Services",Sport & Leisure,Supplies & Services,Provisions,BIKOLD,28/04/2023,155.02
"Communities, Customer & Commercial Services",Sport & Leisure,Supplies & Services,Provisions,BIKOLD,28/04/2023,292.06
"Communities, Customer & Commercial Services",Sport & Leisure,Supplies & Services,Provisions,BIKOLD,28/04/2023,299.64
"Communities, Customer & Commercial Services",Sport & Leisure,Supplies & Services,Provisions,BIKOLD,28/04/2023,145.3
"Communities, Customer & Commercial Services",Sport & Leisure,Supplies & Services,Provisions,BIKOLD,11/04/2023,-110.02
"Communities, Customer & Commercial Services",Sport & Leisure,Supplies & Services,Provisions,BIKOLD,11/04/2023,369.99
"Communities, Customer & Commercial Services",Sport & Leisure,Supplies & Services,Provisions,BIKOLD,11/04/2023,185.58
"Communities, Customer & Commercial Services",Sport & Leisure,Supplies & Services,Provisions,BIKOLD,11/04/2023,242.01
"Communities, Customer & Commercial Services",Sport & Leisure,Supplies & Services,Provisions,BIKOLD,11/04/2023,763.27
"Communities, Customer & Commercial Services",Sport & Leisure,Supplies & Services,Provisions,BIKOLD,13/04/2023,118.13
"Communities, Customer & Commercial Services",Sport & Leisure,Supplies & Services,Provisions,J S Catering Butchers,03/04/2023,223.6
"Communities, Customer & Commercial Services",Sport & Leisure,Supplies & Services,Provisions,R & COMPANY,04/04/2023,115.05
"Communities, Customer & Commercial Services",Sport & Leisure,Supplies & Services,Provisions,R & COMPANY,04/04/2023,161.75
"Communities, Customer & Commercial Services",Sport & Leisure,Supplies & Services,Provisions,R & COMPANY,04/04/2023,118.1
"Communities, Customer & Commercial Services",Sport & Leisure,Supplies & Services,Provisions,R & COMPANY,04/04/2023,215.23
"Communities, Customer & Commercial Services",Sport & Leisure,Supplies & Services,Provisions,R & COMPANY,04/04/2023,154.43
"Communities, Customer & Commercial Services",Sport & Leisure,Supplies & Services,Provisions,R & COMPANY,04/04/2023,116.46
"Communities, Customer & Commercial Services",Sport & Leisure,Supplies & Services,Provisions,R & COMPANY,04/04/2023,224.02
"Communities, Customer & Commercial Services",Sport & Leisure,Supplies & Services,Provisions,R & COMPANY,04/04/2023,104.89
"Communities, Customer & Commercial Services",Sport & Leisure,Supplies & Services,Provisions,R & COMPANY,04/04/2023,125.08
"Communities, Customer & Commercial Services",Sport & Leisure,Supplies & Services,Provisions,R & COMPANY,04/04/2023,311.2
"Communities, Customer & Commercial Services",Sport & Leisure,Supplies & Services,Provisions,R & COMPANY,04/04/2023,109.96
"Communities, Customer & Commercial Services",Sport & Leisure,Supplies & Services,Provisions,R & COMPANY,04/04/2023,212.28
"Communities, Customer & Commercial Services",Sport & Leisure,Supplies & Services,Provisions,R & COMPANY,04/04/2023,102.08
"Communities, Customer & Commercial Services",Sport & Leisure,Supplies & Services,Provisions,R & COMPANY,04/04/2023,188.27
"Communities, Customer & Commercial Services",Sport & Leisure,Supplies & Services,Provisions,R & COMPANY,04/04/2023,106.57
"Communities, Customer & Commercial Services",Sport & Leisure,Supplies & Services,Provisions,R & COMPANY,04/04/2023,170.16
"Communities, Customer & Commercial Services",Sport & Leisure,Supplies & Services,Provisions,R & COMPANY,04/04/2023,107.71
"Communities, Customer & Commercial Services",Sport & Leisure,Supplies & Services,Provisions,R & COMPANY,04/04/2023,170.53
"Communities, Customer & Commercial Services",Sport & Leisure,Supplies & Services,Provisions,R & COMPANY,04/04/2023,190.28
"Communities, Customer & Commercial Services",Sport & Leisure,Supplies & Services,Provisions,BIKOLD,20/04/2023,-489.84
"Communities, Customer & Commercial Services",Sport & Leisure,Supplies & Services,Provisions,BIKOLD,20/04/2023,468.91
"Communities, Customer & Commercial Services",Sport & Leisure,Supplies & Services,Provisions,BIKOLD,20/04/2023,148.31
"Communities, Customer & Commercial Services",Sport & Leisure,Supplies & Services,Provisions,BIKOLD,20/04/2023,291.12
"Communities, Customer & Commercial Services",Sport & Leisure,Supplies & Services,Provisions,BIKOLD,20/04/2023,203.83
"Communities, Customer & Commercial Services",Sport & Leisure,Supplies & Services,Provisions,BIKOLD,20/04/2023,152.74
"Communities, Customer & Commercial Services",Sport & Leisure,Supplies & Services,Provisions,BIKOLD,20/04/2023,176.88
"Communities, Customer & Commercial Services",Sport & Leisure,Supplies & Services,Provisions,BIKOLD,20/04/2023,106.86
"Communities, Customer & Commercial Services",Sport & Leisure,Supplies & Services,Provisions,BIKOLD,20/04/2023,105.64
"Communities, Customer & Commercial Services",Sport & Leisure,Supplies & Services,Provisions,BIKOLD,20/04/2023,177.55
"Communities, Customer & Commercial Services",Sport & Leisure,Supplies & Services,Provisions,BIKOLD,20/04/2023,225.85
"Communities, Customer & Commercial Services",Sport & Leisure,Supplies & Services,Provisions,BIKOLD,20/04/2023,228.54
"Communities, Customer & Commercial Services",Sport & Leisure,Supplies & Services,Provisions,BIKOLD,20/04/2023,343.59
"Communities, Customer & Commercial Services",Sport & Leisure,Supplies & Services,Provisions,BIKOLD,20/04/2023,182.29
"Communities, Customer & Commercial Services",Sport & Leisure,Supplies & Services,Provisions,BIKOLD,20/04/2023,238.08
"Communities, Customer & Commercial Services",Sport & Leisure,Supplies & Services,Provisions,BIKOLD,20/04/2023,139.65
"Communities, Customer & Commercial Services",Sport & Leisure,Supplies & Services,Provisions,BIKOLD,20/04/2023,131.41
"Communities, Customer & Commercial Services",Sport & Leisure,Supplies & Services,Provisions,BIKOLD,20/04/2023,190.76
"Communities, Customer & Commercial Services",Sport & Leisure,Supplies & Services,Provisions,BIKOLD,20/04/2023,217.15
"Communities, Customer & Commercial Services",Sport & Leisure,Supplies & Services,Provisions,BIKOLD,20/04/2023,307.39
"Communities, Customer & Commercial Services",Sport & Leisure,Supplies & Services,Provisions,BIKOLD,20/04/2023,415.52
"Communities, Customer & Commercial Services",Sport & Leisure,Supplies & Services,Provisions,BIKOLD,20/04/2023,420.12
"Communities, Customer & Commercial Services",Sport & Leisure,Supplies & Services,Provisions,BIKOLD,20/04/2023,106.86
"Communities, Customer & Commercial Services",Sport & Leisure,Supplies & Services,Provisions,BIKOLD,20/04/2023,225.28
"Communities, Customer & Commercial Services",Sport & Leisure,Supplies & Services,Provisions,BIKOLD,20/04/2023,465.77
"Communities, Customer & Commercial Services",Sport & Leisure,Supplies & Services,Provisions,BIKOLD,20/04/2023,276.8
"Communities, Customer & Commercial Services",Sport & Leisure,Supplies & Services,Provisions,BIKOLD,20/04/2023,323.19
"Communities, Customer & Commercial Services",Sport & Leisure,Supplies & Services,Provisions,BIKOLD,20/04/2023,160.22
"Communities, Customer & Commercial Services",Sport & Leisure,Supplies & Services,Provisions,BIKOLD,20/04/2023,269.77
"Communities, Customer & Commercial Services",Sport & Leisure,Supplies & Services,Provisions,BIKOLD,20/04/2023,294.78
"Communities, Customer & Commercial Services",Sport & Leisure,Supplies & Services,Provisions,BIKOLD,20/04/2023,132.38
"Communities, Customer & Commercial Services",Sport & Leisure,Supplies & Services,Provisions,BIKOLD,20/04/2023,227.57
"Communities, Customer & Commercial Services",Sport & Leisure,Supplies & Services,Provisions,BIKOLD,20/04/2023,124.98
"Communities, Customer & Commercial Services",Sport & Leisure,Supplies & Services,Provisions,BIKOLD,20/04/2023,336.12
"Communities, Customer & Commercial Services",Sport & Leisure,Supplies & Services,Provisions,BIKOLD,20/04/2023,330.59
"Communities, Customer & Commercial Services",Sport & Leisure,Supplies & Services,Provisions,BIKOLD,20/04/2023,232.75
"Communities, Customer & Commercial Services",Sport & Leisure,Supplies & Services,Provisions,BIKOLD,20/04/2023,579.69
"Communities, Customer & Commercial Services",Sport & Leisure,Supplies & Services,Provisions,BIKOLD,20/04/2023,299.35
"Communities, Customer & Commercial Services",Sport & Leisure,Supplies & Services,Provisions,BIKOLD,20/04/2023,316.1
"Communities, Customer & Commercial Services",Sport & Leisure,Supplies & Services,Provisions,BIKOLD,20/04/2023,143.86
"Communities, Customer & Commercial Services",Sport & Leisure,Supplies & Services,Provisions,BIKOLD,20/04/2023,497.12
"Communities, Customer & Commercial Services",Sport & Leisure,Supplies & Services,Provisions,BIKOLD,20/04/2023,115.33
"Communities, Customer & Commercial Services",Sport & Leisure,Supplies & Services,Provisions,BIKOLD,20/04/2023,321.46
"Communities, Customer & Commercial Services",Sport & Leisure,Supplies & Services,Provisions,BIKOLD,20/04/2023,210.07
"Communities, Customer & Commercial Services",Sport & Leisure,Supplies & Services,Provisions,BIKOLD,20/04/2023,160.51
"Communities, Customer & Commercial Services",Sport & Leisure,Supplies & Services,Provisions,BIKOLD,20/04/2023,101.77
"Communities, Customer & Commercial Services",Sport & Leisure,Supplies & Services,Provisions,BIKOLD,20/04/2023,336.04
"Communities, Customer & Commercial Services",Sport & Leisure,Supplies & Services,Provisions,BIKOLD,20/04/2023,119.22
"Communities, Customer & Commercial Services",Sport & Leisure,Supplies & Services,Provisions,BIKOLD,20/04/2023,181.6
"Communities, Customer & Commercial Services",Sport & Leisure,Supplies & Services,Provisions,BIKOLD,20/04/2023,100.52
"Communities, Customer & Commercial Services",Sport & Leisure,Supplies & Services,Provisions,BIKOLD,20/04/2023,465.4
"Communities, Customer & Commercial Services",Sport & Leisure,Supplies & Services,Provisions,BIKOLD,20/04/2023,339.12
"Communities, Customer & Commercial Services",Sport & Leisure,Supplies & Services,Provisions,BIKOLD,20/04/2023,145.87
"Communities, Customer & Commercial Services",Sport & Leisure,Supplies & Services,Provisions,BIKOLD,20/04/2023,225.12
"Communities, Customer & Commercial Services",Sport & Leisure,Supplies & Services,Provisions,BIKOLD,20/04/2023,106.86
"Communities, Customer & Commercial Services",Sport & Leisure,Supplies & Services,Provisions,BIKOLD,20/04/2023,289.49
"Communities, Customer & Commercial Services",Sport & Leisure,Supplies & Services,Provisions,BIKOLD,20/04/2023,317.02
"Communities, Customer & Commercial Services",Sport & Leisure,Supplies & Services,Provisions,BIKOLD,20/04/2023,149.08
"Communities, Customer & Commercial Services",Sport & Leisure,Supplies & Services,Provisions,BIKOLD,20/04/2023,205.5
"Communities, Customer & Commercial Services",Sport & Leisure,Supplies & Services,Provisions,BIKOLD,20/04/2023,460.86
"Communities, Customer & Commercial Services",Sport & Leisure,Supplies & Services,Provisions,BIKOLD,20/04/2023,184.19
"Communities, Customer & Commercial Services",Sport & Leisure,Supplies & Services,Provisions,BIKOLD,20/04/2023,162.01
"Communities, Customer & Commercial Services",Sport & Leisure,Supplies & Services,Provisions,BIKOLD,20/04/2023,399.75
"Communities, Customer & Commercial Services",Sport & Leisure,Supplies & Services,Provisions,BIKOLD,20/04/2023,336.61
"Communities, Customer & Commercial Services",Sport & Leisure,Supplies & Services,Provisions,BIKOLD,20/04/2023,406.48
"Communities, Customer & Commercial Services",Sport & Leisure,Supplies & Services,Provisions,BIKOLD,20/04/2023,372.46
"Communities, Customer & Commercial Services",Sport & Leisure,Supplies & Services,Provisions,BIKOLD,20/04/2023,333.41
"Communities, Customer & Commercial Services",Sport & Leisure,Supplies & Services,Provisions,BIKOLD,20/04/2023,167.95
"Communities, Customer & Commercial Services",Sport & Leisure,Supplies & Services,Provisions,BIKOLD,20/04/2023,119.34
"Communities, Customer & Commercial Services",Sport & Leisure,Supplies & Services,Provisions,BIKOLD,20/04/2023,351.79
"Communities, Customer & Commercial Services",Sport & Leisure,Supplies & Services,Provisions,BIKOLD,20/04/2023,231.12
"Communities, Customer & Commercial Services",Sport & Leisure,Supplies & Services,Provisions,BIKOLD,20/04/2023,211.53
"Communities, Customer & Commercial Services",Sport & Leisure,Supplies & Services,Provisions,BIKOLD,20/04/2023,286.18
"Communities, Customer & Commercial Services",Sport & Leisure,Supplies & Services,Provisions,BIKOLD,20/04/2023,126.96
"Communities, Customer & Commercial Services",Sport & Leisure,Supplies & Services,Provisions,BIKOLD,20/04/2023,110.09
"Communities, Customer & Commercial Services",Sport & Leisure,Supplies & Services,Provisions,BIKOLD,20/04/2023,296.42
"Communities, Customer & Commercial Services",Sport & Leisure,Supplies & Services,Provisions,BIKOLD,20/04/2023,123.97
"Communities, Customer & Commercial Services",Sport & Leisure,Supplies & Services,Provisions,BIKOLD,20/04/2023,141.13
"Communities, Customer & Commercial Services",Sport & Leisure,Supplies & Services,Provisions,BIKOLD,20/04/2023,122.85
"Communities, Customer & Commercial Services",Sport & Leisure,Supplies & Services,Provisions,BIKOLD,20/04/2023,193.21
"Communities, Customer & Commercial Services",Sport & Leisure,Supplies & Services,Provisions,BIKOLD,20/04/2023,316.34
"Communities, Customer & Commercial Services",Sport & Leisure,Supplies & Services,Provisions,BIKOLD,20/04/2023,128.34
"Communities, Customer & Commercial Services",Sport & Leisure,Supplies & Services,Provisions,BIKOLD,20/04/2023,217.64
"Communities, Customer & Commercial Services",Sport & Leisure,Supplies & Services,Provisions,BIKOLD,20/04/2023,161.59
"Communities, Customer & Commercial Services",Sport & Leisure,Supplies & Services,Provisions,BIKOLD,20/04/2023,113.37
"Communities, Customer & Commercial Services",Sport & Leisure,Supplies & Services,Provisions,BIKOLD,20/04/2023,172.03
"Communities, Customer & Commercial Services",Sport & Leisure,Supplies & Services,Provisions,BIKOLD,20/04/2023,179.7
"Communities, Customer & Commercial Services",Sport & Leisure,Supplies & Services,Provisions,BIKOLD,20/04/2023,300.81
"Communities, Customer & Commercial Services",Sport & Leisure,Supplies & Services,Provisions,BIKOLD,20/04/2023,121.73
"Communities, Customer & Commercial Services",Sport & Leisure,Supplies & Services,Provisions,BIKOLD,20/04/2023,178.39
"Communities, Customer & Commercial Services",Sport & Leisure,Supplies & Services,Provisions,BIKOLD,20/04/2023,425.7
"Communities, Customer & Commercial Services",Sport & Leisure,Supplies & Services,Provisions,BIKOLD,20/04/2023,373.26
"Communities, Customer & Commercial Services",Sport & Leisure,Supplies & Services,Provisions,BIKOLD,20/04/2023,334.16
"Communities, Customer & Commercial Services",Sport & Leisure,Supplies & Services,Provisions,BIKOLD,20/04/2023,217.36
"Communities, Customer & Commercial Services",Sport & Leisure,Supplies & Services,Provisions,BIKOLD,20/04/2023,288.44
"Communities, Customer & Commercial Services",Sport & Leisure,Supplies & Services,Provisions,BIKOLD,20/04/2023,251.71
"Communities, Customer & Commercial Services",Sport & Leisure,Supplies & Services,Provisions,BIKOLD,20/04/2023,136.24
"Communities, Customer & Commercial Services",Sport & Leisure,Supplies & Services,Provisions,BIKOLD,20/04/2023,119.56
"Communities, Customer & Commercial Services",Sport & Leisure,Supplies & Services,Provisions,BIKOLD,20/04/2023,112.39
"Communities, Customer & Commercial Services",Sport & Leisure,Supplies & Services,Provisions,BIKOLD,20/04/2023,186.24
"Communities, Customer & Commercial Services",Sport & Leisure,Supplies & Services,Provisions,BIKOLD,20/04/2023,494.28
"Communities, Customer & Commercial Services",Sport & Leisure,Supplies & Services,Provisions,BIKOLD,20/04/2023,171.26
"Communities, Customer & Commercial Services",Sport & Leisure,Supplies & Services,Provisions,BIKOLD,20/04/2023,876.01
"Communities, Customer & Commercial Services",Sport & Leisure,Supplies & Services,Provisions,BIKOLD,20/04/2023,140.14
"Communities, Customer & Commercial Services",Sport & Leisure,Supplies & Services,Provisions,BIKOLD,20/04/2023,161.67
"Communities, Customer & Commercial Services",Sport & Leisure,Supplies & Services,Provisions,BIKOLD,20/04/2023,143.13
"Communities, Customer & Commercial Services",Sport & Leisure,Supplies & Services,Provisions,BIKOLD,20/04/2023,159.44
"Communities, Customer & Commercial Services",Sport & Leisure,Supplies & Services,Provisions,BIKOLD,20/04/2023,359.25
"Communities, Customer & Commercial Services",Sport & Leisure,Supplies & Services,Provisions,BIKOLD,20/04/2023,186.08
"Communities, Customer & Commercial Services",Sport & Leisure,Supplies & Services,Provisions,BIKOLD,20/04/2023,119.69
"Communities, Customer & Commercial Services",Sport & Leisure,Supplies & Services,Provisions,BIKOLD,20/04/2023,187.28
"Communities, Customer & Commercial Services",Sport & Leisure,Supplies & Services,Provisions,BIKOLD,20/04/2023,200.69
"Communities, Customer & Commercial Services",Sport & Leisure,Supplies & Services,Provisions,BIKOLD,20/04/2023,141.31
"Communities, Customer & Commercial Services",Sport & Leisure,Supplies & Services,Provisions,BIKOLD,20/04/2023,122.16
"Communities, Customer & Commercial Services",Sport & Leisure,Supplies & Services,Provisions,BIKOLD,20/04/2023,137.71
"Communities, Customer & Commercial Services",Sport & Leisure,Supplies & Services,Provisions,BIKOLD,20/04/2023,421.85
"Communities, Customer & Commercial Services",Sport & Leisure,Supplies & Services,Provisions,BIKOLD,20/04/2023,243.29
"Communities, Customer & Commercial Services",Sport & Leisure,Supplies & Services,Provisions,BIKOLD,20/04/2023,181.89
"Communities, Customer & Commercial Services",Sport & Leisure,Supplies & Services,Provisions,BIKOLD,20/04/2023,349.4
"Communities, Customer & Commercial Services",Sport & Leisure,Supplies & Services,Provisions,BIKOLD,20/04/2023,921.69
"Communities, Customer & Commercial Services",Sport & Leisure,Supplies & Services,Provisions,BIKOLD,20/04/2023,126.76
"Communities, Customer & Commercial Services",Sport & Leisure,Supplies & Services,Provisions,BIKOLD,20/04/2023,503.7
"Communities, Customer & Commercial Services",Sport & Leisure,Supplies & Services,Provisions,BIKOLD,20/04/2023,106.86
"Communities, Customer & Commercial Services",Sport & Leisure,Supplies & Services,Provisions,BIKOLD,20/04/2023,336.17
"Communities, Customer & Commercial Services",Sport & Leisure,Supplies & Services,Provisions,BIKOLD,20/04/2023,159.81
"Communities, Customer & Commercial Services",Sport & Leisure,Supplies & Services,Provisions,BIKOLD,20/04/2023,170.13
"Communities, Customer & Commercial Services",Sport & Leisure,Supplies & Services,Provisions,BIKOLD,20/04/2023,161.58
"Communities, Customer & Commercial Services",Sport & Leisure,Supplies & Services,Provisions,BIKOLD,20/04/2023,113.83
"Communities, Customer & Commercial Services",Sport & Leisure,Supplies & Services,Provisions,BIKOLD,20/04/2023,211.52
"Communities, Customer & Commercial Services",Sport & Leisure,Supplies & Services,Provisions,BIKOLD,20/04/2023,242.76
"Communities, Customer & Commercial Services",Sport & Leisure,Supplies & Services,Provisions,R & COMPANY,25/04/2023,148.22
"Communities, Customer & Commercial Services",Sport & Leisure,Supplies & Services,Provisions,R & COMPANY,25/04/2023,222.81
"Communities, Customer & Commercial Services",Sport & Leisure,Supplies & Services,Provisions,R & COMPANY,25/04/2023,137.46
"Communities, Customer & Commercial Services",Sport & Leisure,Supplies & Services,Provisions,R & COMPANY,25/04/2023,203.98
"Communities, Customer & Commercial Services",Sport & Leisure,Supplies & Services,Provisions,R & COMPANY,25/04/2023,156.04
"Communities, Customer & Commercial Services",Sport & Leisure,Supplies & Services,Provisions,R & COMPANY,25/04/2023,164.01
"Communities, Customer & Commercial Services",Sport & Leisure,Supplies & Services,Provisions,R & COMPANY,25/04/2023,133.82
"Communities, Customer & Commercial Services",Sport & Leisure,Supplies & Services,Provisions,R & COMPANY,25/04/2023,274.46
"Communities, Customer & Commercial Services",Sport & Leisure,Supplies & Services,Provisions,R & COMPANY,25/04/2023,108.01
"Communities, Customer & Commercial Services",Sport & Leisure,Supplies & Services,Provisions,R & COMPANY,25/04/2023,134.47
"Communities, Customer & Commercial Services",Sport & Leisure,Supplies & Services,Provisions,R & COMPANY,25/04/2023,220.77
"Communities, Customer & Commercial Services",Sport & Leisure,Supplies & Services,Provisions,R & COMPANY,25/04/2023,169.51
"Communities, Customer & Commercial Services",Sport & Leisure,Supplies & Services,Provisions,R & COMPANY,25/04/2023,111.12
"Communities, Customer & Commercial Services",Sport & Leisure,Supplies & Services,Provisions,R & COMPANY,25/04/2023,110.74
"Communities, Customer & Commercial Services",Sport & Leisure,Supplies & Services,Provisions,R & COMPANY,25/04/2023,186.87
"Communities, Customer & Commercial Services",Sport & Leisure,Supplies & Services,Provisions,R & COMPANY,25/04/2023,106.65
"Communities, Customer & Commercial Services",Sport & Leisure,Supplies & Services,Provisions,R & COMPANY,25/04/2023,127.16
"Communities, Customer & Commercial Services",Sport & Leisure,Supplies & Services,Provisions,R & COMPANY,25/04/2023,111.6
"Communities, Customer & Commercial Services",Sport & Leisure,Supplies & Services,Provisions,R & COMPANY,25/04/2023,102.57
"Communities, Customer & Commercial Services",Sport & Leisure,Supplies & Services,Provisions,R & COMPANY,25/04/2023,310.53
"Communities, Customer & Commercial Services",Sport & Leisure,Supplies & Services,Provisions,R & COMPANY,25/04/2023,124.37
"Communities, Customer & Commercial Services",Sport & Leisure,Supplies & Services,Provisions,R & COMPANY,25/04/2023,239.48
"Communities, Customer & Commercial Services",Sport & Leisure,Supplies & Services,Provisions,R & COMPANY,25/04/2023,108.96
"Communities, Customer & Commercial Services",Sport & Leisure,Supplies & Services,Provisions,R & COMPANY,25/04/2023,218.67
"Communities, Customer & Commercial Services",Sport & Leisure,Supplies & Services,Provisions,R & COMPANY,25/04/2023,121.67
"Communities, Customer & Commercial Services",Sport & Leisure,Supplies & Services,Provisions,R & COMPANY,25/04/2023,158.59
"Communities, Customer & Commercial Services",Sport & Leisure,Supplies & Services,Provisions,R & COMPANY,25/04/2023,241.68
"Communities, Customer & Commercial Services",Sport & Leisure,Supplies & Services,Provisions,R & COMPANY,25/04/2023,105.87
"Communities, Customer & Commercial Services",Sport & Leisure,Supplies & Services,Provisions,R & COMPANY,25/04/2023,106
"Communities, Customer & Commercial Services",Sport & Leisure,Supplies & Services,Provisions,R & COMPANY,25/04/2023,153.89
"Communities, Customer & Commercial Services",Sport & Leisure,Supplies & Services,Provisions,R & COMPANY,25/04/2023,140.45
"Communities, Customer & Commercial Services",Sport & Leisure,Supplies & Services,Provisions,R & COMPANY,25/04/2023,125.08
"Communities, Customer & Commercial Services",Sport & Leisure,Supplies & Services,Provisions,R & COMPANY,25/04/2023,115.26
"Communities, Customer & Commercial Services",Sport & Leisure,Supplies & Services,Provisions,R & COMPANY,25/04/2023,107.52
"Communities, Customer & Commercial Services",Sport & Leisure,Supplies & Services,Provisions,R & COMPANY,25/04/2023,158.84
"Communities, Customer & Commercial Services",Sport & Leisure,Supplies & Services,Provisions,R & COMPANY,25/04/2023,140.48
"Communities, Customer & Commercial Services",Sport & Leisure,Supplies & Services,Provisions,R & COMPANY,25/04/2023,105.75
"Communities, Customer & Commercial Services",Sport & Leisure,Supplies & Services,Provisions,R & COMPANY,25/04/2023,117.38
"Communities, Customer & Commercial Services",Sport & Leisure,Supplies & Services,Provisions,R & COMPANY,25/04/2023,131.22
"Communities, Customer & Commercial Services",Sport & Leisure,Supplies & Services,Provisions,R & COMPANY,25/04/2023,148.29
"Communities, Customer & Commercial Services",Sport & Leisure,Supplies & Services,Provisions,J S Catering Butchers,27/04/2023,271.15
"Communities, Customer & Commercial Services",Sport & Leisure,Supplies & Services,Provisions,J S Catering Butchers,27/04/2023,110.4
"Communities, Customer & Commercial Services",Sport & Leisure,Supplies & Services,Provisions,J S Catering Butchers,27/04/2023,268.8
"Communities, Customer & Commercial Services",Sport & Leisure,Supplies & Services,Provisions,J S Catering Butchers,27/04/2023,147.2
"Communities, Customer & Commercial Services",Sport & Leisure,Supplies & Services,Provisions,J S Catering Butchers,27/04/2023,151.9
"Communities, Customer & Commercial Services",Sport & Leisure,Supplies & Services,Provisions,J S Catering Butchers,27/04/2023,133.9
"Communities, Customer & Commercial Services",Sport & Leisure,Supplies & Services,Provisions,J S Catering Butchers,27/04/2023,175
"Communities, Customer & Commercial Services",Sport & Leisure,Premises-Related Expenditure,Clean Mats & Toilet Requisites,PLANGLOW LTD,26/04/2023,316.39
"Communities, Customer & Commercial Services",Sport & Leisure,Premises-Related Expenditure,Clean Mats & Toilet Requisites,Border Janitorial Supplies Limited,26/04/2023,130.5
"Communities, Customer & Commercial Services",Sport & Leisure,Supplies & Services,Provisions,BIKOLD,28/04/2023,-159.12
"Communities, Customer & Commercial Services",Sport & Leisure,Supplies & Services,Provisions,BIKOLD,28/04/2023,242.57
"Communities, Customer & Commercial Services",Sport & Leisure,Supplies & Services,Provisions,BIKOLD,28/04/2023,110.75
"Communities, Customer & Commercial Services",Sport & Leisure,Supplies & Services,Provisions,BIKOLD,28/04/2023,159.12
"Communities, Customer & Commercial Services",Sport & Leisure,Supplies & Services,Provisions,BIKOLD,28/04/2023,720
"Communities, Customer & Commercial Services",Sport & Leisure,Supplies & Services,Provisions,BIKOLD,28/04/2023,106.69
"Communities, Customer & Commercial Services",Sport & Leisure,Supplies & Services,Provisions,BIKOLD,28/04/2023,308
"Communities, Customer & Commercial Services",Sport & Leisure,Supplies & Services,Provisions,BIKOLD,28/04/2023,184.41
"Communities, Customer & Commercial Services",Sport & Leisure,Supplies & Services,Provisions,BIKOLD,28/04/2023,693.38
"Communities, Customer & Commercial Services",Sport & Leisure,Supplies & Services,Provisions,BIKOLD,28/04/2023,903.59
"Communities, Customer & Commercial Services",Sport & Leisure,Supplies & Services,Provisions,BIKOLD,28/04/2023,314.04
"Communities, Customer & Commercial Services",Sport & Leisure,Supplies & Services,Provisions,BIKOLD,28/04/2023,112.9
"Communities, Customer & Commercial Services",Sport & Leisure,Supplies & Services,Provisions,BIKOLD,28/04/2023,212.16
"Communities, Customer & Commercial Services",Sport & Leisure,Supplies & Services,Provisions,BIKOLD,28/04/2023,773.88
"Communities, Customer & Commercial Services",Sport & Leisure,Supplies & Services,Provisions,BIKOLD,28/04/2023,234.87
"Communities, Customer & Commercial Services",Sport & Leisure,Supplies & Services,Provisions,BIKOLD,28/04/2023,193.48
"Communities, Customer & Commercial Services",Sport & Leisure,Supplies & Services,Provisions,BIKOLD,28/04/2023,1210.35
"Communities, Customer & Commercial Services",Sport & Leisure,Supplies & Services,Provisions,BIKOLD,28/04/2023,781.45
"Communities, Customer & Commercial Services",Sport & Leisure,Supplies & Services,Provisions,BIKOLD,28/04/2023,206.64
"Communities, Customer & Commercial Services",Sport & Leisure,Supplies & Services,Provisions,BIKOLD,28/04/2023,123.13
"Communities, Customer & Commercial Services",Sport & Leisure,Supplies & Services,Provisions,BIKOLD,28/04/2023,556.5
"Communities, Customer & Commercial Services",Sport & Leisure,Supplies & Services,Provisions,BIKOLD,28/04/2023,626.68
"Communities, Customer & Commercial Services",Sport & Leisure,Supplies & Services,Provisions,BIKOLD,28/04/2023,810.23
"Communities, Customer & Commercial Services",Sport & Leisure,Supplies & Services,Provisions,BIKOLD,28/04/2023,257.5
"Communities, Customer & Commercial Services",Sport & Leisure,Supplies & Services,Provisions,BIKOLD,28/04/2023,159.12
"Communities, Customer & Commercial Services",Sport & Leisure,Supplies & Services,Provisions,BIKOLD,28/04/2023,155.13
"Communities, Customer & Commercial Services",Sport & Leisure,Supplies & Services,Provisions,BIKOLD,28/04/2023,302.4
"Communities, Customer & Commercial Services",Sport & Leisure,Supplies & Services,Provisions,BIKOLD,28/04/2023,238.11
"Communities, Customer & Commercial Services",Sport & Leisure,Supplies & Services,Provisions,BIKOLD,11/04/2023,450.77
"Communities, Customer & Commercial Services",Sport & Leisure,Supplies & Services,Provisions,BIKOLD,11/04/2023,164.13
"Communities, Customer & Commercial Services",Sport & Leisure,Supplies & Services,Provisions,BIKOLD,11/04/2023,105
"Communities, Customer & Commercial Services",Sport & Leisure,Supplies & Services,Provisions,BIKOLD,11/04/2023,152.32
"Communities, Customer & Commercial Services",Sport & Leisure,Supplies & Services,Provisions,BIKOLD,11/04/2023,-134.78
"Communities, Customer & Commercial Services",Sport & Leisure,Supplies & Services,Provisions,BIKOLD,11/04/2023,256.5
"Communities, Customer & Commercial Services",Sport & Leisure,Supplies & Services,Provisions,BIKOLD,13/04/2023,126.14
"Communities, Customer & Commercial Services",Sport & Leisure,Supplies & Services,Provisions,J S Catering Butchers,03/04/2023,103.35
"Communities, Customer & Commercial Services",Sport & Leisure,Supplies & Services,Provisions,R & COMPANY,04/04/2023,132.12
"Communities, Customer & Commercial Services",Sport & Leisure,Supplies & Services,Provisions,BIKOLD,20/04/2023,280.16
"Communities, Customer & Commercial Services",Sport & Leisure,Supplies & Services,Provisions,BIKOLD,20/04/2023,185.24
"Communities, Customer & Commercial Services",Sport & Leisure,Supplies & Services,Provisions,BIKOLD,20/04/2023,574.75
"Communities, Customer & Commercial Services",Sport & Leisure,Supplies & Services,Provisions,BIKOLD,20/04/2023,1989.39
"Communities, Customer & Commercial Services",Sport & Leisure,Supplies & Services,Provisions,BIKOLD,20/04/2023,134.51
"Communities, Customer & Commercial Services",Sport & Leisure,Supplies & Services,Provisions,BIKOLD,20/04/2023,256.15
"Communities, Customer & Commercial Services",Sport & Leisure,Supplies & Services,Provisions,BIKOLD,20/04/2023,177.91
"Communities, Customer & Commercial Services",Sport & Leisure,Supplies & Services,Provisions,BIKOLD,20/04/2023,138.6
"Communities, Customer & Commercial Services",Sport & Leisure,Supplies & Services,Provisions,BIKOLD,20/04/2023,171.08
"Communities, Customer & Commercial Services",Sport & Leisure,Supplies & Services,Provisions,BIKOLD,20/04/2023,158.96
"Communities, Customer & Commercial Services",Sport & Leisure,Supplies & Services,Provisions,BIKOLD,20/04/2023,341.32
"Communities, Customer & Commercial Services",Sport & Leisure,Supplies & Services,Provisions,BIKOLD,20/04/2023,196.47
"Communities, Customer & Commercial Services",Sport & Leisure,Supplies & Services,Provisions,BIKOLD,20/04/2023,121.78
"Communities, Customer & Commercial Services",Sport & Leisure,Supplies & Services,Provisions,BIKOLD,20/04/2023,389.45
"Communities, Customer & Commercial Services",Sport & Leisure,Supplies & Services,Provisions,BIKOLD,20/04/2023,989.16
"Communities, Customer & Commercial Services",Sport & Leisure,Supplies & Services,Provisions,BIKOLD,20/04/2023,370.94
"Communities, Customer & Commercial Services",Sport & Leisure,Supplies & Services,Provisions,BIKOLD,20/04/2023,312.09
"Communities, Customer & Commercial Services",Sport & Leisure,Supplies & Services,Provisions,BIKOLD,20/04/2023,-459.6
"Communities, Customer & Commercial Services",Sport & Leisure,Supplies & Services,Provisions,BIKOLD,20/04/2023,192.35
"Communities, Customer & Commercial Services",Sport & Leisure,Supplies & Services,Provisions,BIKOLD,20/04/2023,506.41
"Communities, Customer & Commercial Services",Sport & Leisure,Supplies & Services,Provisions,BIKOLD,20/04/2023,254.71
"Communities, Customer & Commercial Services",Sport & Leisure,Supplies & Services,Provisions,BIKOLD,20/04/2023,262.65
"Communities, Customer & Commercial Services",Sport & Leisure,Supplies & Services,Provisions,BIKOLD,20/04/2023,460.63
"Communities, Customer & Commercial Services",Sport & Leisure,Supplies & Services,Provisions,BIKOLD,20/04/2023,262.68
"Communities, Customer & Commercial Services",Sport & Leisure,Supplies & Services,Provisions,BIKOLD,20/04/2023,886.86
"Communities, Customer & Commercial Services",Sport & Leisure,Supplies & Services,Provisions,BIKOLD,20/04/2023,245.04
"Communities, Customer & Commercial Services",Sport & Leisure,Supplies & Services,Provisions,BIKOLD,20/04/2023,182.21
"Communities, Customer & Commercial Services",Sport & Leisure,Supplies & Services,Provisions,BIKOLD,20/04/2023,799.43
"Communities, Customer & Commercial Services",Sport & Leisure,Supplies & Services,Provisions,R & COMPANY,25/04/2023,142.79
"Communities, Customer & Commercial Services",Sport & Leisure,Supplies & Services,Provisions,R & COMPANY,25/04/2023,251.81
"Communities, Customer & Commercial Services",Sport & Leisure,Supplies & Services,Provisions,R & COMPANY,25/04/2023,222.18
"Communities, Customer & Commercial Services",Sport & Leisure,Supplies & Services,Provisions,Handmade Speciality Products Ltd,26/04/2023,689.93
"Communities, Customer & Commercial Services",Sport & Leisure,Supplies & Services,Provisions,PASTA KING LIMITED,26/04/2023,300.48
"Communities, Customer & Commercial Services",Sport & Leisure,Supplies & Services,Provisions,PASTA KING LIMITED,26/04/2023,225.36
"Communities, Customer & Commercial Services",Sport & Leisure,Premises-Related Expenditure,Clean Mats & Toilet Requisites,Border Janitorial Supplies Limited,26/04/2023,285.44
"Communities, Customer & Commercial Services",Sport & Leisure,Premises-Related Expenditure,Clean Mats & Toilet Requisites,Border Janitorial Supplies Limited,26/04/2023,107.79
"Communities, Customer & Commercial Services",Sport & Leisure,Supplies & Services,Chemicals/Cleaning Products,Vortex Cleaning Ltd,05/04/2023,425
"Communities, Customer & Commercial Services",Sport & Leisure,Premises-Related Expenditure,Clean Mats & Toilet Requisites,Border Janitorial Supplies Limited,11/04/2023,282.38
"Communities, Customer & Commercial Services",Sport & Leisure,Premises-Related Expenditure,Clean Mats & Toilet Requisites,Border Janitorial Supplies Limited,24/04/2023,437.49
"Communities, Customer & Commercial Services",Sport & Leisure,Premises-Related Expenditure,Clean Mats & Toilet Requisites,Border Janitorial Supplies Limited,26/04/2023,239.39
"Communities, Customer & Commercial Services",Sport & Leisure,Premises-Related Expenditure,Clean Mats & Toilet Requisites,Border Janitorial Supplies Limited,03/04/2023,138.42
"Communities, Customer & Commercial Services",Sport & Leisure,Premises-Related Expenditure,Clean Mats & Toilet Requisites,Border Janitorial Supplies Limited,11/04/2023,105.79
"Communities, Customer & Commercial Services",Sport & Leisure,Premises-Related Expenditure,Clean Mats & Toilet Requisites,Border Janitorial Supplies Limited,11/04/2023,253
"Communities, Customer & Commercial Services",Sport & Leisure,Premises-Related Expenditure,Clean Mats & Toilet Requisites,Border Janitorial Supplies Limited,11/04/2023,125.92
"Communities, Customer & Commercial Services",Sport & Leisure,Employees,Training Expenses,ABCD,11/04/2023,299
"Communities, Customer & Commercial Services",Sport & Leisure,Supplies & Services,Equipment - Purchase,CCS MEDIA LIMITED,27/04/2023,143.94
"Communities, Customer & Commercial Services",Sport & Leisure,Supplies & Services,Confectionery & Snacks,THE CLEAN MACHINE DIRECT LTD,20/04/2023,179.7
"Communities, Customer & Commercial Services",Sport & Leisure,Premises-Related Expenditure,Clean Mats & Toilet Requisites,Border Janitorial Supplies Limited,05/04/2023,189.67
"Communities, Customer & Commercial Services",Sport & Leisure,Premises-Related Expenditure,Clean Mats & Toilet Requisites,Border Janitorial Supplies Limited,24/04/2023,211.54
"Communities, Customer & Commercial Services",Sport & Leisure,Premises-Related Expenditure,Clean Mats & Toilet Requisites,Border Janitorial Supplies Limited,24/04/2023,132.06
"Communities, Customer & Commercial Services",Sport & Leisure,Premises-Related Expenditure,Clean Mats & Toilet Requisites,Border Janitorial Supplies Limited,24/04/2023,247.5
"Communities, Customer & Commercial Services",Sport & Leisure,Premises-Related Expenditure,Clean Mats & Toilet Requisites,Border Janitorial Supplies Limited,21/04/2023,155.35
"Communities, Customer & Commercial Services",Sport & Leisure,Premises-Related Expenditure,Clean Mats & Toilet Requisites,Border Janitorial Supplies Limited,24/04/2023,775.06
"Communities, Customer & Commercial Services",Sport & Leisure,Premises-Related Expenditure,R&M -Building Other,COOL SERVICES LTD,28/04/2023,288.79
"Communities, Customer & Commercial Services",Sport & Leisure,Supplies & Services,Crockery/Hardware/Light Equip,Vegware,26/04/2023,280.88
"Communities, Customer & Commercial Services",Sport & Leisure,Premises-Related Expenditure,Electricity,West Mercia Energy ,25/04/2023,501.5
"Communities, Customer & Commercial Services",Sport & Leisure,Supplies & Services,Sub Contractors,HAGS-SMP LTD,14/04/2023,3321.14
"Communities, Customer & Commercial Services",Sport & Leisure,Supplies & Services,Sub Contractors,GRANVILLE CONSTRUCTION & MAINTENANCE LTD,14/04/2023,2200
"Communities, Customer & Commercial Services",Sport & Leisure,Supplies & Services,Sub Contractors,GRANVILLE CONSTRUCTION & MAINTENANCE LTD,14/04/2023,2705
"Communities, Customer & Commercial Services",Sport & Leisure,Supplies & Services,Sub Contractors,SIGNS EXPRESS,14/04/2023,105
"Communities, Customer & Commercial Services",Sport & Leisure,Supplies & Services,Sub Contractors,BUSINESS WATCH GUARDING LIMITED,12/04/2023,264.74
"Communities, Customer & Commercial Services",Sport & Leisure,Supplies & Services,Sub Contractors,Waterplay Solutions Limited,03/04/2023,2046
"Communities, Customer & Commercial Services",Sport & Leisure,Supplies & Services,Sub Contractors,Waterplay Solutions Limited,03/04/2023,2950
"Communities, Customer & Commercial Services",Sport & Leisure,Supplies & Services,Sub Contractors,Midland Playscape,04/04/2023,526.83
"Communities, Customer & Commercial Services",Sport & Leisure,Supplies & Services,Sub Contractors,JCE & SONS LTD,26/04/2023,145.82
"Communities, Customer & Commercial Services",Sport & Leisure,Transport-Related Expenditure,District Council Vehicles,C STORES LTD,04/04/2023,2216.86
"Communities, Customer & Commercial Services",Sport & Leisure,Employees,Staff Training,INSTITUTE OF SWIMMING ,05/04/2023,375
"Communities, Customer & Commercial Services",Sport & Leisure,Employees,Staff Training,RLSS UK,04/04/2023,948
"Communities, Customer & Commercial Services",Sport & Leisure,Supplies & Services,Payment Of Income Collected,ABRAHAM DARBY ACADEMY ,27/04/2023,5905
"Communities, Customer & Commercial Services",Sport & Leisure,Employees,Staff Training,Brightstar Futures Ltd,17/04/2023,288
"Communities, Customer & Commercial Services",Sport & Leisure,Supplies & Services,Equipment - Purchase,J P L LTD,05/04/2023,406.65
"Communities, Customer & Commercial Services",Sport & Leisure,Supplies & Services,Financial Services,DEBIT FINANCE COLLECTIONS ,06/04/2023,166.34
"Communities, Customer & Commercial Services",Sport & Leisure,Supplies & Services,Financial Services,DEBIT FINANCE COLLECTIONS ,06/04/2023,315.94
"Communities, Customer & Commercial Services",Sport & Leisure,Supplies & Services,Licences,L M Fitness UK Ltd,27/04/2023,1045
"Communities, Customer & Commercial Services",Sport & Leisure,Supplies & Services,Equipment - Purchase,SKIPS TELFORD LTD,27/04/2023,135
"Communities, Customer & Commercial Services",Sport & Leisure,Supplies & Services,Chemicals/Cleaning Products,Border Janitorial Supplies Limited,11/04/2023,512.86
"Communities, Customer & Commercial Services",Sport & Leisure,Supplies & Services,Chemicals/Cleaning Products,BRENNTAG UK LIMITED,14/04/2023,713.6
"Communities, Customer & Commercial Services",Sport & Leisure,Supplies & Services,Equipment - Purchase,J P L LTD,20/04/2023,156.69
"Communities, Customer & Commercial Services",Sport & Leisure,Supplies & Services,Chemicals/Cleaning Products,BRENNTAG UK LIMITED,28/04/2023,309
"Communities, Customer & Commercial Services",Sport & Leisure,Premises-Related Expenditure,R&M -Building Other,Envirosport Maintenance Limited,06/04/2023,495
"Communities, Customer & Commercial Services",Sport & Leisure,Premises-Related Expenditure,R&M -Building Other,Envirosport Maintenance Limited,13/04/2023,240
"Communities, Customer & Commercial Services",Sport & Leisure,Supplies & Services,Financial Services,DEBIT FINANCE COLLECTIONS ,06/04/2023,374.58
"Communities, Customer & Commercial Services",Sport & Leisure,Supplies & Services,Equipment - Purchase,J P L LTD,20/04/2023,340
"Communities, Customer & Commercial Services",Sport & Leisure,Supplies & Services,Financial Services,DEBIT FINANCE COLLECTIONS,06/04/2023,169.2
"Communities, Customer & Commercial Services",Sport & Leisure,Supplies & Services,Equipment - Purchase,GRANVILLE CONSTRUCTION & MAINTENANCE LTD,06/04/2023,271.71
"Communities, Customer & Commercial Services",Sport & Leisure,Supplies & Services,Equipment - Purchase,EB Sports Ltd,19/04/2023,750
"Communities, Customer & Commercial Services",Sport & Leisure,Supplies & Services,Equipment - Purchase,EB Sports Ltd,19/04/2023,450
"Communities, Customer & Commercial Services",Sport & Leisure,Supplies & Services,Equipment - Purchase,We Do Tennis CIC,20/04/2023,2200
"Communities, Customer & Commercial Services",Sport & Leisure,Employees,Staff Training,Cleara Consulting Limited trading as Clear Debit,17/04/2023,900
"Communities, Customer & Commercial Services",Sport & Leisure,Supplies & Services,Research Surveys,Bramble Hub Limited,17/04/2023,1332.93
"Communities, Customer & Commercial Services",Sport & Leisure,Supplies & Services,Research Surveys,Max Associates Ltd,04/04/2023,4485
"Communities, Customer & Commercial Services",Sport & Leisure,Supplies & Services,Flex Charges,Verifone UK Limited,26/04/2023,322.5
"Communities, Customer & Commercial Services",Sport & Leisure,Supplies & Services,Flex Charges,Verifone UK Limited,26/04/2023,297.5
"Communities, Customer & Commercial Services",Sport & Leisure,Supplies & Services,Registration / Licence Fees,Cascade3D,18/04/2023,327
"Communities, Customer & Commercial Services",Sport & Leisure,Supplies & Services,Financial Services,DEBIT FINANCE COLLECTIONS,06/04/2023,237.42
"Communities, Customer & Commercial Services",Sport & Leisure,Supplies & Services,Equipment - Purchase,Rangeball UK LTD,27/04/2023,1965
"Communities, Customer & Commercial Services",Sport & Leisure,Supplies & Services,Equipment - Hire,OAKLEYS LTD,17/04/2023,639.98
"Communities, Customer & Commercial Services",Sport & Leisure,Supplies & Services,Equipment - Purchase,Rangeball UK LTD,03/04/2023,229.95
"Communities, Customer & Commercial Services",Sport & Leisure,Supplies & Services,Equipment - Purchase,CMW Equipment Holdings Limited,03/04/2023,1922.75
"Communities, Customer & Commercial Services",Sport & Leisure,Supplies & Services,Provisions,BIKOLD,28/04/2023,575.96
"Communities, Customer & Commercial Services",Sport & Leisure,Supplies & Services,Provisions,BIKOLD,28/04/2023,366.22
"Communities, Customer & Commercial Services",Sport & Leisure,Supplies & Services,Provisions,BIKOLD,28/04/2023,129.32
"Communities, Customer & Commercial Services",Sport & Leisure,Supplies & Services,Provisions,BIKOLD,28/04/2023,724.37
"Communities, Customer & Commercial Services",Sport & Leisure,Supplies & Services,Provisions,BIKOLD,11/04/2023,283.22
"Communities, Customer & Commercial Services",Sport & Leisure,Supplies & Services,Provisions,BIKOLD,11/04/2023,577.51
"Communities, Customer & Commercial Services",Sport & Leisure,Supplies & Services,Provisions,BIKOLD,11/04/2023,188.46
"Communities, Customer & Commercial Services",Sport & Leisure,Supplies & Services,Provisions,BIKOLD,11/04/2023,202.13
"Communities, Customer & Commercial Services",Sport & Leisure,Supplies & Services,Provisions,BIKOLD,11/04/2023,339.78
"Communities, Customer & Commercial Services",Sport & Leisure,Supplies & Services,Provisions,BIKOLD,13/04/2023,363.02
"Communities, Customer & Commercial Services",Sport & Leisure,Supplies & Services,Provisions,BIKOLD,13/04/2023,397.65
"Communities, Customer & Commercial Services",Sport & Leisure,Supplies & Services,Provisions,BIKOLD,13/04/2023,165.82
"Communities, Customer & Commercial Services",Sport & Leisure,Supplies & Services,Provisions,BIKOLD,13/04/2023,269.47
"Communities, Customer & Commercial Services",Sport & Leisure,Supplies & Services,Provisions,BIKOLD,13/04/2023,119.44
"Communities, Customer & Commercial Services",Sport & Leisure,Supplies & Services,Provisions,BIKOLD,13/04/2023,286.64
"Communities, Customer & Commercial Services",Sport & Leisure,Supplies & Services,Provisions,BIKOLD,20/04/2023,125.65
"Communities, Customer & Commercial Services",Sport & Leisure,Supplies & Services,Provisions,BIKOLD,20/04/2023,104.48
"Communities, Customer & Commercial Services",Sport & Leisure,Supplies & Services,Payment Of Income Collected,Telford Tigers Limited,17/04/2023,8567.04
"Communities, Customer & Commercial Services",Sport & Leisure,Supplies & Services,Payment Of Income Collected,Telford Tigers Limited,04/04/2023,6910.08
"Communities, Customer & Commercial Services",Sport & Leisure,Supplies & Services,Payment Of Income Collected,Telford Tigers Limited,18/04/2023,2325.83
"Communities, Customer & Commercial Services",Sport & Leisure,Supplies & Services,Equipment - Hire,SLIDERS SKATE SHOP,04/04/2023,142
"Communities, Customer & Commercial Services",Sport & Leisure,Supplies & Services,Financial Services,DEBIT FINANCE COLLECTIONS,06/04/2023,300.94
"Communities, Customer & Commercial Services",Sport & Leisure,Supplies & Services,Financial Services,DEBIT FINANCE COLLECTIONS,06/04/2023,144.52
"Communities, Customer & Commercial Services",Sport & Leisure,Supplies & Services,Equipment - Purchase,RLSS UK Enterprises Ltd,17/04/2023,258
"Communities, Customer & Commercial Services",Sport & Leisure,Supplies & Services,Equipment - Purchase,RLSS UK Enterprises Ltd,28/04/2023,180
"Communities, Customer & Commercial Services",Sport & Leisure,Supplies & Services,Equipment - Purchase,RLSS UK Enterprises Ltd,28/04/2023,238
"Communities, Customer & Commercial Services",Sport & Leisure,Supplies & Services,Protective Clothing,J P L LTD,04/04/2023,160
"Communities, Customer & Commercial Services",Sport & Leisure,Supplies & Services,Protective Clothing,J P L LTD,04/04/2023,240
"Communities, Customer & Commercial Services",Sport & Leisure,Premises-Related Expenditure,R&M - Mechanical,C LTD,25/04/2023,117.72
"Communities, Customer & Commercial Services",Sport & Leisure,Supplies & Services,Financial Services,DEBIT FINANCE COLLECTIONS ,06/04/2023,588.02
"Communities, Customer & Commercial Services",Sport & Leisure,Supplies & Services,Licences,L M Fitness UK Ltd,20/04/2023,1045
"Communities, Customer & Commercial Services",Sport & Leisure,Supplies & Services,Financial Services,DEBIT FINANCE COLLECTIONS ,06/04/2023,197.8
"Communities, Customer & Commercial Services",Sport & Leisure,Supplies & Services,Chemicals/Cleaning Products,BRENNTAG UK LIMITED,27/04/2023,272
"Communities, Customer & Commercial Services",Sport & Leisure,Supplies & Services,Chemicals/Cleaning Products,BRENNTAG UK LIMITED,27/04/2023,2111.12
"Communities, Customer & Commercial Services",Sport & Leisure,Supplies & Services,Equipment - Purchase,Shoretan Leisure,11/04/2023,211.24
Corporate Communications,Communications & Marketing,Supplies & Services,Graphic Design Charges,EMERGE DESIGN LTD,05/04/2023,396
Corporate Communications,Communications & Marketing,Supplies & Services,Subscriptions,AIMediaData Limited,12/04/2023,3205.65
Corporate Communications,Communications & Marketing,Supplies & Services,Subscriptions,LGCOMMS,12/04/2023,250
Corporate Communications,Communications & Marketing,Supplies & Services,Licences,NEWSPAPER LICENSING AGENCY LIMITED,12/04/2023,5938.4
Corporate Communications,Communications & Marketing,Capital Expenditure,Other Capital Expenditure,EPS  LTD,05/04/2023,450
Corporate Communications,Communications & Marketing,Capital Expenditure,Other Capital Expenditure,SIGNS EXPRESS ,05/04/2023,2000
Corporate Communications,Communications & Marketing,Capital Expenditure,Other Capital Expenditure,SIGNS EXPRESS ,25/04/2023,1173.4
Corporate Communications,Communications & Marketing,Capital Expenditure,Other Capital Expenditure,SIGNS EXPRESS ,27/04/2023,251.2
Corporate Communications,Communications & Marketing,Capital Expenditure,Other Capital Expenditure,SIGNS EXPRESS ,12/04/2023,2174.6
Corporate Items,Corporate Codes,Capital Financing Costs,Unitary Charge,PYRAMID SCHOOLS LTD,06/04/2023,1005653.64
Corporate Items,Corporate Codes,Employees,Agency Supply Costs,Matrix SCM,28/04/2023,39622.27
Corporate Items,Corporate Codes,Employees,Agency Supply Costs,Matrix SCM,14/04/2023,40903.02
Corporate Items,Corporate Codes,Employees,Agency Supply Costs,Matrix SCM,06/04/2023,45289.23
Corporate Items,Corporate Codes,Premises-Related Expenditure,Hire Of Rooms,Telford and Wrekin Interfaith Council,04/04/2023,110
Corporate Items,Corporate Codes,Premises-Related Expenditure,Hire Of Rooms,Sutton Hill Community Trust,27/04/2023,126.5
Corporate Items,Corporate Codes,Supplies & Services,Other Expenses,Association of British Professional Conference Organisers,11/04/2023,5000
Education & Skills,Consultancy & Advisory Services,Premises-Related Expenditure,Hire Of Rooms,Mercure Telford Centre Hotel,19/04/2023,120.83
Education & Skills,Consultancy & Advisory Services,Supplies & Services,Training Costs - Participants Recharged,Mercure Telford Centre Hotel,19/04/2023,315.35
Education & Skills,Consultancy & Advisory Services,Premises-Related Expenditure,Hire Of Rooms,MEETING POINT TRUST LTD,03/04/2023,230
Education & Skills,Consultancy & Advisory Services,Employees,Course Fees,Midlands Partnership NHS Foundation Trust,20/04/2023,11130
Education & Skills,Education & Skills,Capital Expenditure,Payments to Contractor,P LTD,27/04/2023,5035
Education & Skills,Education & Skills,Capital Expenditure,Legal Fees,W H SOLICITORS,13/04/2023,152
Education & Skills,Education & Skills,Capital Expenditure,Legal Fees,FREETHS LLP,28/04/2023,729.4
Education & Skills,Education & Skills,Capital Expenditure,Legal Fees,W H SOLICITORS,13/04/2023,395.2
Education & Skills,Education & Skills,Capital Expenditure,Payments to Contractor,SGS United Kingdom Limited,04/04/2023,150
Education & Skills,Education & Skills,Capital Expenditure,Payments to Contractor,SGS United Kingdom Limited,21/04/2023,150
Education & Skills,Education & Skills,Capital Expenditure,Payments to Contractor,R G STONES LTD,24/04/2023,7839.6
Education & Skills,Education & Skills,Capital Expenditure,Payments to Contractor,T MECHANICAL H & P SERVICES LTD,27/04/2023,3000
Education & Skills,Education & Skills,Capital Expenditure,Payments to Contractor,GRANVILLE CONSTRUCTION & MAINTENANCE LTD,27/04/2023,6720
Education & Skills,Education & Skills,Capital Expenditure,Payments to Contractor,GRANVILLE CONSTRUCTION & MAINTENANCE LTD,27/04/2023,4243.16
Education & Skills,Education & Skills,Capital Expenditure,Payments to Contractor,Redacted Personal information,18/04/2023,400
Education & Skills,Education & Skills,Capital Expenditure,Payments to Contractor,T MECHANICAL H & P SERVICES LTD,25/04/2023,937.25
Education & Skills,Education & Skills,Capital Expenditure,Payments to Contractor,Pumpforce Ltd,21/04/2023,22746.16
Education & Skills,Education & Skills,Capital Expenditure,Payments to Contractor,T MECHANICAL H & P SERVICES LTD,24/04/2023,3817.21
Education & Skills,Education & Skills,Capital Expenditure,Payments to Contractor,T MECHANICAL H & P SERVICES LTD,24/04/2023,3610
Education & Skills,Education & Skills,Capital Expenditure,Payments to Contractor,T MECHANICAL H & P SERVICES LTD,24/04/2023,1379.59
Education & Skills,Education & Skills,Capital Expenditure,Payments to Contractor,T MECHANICAL H & P SERVICES LTD,21/04/2023,1125
Education & Skills,Education & Skills,Capital Expenditure,Payments to Contractor,T MECHANICAL H & P SERVICES LTD,21/04/2023,362.68
Education & Skills,Education & Skills,Capital Expenditure,Payments to Contractor,T MECHANICAL H & P SERVICES LTD,21/04/2023,708.76
Education & Skills,Education & Skills,Capital Expenditure,Payments to Contractor,T MECHANICAL H & P SERVICES LTD,21/04/2023,590.87
Education & Skills,Education & Skills,Capital Expenditure,Payments to Contractor,T MECHANICAL H & P SERVICES LTD,21/04/2023,950
Education & Skills,Pupil Support Services,Third Party Payments,Misc. Education Payments to Non Schools,Chalkline Education & Support Ltd,05/04/2023,5350
Education & Skills,Pupil Support Services,Supplies & Services,Other Grants (Expenses),CAT - Telford Priory School,11/04/2023,5511.8
Education & Skills,Pupil Support Services,Supplies & Services,Other Grants (Expenses),PODS,05/04/2023,1500
Education & Skills,Pupil Support Services,Supplies & Services,Comp Software (Purch / Hire),Sing Up,18/04/2023,415
Education & Skills,Pupil Support Services,Supplies & Services,Instructors Fees,Entrust Support Services Ltd,27/04/2023,1056
Education & Skills,Pupil Support Services,Supplies & Services,Instructors Fees,Entrust Support Services Ltd,27/04/2023,3168
Education & Skills,Pupil Support Services,Supplies & Services,Instructors Fees,Entrust Support Services Ltd,27/04/2023,1584
Education & Skills,Pupil Support Services,Supplies & Services,Instructors Fees,Entrust Support Services Ltd,27/04/2023,1056
Education & Skills,Pupil Support Services,Supplies & Services,Instructors Fees,Entrust Support Services Ltd,27/04/2023,1056
Education & Skills,Pupil Support Services,Supplies & Services,Subscriptions,THE UK ASSOCIATION  FOR MUSIC EDUCATION ,27/04/2023,675
Education & Skills,Pupil Support Services,Supplies & Services,Subscriptions,THE UK ASSOCIATION  FOR MUSIC EDUCATION ,27/04/2023,200
Education & Skills,SEND (0-25),Transport-Related Expenditure,Taxi Costs,365 Transports Ltd,27/04/2023,1540
Education & Skills,SEND (0-25),Transport-Related Expenditure,Taxi Costs,24X7 Ltd,27/04/2023,6555.15
Education & Skills,SEND (0-25),Transport-Related Expenditure,Taxi Costs,Telford Taxi Hire Limited,20/04/2023,1690
Education & Skills,SEND (0-25),Transport-Related Expenditure,Taxi Costs,Go Carz,27/04/2023,400
Education & Skills,SEND (0-25),Transport-Related Expenditure,Taxi Costs,24X7 Ltd,27/04/2023,664.26
Education & Skills,SEND (0-25),Transport-Related Expenditure,Taxi Costs,Telford Taxi Hire Limited,20/04/2023,4620
Education & Skills,SEND (0-25),Transport-Related Expenditure,Taxi Costs,Telford Taxi Hire Limited,20/04/2023,4840
Education & Skills,SEND (0-25),Transport-Related Expenditure,Taxi Costs,Telford and Wrekin Community Enterprise LTD,20/04/2023,2352
Education & Skills,SEND (0-25),Transport-Related Expenditure,Taxi Costs,Telford and Wrekin Community Enterprise LTD,20/04/2023,1408
Education & Skills,SEND (0-25),Transport-Related Expenditure,Taxi Costs,Telford Taxi Hire Limited,20/04/2023,3230
Education & Skills,SEND (0-25),Transport-Related Expenditure,Taxi Costs,Telford Taxi Hire Limited,20/04/2023,1100
Education & Skills,SEND (0-25),Transport-Related Expenditure,Taxi Costs,Telford Taxi Hire Limited,20/04/2023,5940
Education & Skills,SEND (0-25),Transport-Related Expenditure,Transport Contractors,Telford Taxi Hire Limited,20/04/2023,5040
Education & Skills,SEND (0-25),Transport-Related Expenditure,Transport Contractors,A-STAR TRANSPORT MIDLANDS LTD,13/04/2023,7475
Education & Skills,SEND (0-25),Transport-Related Expenditure,Taxi Costs,AB & CA H,13/04/2023,4687.4
Education & Skills,SEND (0-25),Transport-Related Expenditure,Taxi Costs,A-STAR TRANSPORT MIDLANDS LTD,13/04/2023,3496
Education & Skills,SEND (0-25),Transport-Related Expenditure,Taxi Costs, Go Carz,27/04/2023,721
Education & Skills,SEND (0-25),Transport-Related Expenditure,Season Tickets,ARRIVA MIDLANDS LTD,26/04/2023,200
Education & Skills,SEND (0-25),Transport-Related Expenditure,Taxi Costs,24X7 Ltd,26/04/2023,774.97
Education & Skills,SEND (0-25),Transport-Related Expenditure,Taxi Costs,Go Carz,26/04/2023,817.4
Education & Skills,SEND (0-25),Transport-Related Expenditure,Taxi Costs,Go Carz,26/04/2023,375
Education & Skills,SEND (0-25),Transport-Related Expenditure,Taxi Costs,24X7 Ltd,26/04/2023,5179.37
Education & Skills,SEND (0-25),Supplies & Services,Materials,I CAN CHARITY,11/04/2023,2275
Education & Skills,SEND (0-25),Employees,Course Fees,NATIONAL AUTISTIC  SOCIETY,11/04/2023,6225
Education & Skills,SEND (0-25),Employees,Course Fees,MEETING POINT TRUST LTD,06/04/2023,140
Education & Skills,SEND (0-25),Third Party Payments,DSG - High Needs Block,Queensway HLC,13/04/2023,16522.63
Education & Skills,SEND (0-25),Third Party Payments,DSG - High Needs Block,Queensway HLC,13/04/2023,6731.88
Education & Skills,SEND (0-25),Supplies & Services,Respite Care,Physis Quantum Ltd,13/04/2023,15405
Education & Skills,SEND (0-25),Third Party Payments,DSG - High Needs Block,Acorn Education & Care Ltd,06/04/2023,36405.64
Education & Skills,SEND (0-25),Third Party Payments,DSG - High Needs Block,Active Young People Ltd,03/04/2023,1925
Education & Skills,SEND (0-25),Third Party Payments,DSG - High Needs Block,Acorn Education & Care Ltd,17/04/2023,19532.02
Education & Skills,SEND (0-25),Third Party Payments,DSG - High Needs Block,Acorn Care & Education Ltd,17/04/2023,9928.78
Education & Skills,SEND (0-25),Third Party Payments,DSG - High Needs Block,Keys PCE Limited,17/04/2023,3910
Education & Skills,SEND (0-25),Third Party Payments,DSG - High Needs Block,Pine Green Academy,06/04/2023,13029.54
Education & Skills,SEND (0-25),Third Party Payments,DSG - High Needs Block,HALESFIELD DAY NURSERY CENTRE,13/04/2023,372.14
Education & Skills,SEND (0-25),Third Party Payments,DSG - High Needs Block,Lawley Village Day Nursery,13/04/2023,386.45
Education & Skills,SEND (0-25),Third Party Payments,DSG - High Needs Block,ABC DAY NURSERY HOLLINSWOOD ,13/04/2023,721.37
Education & Skills,SEND (0-25),Third Party Payments,DSG - High Needs Block,HADLEY UNDER 5'S,13/04/2023,3991.89
Education & Skills,SEND (0-25),Third Party Payments,DSG - High Needs Block,TIGGY'S MONTESSORI NURSERY,13/04/2023,263.36
Education & Skills,SEND (0-25),Employees,Agency Supply Costs,Guide Dogs for the Blind,06/04/2023,2538.73
Education & Skills,SEND (0-25),Supplies & Services,Equipment - Purchase,CONNEVANS LIMITED,21/04/2023,453
Education & Skills,SEND (0-25),Supplies & Services,Equipment - Purchase,CONNEVANS LIMITED,21/04/2023,153.9
Education & Skills,SEND (0-25),Third Party Payments,DSG - High Needs Block,Charlton Academy,13/04/2023,2274.82
Education & Skills,SEND (0-25),Third Party Payments,DSG - High Needs Block,Crudgington Primary School,13/04/2023,145.99
Education & Skills,SEND (0-25),Third Party Payments,DSG - High Needs Block,ABRAHAM DARBY ACADEMY ,13/04/2023,7412.23
Education & Skills,SEND (0-25),Third Party Payments,DSG - High Needs Block,Hadley Learning Community Academy,13/04/2023,296.28
Education & Skills,SEND (0-25),Third Party Payments,DSG - High Needs Block,MADELEY ACADEMY TRUST LTD,13/04/2023,143.13
Education & Skills,SEND (0-25),Third Party Payments,DSG - High Needs Block,Lawley Village Academy,13/04/2023,824.43
Education & Skills,SEND (0-25),Third Party Payments,DSG - High Needs Block,Redhill Primary Academy,13/04/2023,134.54
Education & Skills,SEND (0-25),Third Party Payments,DSG - High Needs Block,Telford Park School,13/04/2023,927.48
Education & Skills,SEND (0-25),Third Party Payments,DSG - High Needs Block,CAT - Telford Priory School,13/04/2023,1056.3
Education & Skills,SEND (0-25),Third Party Payments,DSG - High Needs Block,Dawley C of E Primary Academy,13/04/2023,334.92
Education & Skills,SEND (0-25),Third Party Payments,DSG - High Needs Block,Grange Park Primary School - Community Academies Trust,13/04/2023,1545.81
Education & Skills,SEND (0-25),Third Party Payments,DSG - High Needs Block,Windmill Primary School Academy,13/04/2023,4352.95
Education & Skills,SEND (0-25),Third Party Payments,DSG - High Needs Block,Hadley Learning Community Academy,13/04/2023,1803.44
Education & Skills,SEND (0-25),Supplies & Services,Health & Safety Expenses,Jiraffe,28/04/2023,2549.8
Education & Skills,SEND (0-25),Third Party Payments,DSG - High Needs Block,Grange Park Primary School - Community Academies Trust,13/04/2023,423.67
Education & Skills,SEND (0-25),Third Party Payments,DSG - High Needs Block,ABRAHAM DARBY ACADEMY,13/04/2023,395.04
Education & Skills,SEND (0-25),Third Party Payments,DSG - High Needs Block,PRIORSLEE ACADEMY,13/04/2023,349.24
Education & Skills,SEND (0-25),Third Party Payments,DSG - High Needs Block,Windmill Primary School Academy,13/04/2023,1167.94
Education & Skills,SEND (0-25),Third Party Payments,DSG - High Needs Block,Lawley Village Academy,13/04/2023,405.48
Education & Skills,Skills,Employees,Course Fees,UNIVERSITY OF WOLVERHAMPTON ,12/04/2023,3050
Education & Skills,Skills,Premises-Related Expenditure,Hire Of Rooms,DONNINGTON PARTNERSHIP,13/04/2023,362
Education & Skills,Skills,Premises-Related Expenditure,Hire Of Rooms,CGP Books,12/04/2023,152.7
Education & Skills,Skills,Premises-Related Expenditure,Hire Of Rooms,CGP Books,12/04/2023,681.5
Education & Skills,Skills,Premises-Related Expenditure,Hire Of Rooms,Brookside Central,12/04/2023,198
Education & Skills,Skills,Premises-Related Expenditure,Hire Of Rooms,OAKENGATES TOWN COUNCIL,12/04/2023,330
Education & Skills,Skills,Premises-Related Expenditure,Hire Of Rooms,OAKENGATES TOWN COUNCIL,12/04/2023,412.5
Education & Skills,Skills,Premises-Related Expenditure,Hire Of Rooms,Brookside Central,12/04/2023,330
Education & Skills,Skills,Premises-Related Expenditure,Hire Of Rooms,KETLEY PARISH COUNCIL,12/04/2023,195
Education & Skills,Skills,Premises-Related Expenditure,Hire Of Rooms,PARK LANE CENTRE,12/04/2023,220
Education & Skills,Skills,Premises-Related Expenditure,Hire Of Rooms,PARK LANE CENTRE,12/04/2023,220
Education & Skills,Skills,Premises-Related Expenditure,Hire Of Rooms,The Leegate Centre CIC,12/04/2023,300
Education & Skills,Skills,Premises-Related Expenditure,Hire Of Rooms,Brookside Central,12/04/2023,360
Education & Skills,Skills,Supplies & Services,Exam Fees,CITY & GUILDS,12/04/2023,187.5
Education & Skills,Skills,Supplies & Services,Consumable Stores,International Management Answers Ltd.,12/04/2023,438.8
Education & Skills,Skills,Supplies & Services,Consumable Stores,International Management Answers Ltd.,12/04/2023,907
Education & Skills,Skills,Supplies & Services,Hospitality,COUNTRY FOOD & DINING LTD,12/04/2023,280
Education & Skills,Skills,Supplies & Services,Exam Fees,AIM Qualifications and Assessment Group,14/04/2023,307.5
Education & Skills,Skills,Third Party Payments,Childminders,CHILDCARE SOS,14/04/2023,992
Education & Skills,Skills,Third Party Payments,Childminders,CHILDCARE SOS,14/04/2023,932
Education & Skills,Skills,Third Party Payments,Childminders,CHILDCARE SOS,14/04/2023,288
Education & Skills,Skills,Employees,Course Fees,QUALSAFE.COM,17/04/2023,205
Education & Skills,Skills,Employees,Staff Training,Always Consult Ltd,27/04/2023,3425
Education & Skills,Skills,Supplies & Services,Marketing & Publicity,ADGIFTDISCOUNTS,17/04/2023,2057.5
Education & Skills,Skills,Supplies & Services,Sub Contractors,TELFORD COLLEGE,12/04/2023,5000
Education & Skills,Skills,Premises-Related Expenditure,Hire Of Rooms,TELFORD INTERNATIONAL CENTRE,12/04/2023,1916
Education & Skills,Skills,Premises-Related Expenditure,Hire Of Rooms,TELFORD INTERNATIONAL CENTRE,12/04/2023,601.5
Education & Skills,Skills,Premises-Related Expenditure,Hire Of Rooms,TELFORD INTERNATIONAL CENTRE,12/04/2023,480
Finance & Human Resources,Finance,Supplies & Services,External Audit Fees,CABINET OFFICE,13/04/2023,3810
Finance & Human Resources,"Finance Manager (Business, Education & Care)",Employees,Staff Training,Severn Financial Training,12/04/2023,1875
Finance & Human Resources,Finance Manager (Corporate & Capital),Supplies & Services,Advertising,THE MIDLAND NEWS ASSOCIATION LTD,14/04/2023,145.17
Finance & Human Resources,Finance Manager (Corporate & Capital),Supplies & Services,Subscriptions,CIPFA BUSINESS LTD,03/04/2023,4920
Finance & Human Resources,Human Resources,Employees,Criminal Records Bureau Checks,DISCLOSURE & BARRING SERVICE,05/04/2023,9510
Finance & Human Resources,Human Resources,Supplies & Services,Doctors Fees,SHROPSHIRE COMMUNITY HEALTH NHS TRUST,25/04/2023,450
Finance & Human Resources,Human Resources,Supplies & Services,Doctors Fees,DAWLEY MEDICAL PRACTICES,05/04/2023,133
Finance & Human Resources,Human Resources,Supplies & Services,Doctors Fees,SHROPSHIRE COMMUNITY HEALTH NHS TRUST,03/04/2023,450
Finance & Human Resources,Revenues,Supplies & Services,Stationery,PREMIER PAPER GROUP LTD,05/04/2023,486.39
Finance & Human Resources,Revenues,Supplies & Services,Printing - Other,MARKETING AT THE MILL,11/04/2023,144
Finance & Human Resources,Revenues,Supplies & Services,Printing - Other,MARKETING AT THE MILL,14/04/2023,435
Finance & Human Resources,Revenues,Supplies & Services,Printing - Other,MARKETING AT THE MILL,14/04/2023,300
Finance & Human Resources,Revenues,Supplies & Services,Printing - Other,MARKETING AT THE MILL,05/04/2023,200
Finance & Human Resources,Revenues,Supplies & Services,Printing - Other,MARKETING AT THE MILL,13/04/2023,208
Finance & Human Resources,Revenues,Supplies & Services,Printing - Other,MARKETING AT THE MILL,04/04/2023,1000
Finance & Human Resources,Revenues,Supplies & Services,Printing - Other,MARKETING AT THE MILL,05/04/2023,195
Finance & Human Resources,Revenues,Supplies & Services,Printing - Other,LEXON GB LTD,05/04/2023,799.27
Finance & Human Resources,Revenues,Supplies & Services,Stationery,PREMIER PAPER GROUP LTD,04/04/2023,196.2
Finance & Human Resources,Revenues,Supplies & Services,Stationery,PREMIER PAPER GROUP LTD,11/04/2023,-196.2
Finance & Human Resources,Revenues,Supplies & Services,Printing - Other,MARKETING AT THE MILL,14/04/2023,215
Finance & Human Resources,Revenues,Supplies & Services,Printing - Other,MARKETING AT THE MILL,14/04/2023,130
Finance & Human Resources,Revenues,Supplies & Services,Printing - Other,MARKETING AT THE MILL,14/04/2023,400
Finance & Human Resources,Revenues,Supplies & Services,Printing - Other,MARKETING AT THE MILL,14/04/2023,229
Finance & Human Resources,Revenues,Supplies & Services,Printing - Other,MailSolutions,28/04/2023,210.12
Finance & Human Resources,Revenues,Supplies & Services,Printing - Other,TELFORD REPROGRAPHICS LTD,17/04/2023,100.5
Finance & Human Resources,Revenues,Supplies & Services,MFD Recharges,R UK LIMITED,18/04/2023,9553.62
Finance & Human Resources,Revenues,Supplies & Services,Postages,ROYAL MAIL GROUP PLC ,27/04/2023,804.34
Finance & Human Resources,Revenues,Supplies & Services,Postages,ROYAL MAIL GROUP PLC ,03/04/2023,620.39
Finance & Human Resources,Revenues,Supplies & Services,Postages,ROYAL MAIL GROUP PLC ,03/04/2023,1776.41
Finance & Human Resources,Revenues,Supplies & Services,Postages,FREELANCE BUSINESS ASSOCIATES,06/04/2023,414
Finance & Human Resources,Revenues,Supplies & Services,Postages,ROYAL MAIL GROUP PLC ,06/04/2023,2030.36
Finance & Human Resources,Revenues,Supplies & Services,Postages,ROYAL MAIL GROUP PLC ,18/04/2023,788.68
Finance & Human Resources,Revenues,Supplies & Services,Postages,ROYAL MAIL GROUP PLC ,11/04/2023,999.22
Finance & Human Resources,Revenues,Employees,Off-site processing ,NEC Software Solutions UK Ltd,13/04/2023,707.12
Finance & Human Resources,Revenues,Employees,Off-site processing ,NEC Software Solutions UK Ltd,13/04/2023,2180
Finance & Human Resources,Revenues,Supplies & Services,Postages,NEC Software Solutions UK Ltd,05/04/2023,2925
Finance & Human Resources,Revenues,Third Party Payments,Private Contractors,R LTD,03/04/2023,310
Health & Wellbeing,Consultant in Public Health,Supplies & Services,Sub Contractors,A Rapid Diagnostics Limited,03/04/2023,330
Health & Wellbeing,Consultant in Public Health,Supplies & Services,Sub Contractors,A Rapid Diagnostics Limited,03/04/2023,247.5
Health & Wellbeing,Consultant in Public Health,Supplies & Services,Sub Contractors,A Rapid Diagnostics Limited,03/04/2023,247.5
Health & Wellbeing,Consultant in Public Health,Supplies & Services,Sub Contractors,A Rapid Diagnostics Limited,03/04/2023,534.14
Health & Wellbeing,Consultant in Public Health,Supplies & Services,Sub Contractors,A Rapid Diagnostics Limited,03/04/2023,825
Health & Wellbeing,Consultant in Public Health,Supplies & Services,Sub Contractors,A Rapid Diagnostics Limited,03/04/2023,190
Health & Wellbeing,Consultant in Public Health,Supplies & Services,Sub Contractors,Midlands Partnership NHS Foundation Trust,04/04/2023,25992.26
Health & Wellbeing,Consultant in Public Health,Supplies & Services,Sub Contractors,Midlands Partnership NHS Foundation Trust,05/04/2023,315
Health & Wellbeing,Consultant in Public Health,Supplies & Services,Sub Contractors,Midlands Partnership NHS Foundation Trust,05/04/2023,26870.9
Health & Wellbeing,Consultant in Public Health,Supplies & Services,Sub Contractors,Midlands Partnership NHS Foundation Trust,05/04/2023,9777.38
Health & Wellbeing,Consultant in Public Health,Supplies & Services,Sub Contractors,Central Health Solutions Ltd,26/04/2023,1251
Health & Wellbeing,Consultant in Public Health,Supplies & Services,Sub Contractors,Central Health Solutions Ltd,26/04/2023,2990
Health & Wellbeing,Consultant in Public Health,Supplies & Services,Sub Contractors,Central Health Solutions Ltd,26/04/2023,2258.9
Health & Wellbeing,Consultant in Public Health,Supplies & Services,Sub Contractors,Midlands Partnership NHS Foundation Trust,26/04/2023,5428.8
Health & Wellbeing,Consultant in Public Health,Supplies & Services,Other Services,J U Removals Ltd,05/04/2023,365
Health & Wellbeing,Consultant in Public Health,Supplies & Services,Other Grants (Expenses),Survivors of Bereavement by Suicide,04/04/2023,500
Health & Wellbeing,Health Improvement,Employees,Staff Training,Ignition Create Community Interest Company Ltd,24/04/2023,7160
Health & Wellbeing,Health Improvement,Premises-Related Expenditure,Hire Of Rooms,STIRCHLEY & BROOKSIDE PARISH COUNCIL ,03/04/2023,216
Health & Wellbeing,Health Improvement,Employees,Other Employee Costs,SPH Plant Ltd,03/04/2023,549.49
Health & Wellbeing,Health Improvement,Supplies & Services,Mobile Phones,EE LTD EQUIPMENT ,27/04/2023,142
Health & Wellbeing,Health Improvement,Supplies & Services,Subscriptions,Specialist Support Services,12/04/2023,360
Health & Wellbeing,Health Improvement,Premises-Related Expenditure,Hire Of Rooms,DONNINGTON PARTNERSHIP,24/04/2023,252
Health & Wellbeing,Health Improvement,Premises-Related Expenditure,Hire Of Rooms,A House Community Centre Trust,24/04/2023,255
Health & Wellbeing,Health Improvement,Third Party Payments,Interpreters Fees,VISS Sign Language Interpreting Service,24/04/2023,115
Health & Wellbeing,Health Improvement,Supplies & Services,Security Services,BUSINESS WATCH GUARDING LIMITED,03/04/2023,419.04
Health & Wellbeing,Health Improvement,Employees,Professional Subs,Libraries Connected,03/04/2023,440
Health & Wellbeing,Health Improvement,Supplies & Services,Libraries Book Fund,A & H Library Services Ltd,03/04/2023,135.56
Health & Wellbeing,Health Improvement,Supplies & Services,Libraries Book Fund,A & H Library Services Ltd,13/04/2023,100.82
Health & Wellbeing,Health Protection,Supplies & Services,Consultancy,Vivid Resourcing,17/04/2023,1672.77
Health & Wellbeing,Health Protection,Supplies & Services,Consultancy,Vivid Resourcing,03/04/2023,1672.77
Health & Wellbeing,Health Protection,Supplies & Services,Consultancy,Vivid Resourcing,05/04/2023,1672.77
Health & Wellbeing,Health Protection,Supplies & Services,Consultancy,Vivid Resourcing,11/04/2023,1604.96
Health & Wellbeing,Health Protection,Supplies & Services,Consultancy,Vivid Resourcing,06/04/2023,1145.05
Health & Wellbeing,Health Protection,Supplies & Services,Registration / Licence Fees,Public Analyst Scientific Services,04/04/2023,2475
"Housing, Employment & Infrastructure",Inward Investment & Business Support,Supplies & Services,Computer Software (Maint),Alcium Software Ltd,03/04/2023,5760
"Housing, Employment & Infrastructure",Inward Investment & Business Support,Capital Expenditure,Payments to Contractor,Mid West Planning Ltd,30/04/2023,4000
"Housing, Employment & Infrastructure",Inward Investment & Business Support,Capital Expenditure,Payments to Contractor,MADELEY TOWN COUNCIL ,05/04/2023,197049
"Housing, Employment & Infrastructure",Inward Investment & Business Support,Capital Expenditure,Payments to Contractor,Mid West Planning Ltd,26/04/2023,4000
"Housing, Employment & Infrastructure",Inward Investment & Business Support,Capital Expenditure,Payments to Contractor,THE SIGN SHOP,04/04/2023,760
"Housing, Employment & Infrastructure",Inward Investment & Business Support,Capital Expenditure,Payments to Contractor,WELLINGTON TOWN COUNCIL,11/04/2023,9500
"Housing, Employment & Infrastructure",Inward Investment & Business Support,Capital Expenditure,Other Capital Expenditure,HEREFORDSHIRE COUNCIL,26/04/2023,628.64
"Housing, Employment & Infrastructure",Local Plan,Supplies & Services,Research Surveys,DLP Planning Ltd,06/04/2023,432
"Housing, Employment & Infrastructure",Private Sector Housing & Enforcement,Employees,Agency Supply Costs,The Oyster Partnership Ltd,13/04/2023,1537.5
"Housing, Employment & Infrastructure",Private Sector Housing & Enforcement,Employees,Agency Supply Costs,The Oyster Partnership Ltd,13/04/2023,1371.72
"Housing, Employment & Infrastructure",Private Sector Housing & Enforcement,Premises-Related Expenditure,R&M -Buildings DLO Charge,GRANVILLE CONSTRUCTION & MAINTENANCE LTD,18/04/2023,1265
"Housing, Employment & Infrastructure",Private Sector Housing & Enforcement,Capital Expenditure,Other Capital Expenditure,Marches Energy Agency,04/04/2023,5000
Neighbourhood & Enforcement Services,"Highways, Engineering & Project Delivery",Premises-Related Expenditure,R&M -Buildings DLO Charge,VIATEC UK LTD,21/04/2023,554
Neighbourhood & Enforcement Services,"Highways, Engineering & Project Delivery",Third Party Payments,Highways Contract - BBLP,Balfour Beatty Civils Limited,05/04/2023,1427156.16
Neighbourhood & Enforcement Services,"Highways, Engineering & Project Delivery",Premises-Related Expenditure,Electricity,West Mercia Energy (WME),25/04/2023,74657.13
Neighbourhood & Enforcement Services,"Highways, Engineering & Project Delivery",Premises-Related Expenditure,Electricity,West Mercia Energy (WME),25/04/2023,354.99
Neighbourhood & Enforcement Services,"Highways, Engineering & Project Delivery",Premises-Related Expenditure,Electricity,West Mercia Energy (WME),25/04/2023,126.11
Neighbourhood & Enforcement Services,"Highways, Engineering & Project Delivery",Third Party Payments,Contractor Recharge,P CABLES & SYSTEMS LTD,03/04/2023,136472.49
Neighbourhood & Enforcement Services,"Highways, Engineering & Project Delivery",Premises-Related Expenditure,Electricity,West Mercia Energy (WME),25/04/2023,360.58
Neighbourhood & Enforcement Services,"Highways, Engineering & Project Delivery",Supplies & Services,Other Services,ENVIRONMENT AGENCY,05/04/2023,16928.8
Neighbourhood & Enforcement Services,"Highways, Engineering & Project Delivery",Supplies & Services,Other Services,Hydro-Logic ServicesLtd,18/04/2023,1085
Neighbourhood & Enforcement Services,"Highways, Engineering & Project Delivery",Employees,Training Expenses,Cannock Chase Training Centre,05/04/2023,420
Neighbourhood & Enforcement Services,"Highways, Engineering & Project Delivery",Supplies & Services,Comp Software (Purch / Hire),LEICESTERSHIRE COUNTY COUNCIL,05/04/2023,3750
Neighbourhood & Enforcement Services,"Highways, Engineering & Project Delivery",Supplies & Services,Comp Software (Purch / Hire),LEICESTERSHIRE COUNTY COUNCIL,05/04/2023,3750
Neighbourhood & Enforcement Services,"Highways, Engineering & Project Delivery",Supplies & Services,Protective Clothing,ARCO LIMITED,14/04/2023,140.97
Neighbourhood & Enforcement Services,"Highways, Engineering & Project Delivery",Supplies & Services,Computer Consumables,STANFORD MARSH FINANCE LTD,12/04/2023,176.15
Neighbourhood & Enforcement Services,"Highways, Engineering & Project Delivery",Supplies & Services,Consultancy,W Aspen,11/04/2023,7563.36
Neighbourhood & Enforcement Services,"Highways, Engineering & Project Delivery",Supplies & Services,Consultancy,W Aspen,11/04/2023,356.4
Neighbourhood & Enforcement Services,"Highways, Engineering & Project Delivery",Supplies & Services,Consultancy,W Aspen,11/04/2023,7657.2
Neighbourhood & Enforcement Services,"Highways, Engineering & Project Delivery",Supplies & Services,Consultancy,W Aspen,11/04/2023,7438.08
Neighbourhood & Enforcement Services,"Highways, Engineering & Project Delivery",Supplies & Services,Consultancy,W Aspen,11/04/2023,1627.16
Neighbourhood & Enforcement Services,"Highways, Engineering & Project Delivery",Supplies & Services,Consultancy,W Aspen,11/04/2023,5619.04
Neighbourhood & Enforcement Services,"Highways, Engineering & Project Delivery",Supplies & Services,Comp Software (Purch / Hire),Causeway Technologies LTD,17/04/2023,2730
Neighbourhood & Enforcement Services,"Highways, Engineering & Project Delivery",Supplies & Services,Comp Software (Purch / Hire),PILLAR SOFTWARE LIMITED,05/04/2023,1491
Neighbourhood & Enforcement Services,"Highways, Engineering & Project Delivery",Supplies & Services,Licences,NERC,18/04/2023,508.8
Neighbourhood & Enforcement Services,"Highways, Engineering & Project Delivery",Capital Expenditure,Marketing / Advertising,THE MIDLAND NEWS ASSOCIATION LTD,05/04/2023,116.14
Neighbourhood & Enforcement Services,"Highways, Engineering & Project Delivery",Capital Expenditure,Marketing / Advertising,THE MIDLAND NEWS ASSOCIATION LTD,06/04/2023,116.14
Neighbourhood & Enforcement Services,"Highways, Engineering & Project Delivery",Capital Expenditure,External Professional Fees,Amey OW Ltd,26/04/2023,214.11
Neighbourhood & Enforcement Services,"Highways, Engineering & Project Delivery",Capital Expenditure,Payments to Contractor,Amey OW Ltd,26/04/2023,399.23
Neighbourhood & Enforcement Services,"Highways, Engineering & Project Delivery",Capital Expenditure,Payments to Contractor,Id verde,05/04/2023,5889.69
Neighbourhood & Enforcement Services,"Highways, Engineering & Project Delivery",Capital Expenditure,Payments to Contractor,The Tree Man,05/04/2023,2155
Neighbourhood & Enforcement Services,Neighbourhood & Environmental Services,Supplies & Services,Other Services,H PETS HOTEL,06/04/2023,1733.1
Neighbourhood & Enforcement Services,Neighbourhood & Environmental Services,Supplies & Services,Other Services,H PETS HOTEL,06/04/2023,-291.67
Neighbourhood & Enforcement Services,Neighbourhood & Environmental Services,Supplies & Services,Other Services,H PETS HOTEL,05/04/2023,2012.95
Neighbourhood & Enforcement Services,Neighbourhood & Environmental Services,Supplies & Services,Other Services,H PETS HOTEL,05/04/2023,1203.08
Neighbourhood & Enforcement Services,Neighbourhood & Environmental Services,Supplies & Services,Other Services,H PETS HOTEL,05/04/2023,-240
Neighbourhood & Enforcement Services,Neighbourhood & Environmental Services,Supplies & Services,Other Services,H PETS HOTEL,17/04/2023,2139.58
Neighbourhood & Enforcement Services,Neighbourhood & Environmental Services,Supplies & Services,Other Services,H PETS HOTEL,17/04/2023,-465
Neighbourhood & Enforcement Services,Neighbourhood & Environmental Services,Premises-Related Expenditure,Grounds Maintenance - Other,MARMAX PRODUCTS LTD,06/04/2023,412
Neighbourhood & Enforcement Services,Neighbourhood & Environmental Services,Premises-Related Expenditure,Preventative Maintenance,WELLINGTON INSULATION CO. LTD,24/04/2023,150
Neighbourhood & Enforcement Services,Neighbourhood & Environmental Services,Supplies & Services,Sub Contractors,THE MIDLAND NEWS ASSOCIATION LTD,06/04/2023,145.17
Neighbourhood & Enforcement Services,Neighbourhood & Environmental Services,Supplies & Services,Sub Contractors,THE MIDLAND NEWS ASSOCIATION LTD,06/04/2023,145.17
Neighbourhood & Enforcement Services,Neighbourhood & Environmental Services,Supplies & Services,Miscellaneous Insurance,Friends of Apley Woods,04/04/2023,282.21
Neighbourhood & Enforcement Services,Neighbourhood & Environmental Services,Supplies & Services,Carriage/Delivery Charge,MARMAX PRODUCTS LTD,17/04/2023,1528
Neighbourhood & Enforcement Services,Neighbourhood & Environmental Services,Third Party Payments,Contractor Recharge,Id verde,03/04/2023,512630.13
Neighbourhood & Enforcement Services,Neighbourhood & Environmental Services,Supplies & Services,Sport Equip - Purchase,J L & SONS LTD,04/04/2023,382.34
Neighbourhood & Enforcement Services,Public Protection,Supplies & Services,Sampling & Analysis,BWY Canine Limited,03/04/2023,400
Neighbourhood & Enforcement Services,Public Protection,Employees,Agency Supply Costs,Vivid Resourcing,17/04/2023,595.36
Neighbourhood & Enforcement Services,Public Protection,Supplies & Services,Consultancy,Vivid Resourcing,06/04/2023,907.74
Neighbourhood & Enforcement Services,Public Protection,Supplies & Services,Consultancy,Kenyon Block Consultants,03/04/2023,1665
Neighbourhood & Enforcement Services,Public Protection,Supplies & Services,Consultancy,Kenyon Block Consultants,11/04/2023,1503
Neighbourhood & Enforcement Services,Public Protection,Employees,Cont Prof Development,INSTITUTE OF LICENSING LTD,27/04/2023,330
Neighbourhood & Enforcement Services,Public Protection,Supplies & Services,Equipment - Purchase,VIP-SYSTEMS LIMITED,11/04/2023,603.55
Neighbourhood & Enforcement Services,Public Protection,Supplies & Services,Print Room Recharges,Industry Signage,18/04/2023,195
Neighbourhood & Enforcement Services,Public Protection,Supplies & Services,Medical Consultants Fees,S R Limited,11/04/2023,1450.07
Neighbourhood & Enforcement Services,Public Protection,Supplies & Services,Other Services,Trebla Security Ltd,05/04/2023,129.5
Neighbourhood & Enforcement Services,Public Protection,Supplies & Services,Other Services,Trebla Security Ltd,05/04/2023,370
Neighbourhood & Enforcement Services,Public Protection,Supplies & Services,Other Services,Trebla Security Ltd,11/04/2023,1193.25
Neighbourhood & Enforcement Services,Public Protection,Supplies & Services,Sub Contractors,O R Ltd,21/04/2023,1665
Neighbourhood & Enforcement Services,Public Protection,Supplies & Services,Sub Contractors,O R Ltd,05/04/2023,4197
Neighbourhood & Enforcement Services,Public Protection,Supplies & Services,Sub Contractors,O R Ltd,05/04/2023,1665
Neighbourhood & Enforcement Services,Public Protection,Supplies & Services,Sub Contractors,O R Ltd,13/04/2023,3643
Neighbourhood & Enforcement Services,Public Protection,Supplies & Services,Sub Contractors,O R Ltd,13/04/2023,1665
Neighbourhood & Enforcement Services,Public Protection,Supplies & Services,Sub Contractors,CLEANIT CLEANING SERVICES,14/04/2023,1916
Neighbourhood & Enforcement Services,Public Protection,Supplies & Services,Sub Contractors,O R Ltd,27/04/2023,1665
Neighbourhood & Enforcement Services,Public Protection,Supplies & Services,Sub Contractors,H Green Garage Ltd,04/04/2023,205
Neighbourhood & Enforcement Services,Public Protection,Supplies & Services,Sub Contractors,H Green Garage Ltd,04/04/2023,160
Neighbourhood & Enforcement Services,Public Protection,Premises-Related Expenditure,Sewage Charges,WATER PLUS FORMERLY SEVERN TRENT WATER LTD,21/04/2023,174.41
Neighbourhood & Enforcement Services,Public Protection,Premises-Related Expenditure,Sewage Charges,WATER PLUS FORMERLY SEVERN TRENT WATER LTD,13/04/2023,173.15
Neighbourhood & Enforcement Services,Public Protection,Premises-Related Expenditure,Sewage Charges,WATER PLUS FORMERLY SEVERN TRENT WATER LTD,13/04/2023,102.89
Neighbourhood & Enforcement Services,Public Protection,Premises-Related Expenditure,Sewage Charges,WATER PLUS FORMERLY SEVERN TRENT WATER LTD,13/04/2023,173.74
Neighbourhood & Enforcement Services,Public Protection,Premises-Related Expenditure,Sewage Charges,WATER PLUS FORMERLY SEVERN TRENT WATER LTD,13/04/2023,103.27
Neighbourhood & Enforcement Services,Public Protection,Premises-Related Expenditure,Sewage Charges,WATER PLUS FORMERLY SEVERN TRENT WATER LTD,13/04/2023,173.74
Neighbourhood & Enforcement Services,Public Protection,Premises-Related Expenditure,Sewage Charges,WATER PLUS FORMERLY SEVERN TRENT WATER LTD,13/04/2023,333.87
Neighbourhood & Enforcement Services,Public Protection,Supplies & Services,Sub Contractors,METRIC GROUP LTD,12/04/2023,884
Neighbourhood & Enforcement Services,Public Protection,Premises-Related Expenditure,Other,GRANVILLE CONSTRUCTION & MAINTENANCE LTD,05/04/2023,1620
Neighbourhood & Enforcement Services,Public Protection,Premises-Related Expenditure,Other,GRANVILLE CONSTRUCTION & MAINTENANCE LTD,05/04/2023,1624.44
Neighbourhood & Enforcement Services,Public Protection,Supplies & Services,Equipment - Purchase,APT SKIDATA LTD,21/04/2023,16010.76
Neighbourhood & Enforcement Services,Public Protection,Supplies & Services,Equipment - Purchase,APT SKIDATA LTD,21/04/2023,3465.41
Neighbourhood & Enforcement Services,Public Protection,Supplies & Services,Mobile Phones,EE LTD EQUIPMENT,27/04/2023,710
Neighbourhood & Enforcement Services,Public Protection,Supplies & Services,Security Services,GRANVILLE CONSTRUCTION & MAINTENANCE LTD,28/04/2023,174.36
Neighbourhood & Enforcement Services,Public Protection,Supplies & Services,Security Services,JCE & SONS LTD,28/04/2023,396.33
Neighbourhood & Enforcement Services,Public Protection,Supplies & Services,Security Services,ETAK Creative Ltd,05/04/2023,663.8
Neighbourhood & Enforcement Services,Public Protection,Supplies & Services,Security Services,ETAK Creative Ltd,05/04/2023,496.78
Neighbourhood & Enforcement Services,Public Protection,Supplies & Services,Equipment - Purchase,CHRISBEON OFFICE SUPPLIES,26/04/2023,1103.95
Neighbourhood & Enforcement Services,Public Protection,Supplies & Services,Mobile Phones,EE LTD EQUIPMENT,27/04/2023,1326.02
Neighbourhood & Enforcement Services,Public Protection,Supplies & Services,Security Services,Security Wise Ltd,28/04/2023,717
Neighbourhood & Enforcement Services,Public Protection,Supplies & Services,Security Services,Security Wise Ltd,05/04/2023,9384
Neighbourhood & Enforcement Services,Public Protection,Supplies & Services,Security Services,Austin Mix Ltd,13/04/2023,920
Neighbourhood & Enforcement Services,Public Protection,Supplies & Services,Security Services,ETAK Creative Ltd,21/04/2023,554.5
Neighbourhood & Enforcement Services,Public Protection,Supplies & Services,Security Services,Chipside Ltd,05/04/2023,226.73
Neighbourhood & Enforcement Services,Public Protection,Supplies & Services,Security Services,BemroseBooth Paragon,04/04/2023,250
Neighbourhood & Enforcement Services,Public Protection,Supplies & Services,Security Services,BT PLC ,14/04/2023,1039.35
Neighbourhood & Enforcement Services,Public Protection,Supplies & Services,Security Services,BT PLC ,14/04/2023,2295
Neighbourhood & Enforcement Services,Public Protection,Capital Expenditure,Payments to Contractor,H W Limited,28/04/2023,12471.25
Neighbourhood & Enforcement Services,Safer & Stronger Communities,Premises-Related Expenditure,Hire Of Rooms,Telford and Wrekin Interfaith Council,14/04/2023,180
Neighbourhood & Enforcement Services,Safer & Stronger Communities,Supplies & Services,Equipment - Purchase,W and P Building Contractors Ltd,25/04/2023,3927.7
Neighbourhood & Enforcement Services,Safer & Stronger Communities,Supplies & Services,Other Services,Great Dawley Town Council,26/04/2023,3040
Neighbourhood & Enforcement Services,Safer & Stronger Communities,Premises-Related Expenditure,Leasehold Rents,THE WREKIN HOUSING TRUST ,13/04/2023,1952.73
Neighbourhood & Enforcement Services,Safer & Stronger Communities,Premises-Related Expenditure,General Rents,THE WREKIN HOUSING TRUST,04/04/2023,1489.28
Neighbourhood & Enforcement Services,Safer & Stronger Communities,Premises-Related Expenditure,Leasehold Rents,GPS Property Shropshire LLP,13/04/2023,1300
Neighbourhood & Enforcement Services,Safer & Stronger Communities,Premises-Related Expenditure,General Rents,THE WREKIN HOUSING TRUST,12/04/2023,1628.64
Neighbourhood & Enforcement Services,Safer & Stronger Communities,Supplies & Services,Other Services,SHROPSHIRE CRICKET BOARD,13/04/2023,500
Neighbourhood & Enforcement Services,Safer & Stronger Communities,Supplies & Services,Other Services,SHROPSHIRE CRICKET BOARD,26/04/2023,500
Neighbourhood & Enforcement Services,Safer & Stronger Communities,Supplies & Services,Other Services,Magical Mc Cic,12/04/2023,1200
Neighbourhood & Enforcement Services,Safer & Stronger Communities,Supplies & Services,Other Services,Industry Signage,12/04/2023,120
Neighbourhood & Enforcement Services,Safer & Stronger Communities,Supplies & Services,Other Services,LAWLEY & OVERDALE PARISH COUNCIL,26/04/2023,4500
Neighbourhood & Enforcement Services,Safer & Stronger Communities,Supplies & Services,Emergency Provisions for Young People,Post Office Ltd,26/04/2023,260
Neighbourhood & Enforcement Services,Safer & Stronger Communities,Capital Expenditure,Other Capital Expenditure,Safe Systems CCTV Ltd,25/04/2023,2250
Neighbourhood & Enforcement Services,Strategic Transport & Highway Network Management,Employees,Staff Training,Road Safety GB International Ltd,05/04/2023,179
Neighbourhood & Enforcement Services,Strategic Transport & Highway Network Management,Supplies & Services,Advertising,THE MIDLAND NEWS ASSOCIATION LTD,05/04/2023,116.14
Neighbourhood & Enforcement Services,Strategic Transport & Highway Network Management,Supplies & Services,Fees,Geoplace LLP,17/04/2023,450
Neighbourhood & Enforcement Services,Strategic Transport & Highway Network Management,Supplies & Services,Advertising,THE MIDLAND NEWS ASSOCIATION LTD,13/04/2023,116.14
Neighbourhood & Enforcement Services,Strategic Transport & Highway Network Management,Supplies & Services,Consultancy,W Aspen,05/04/2023,213.12
Neighbourhood & Enforcement Services,Strategic Transport & Highway Network Management,Supplies & Services,Consultancy,C West Ltd,11/04/2023,1674.75
Neighbourhood & Enforcement Services,Strategic Transport & Highway Network Management,Supplies & Services,Consultancy,C West Ltd,03/04/2023,1674.75
Neighbourhood & Enforcement Services,Strategic Transport & Highway Network Management,Supplies & Services,Comp Software (Purch / Hire),Buchanan Computing,26/04/2023,13139.36
Neighbourhood & Enforcement Services,Strategic Transport & Highway Network Management,Supplies & Services,Consultancy,C West Ltd,18/04/2023,1617
Neighbourhood & Enforcement Services,Strategic Transport & Highway Network Management,Supplies & Services,Concessionary Travel,ARRIVA MIDLANDS LTD,05/04/2023,114768.41
Neighbourhood & Enforcement Services,Strategic Transport & Highway Network Management,Supplies & Services,Concessionary Travel,D&G Bus,05/04/2023,23098.62
Neighbourhood & Enforcement Services,Strategic Transport & Highway Network Management,Supplies & Services,Concessionary Travel,B P B TRAVEL LTD,05/04/2023,280
Neighbourhood & Enforcement Services,Strategic Transport & Highway Network Management,Supplies & Services,Concessionary Travel,Banga Travel,27/04/2023,1809
Neighbourhood & Enforcement Services,Strategic Transport & Highway Network Management,Supplies & Services,Concessionary Travel,Banga Travel,27/04/2023,1836
Neighbourhood & Enforcement Services,Strategic Transport & Highway Network Management,Supplies & Services,Printing - Other,B P B TRAVEL LTD,05/04/2023,2860
Neighbourhood & Enforcement Services,Strategic Transport & Highway Network Management,Transport-Related Expenditure,Subsidised Routes,ARRIVA MIDLANDS LTD,27/04/2023,19954.2
Neighbourhood & Enforcement Services,Strategic Transport & Highway Network Management,Transport-Related Expenditure,Subsidised Routes,ARRIVA MIDLANDS LTD,27/04/2023,2782.9
Neighbourhood & Enforcement Services,Strategic Transport & Highway Network Management,Transport-Related Expenditure,Subsidised Routes,ARRIVA MIDLANDS LTD,27/04/2023,2400
Neighbourhood & Enforcement Services,Strategic Transport & Highway Network Management,Transport-Related Expenditure,Subsidised Routes,ARRIVA MIDLANDS LTD,27/04/2023,6275.75
Neighbourhood & Enforcement Services,Strategic Transport & Highway Network Management,Transport-Related Expenditure,Subsidised Routes,ARRIVA MIDLANDS LTD,27/04/2023,35479.25
Neighbourhood & Enforcement Services,Strategic Transport & Highway Network Management,Transport-Related Expenditure,Subsidised Routes,ARRIVA MIDLANDS LTD,27/04/2023,4733.75
Neighbourhood & Enforcement Services,Strategic Transport & Highway Network Management,Transport-Related Expenditure,Subsidised Routes,ARRIVA MIDLANDS LTD,27/04/2023,2366
Neighbourhood & Enforcement Services,Strategic Transport & Highway Network Management,Transport-Related Expenditure,Subsidised Routes,D&G Bus,05/04/2023,23098.62
Neighbourhood & Enforcement Services,Strategic Transport & Highway Network Management,Transport-Related Expenditure,Subsidised Routes,B P B TRAVEL LTD,05/04/2023,10194.5
Neighbourhood & Enforcement Services,Strategic Transport & Highway Network Management,Transport-Related Expenditure,Subsidised Routes,ARRIVA MIDLANDS LTD,05/04/2023,17815.14
Neighbourhood & Enforcement Services,Strategic Transport & Highway Network Management,Transport-Related Expenditure,Subsidised Routes,ARRIVA MIDLANDS LTD,05/04/2023,2584.28
Neighbourhood & Enforcement Services,Strategic Transport & Highway Network Management,Transport-Related Expenditure,Subsidised Routes,ARRIVA MIDLANDS LTD,05/04/2023,2277
Neighbourhood & Enforcement Services,Strategic Transport & Highway Network Management,Transport-Related Expenditure,Subsidised Routes,ARRIVA MIDLANDS LTD,05/04/2023,6024.72
Neighbourhood & Enforcement Services,Strategic Transport & Highway Network Management,Transport-Related Expenditure,Subsidised Routes,ARRIVA MIDLANDS LTD,05/04/2023,34060.08
Neighbourhood & Enforcement Services,Strategic Transport & Highway Network Management,Transport-Related Expenditure,Subsidised Routes,ARRIVA MIDLANDS LTD,05/04/2023,4544.4
Neighbourhood & Enforcement Services,Strategic Transport & Highway Network Management,Transport-Related Expenditure,Subsidised Routes,ARRIVA MIDLANDS LTD,05/04/2023,2147.76
Neighbourhood & Enforcement Services,Strategic Transport & Highway Network Management,Employees,Agency Supply Costs,Telford and Wrekin Community Enterprise LTD,20/04/2023,1293.75
Neighbourhood & Enforcement Services,Strategic Transport & Highway Network Management,Employees,Agency Supply Costs,Telford and Wrekin Community Enterprise LTD,26/04/2023,866.25
Neighbourhood & Enforcement Services,Strategic Transport & Highway Network Management,Transport-Related Expenditure,Servicing & Repairs V&P,FURROWS OF TELFORD,27/04/2023,127.5
Neighbourhood & Enforcement Services,Strategic Transport & Highway Network Management,Transport-Related Expenditure,Servicing & Repairs V&P,FURROWS OF TELFORD,27/04/2023,127.5
Neighbourhood & Enforcement Services,Strategic Transport & Highway Network Management,Transport-Related Expenditure,Servicing & Repairs V&P,AEM GROUP LTD,11/04/2023,585
Neighbourhood & Enforcement Services,Strategic Transport & Highway Network Management,Transport-Related Expenditure,Servicing & Repairs V&P,G H Ltd,11/04/2023,263.5
Neighbourhood & Enforcement Services,Strategic Transport & Highway Network Management,Transport-Related Expenditure,Servicing & Repairs V&P,THE LODGE TYRE CO LTD,11/04/2023,164
Neighbourhood & Enforcement Services,Strategic Transport & Highway Network Management,Transport-Related Expenditure,Servicing & Repairs V&P,FURROWS OF TELFORD,11/04/2023,446.71
Neighbourhood & Enforcement Services,Strategic Transport & Highway Network Management,Transport-Related Expenditure,Servicing & Repairs V&P,Enterprise Flexi Rent,11/04/2023,3035.38
Neighbourhood & Enforcement Services,Strategic Transport & Highway Network Management,Transport-Related Expenditure,Servicing & Repairs V&P,Enterprise Flexi Rent,11/04/2023,327.71
Neighbourhood & Enforcement Services,Strategic Transport & Highway Network Management,Transport-Related Expenditure,Servicing & Repairs V&P,H G Garage Ltd,12/04/2023,120
Neighbourhood & Enforcement Services,Strategic Transport & Highway Network Management,Transport-Related Expenditure,Servicing & Repairs V&P,Gr H Ltd,26/04/2023,217
Neighbourhood & Enforcement Services,Strategic Transport & Highway Network Management,Transport-Related Expenditure,Servicing & Repairs V&P,THE LODGE TYRE CO LTD,26/04/2023,105
Neighbourhood & Enforcement Services,Strategic Transport & Highway Network Management,Transport-Related Expenditure,Fuel,ALLSTAR BUSINESS SOLUTIONS LTD,20/04/2023,2001.95
Neighbourhood & Enforcement Services,Strategic Transport & Highway Network Management,Transport-Related Expenditure,Fuel,ALLSTAR BUSINESS SOLUTIONS LTD,11/04/2023,6736.38
Neighbourhood & Enforcement Services,Strategic Transport & Highway Network Management,Transport-Related Expenditure,Fuel,ALLSTAR BUSINESS SOLUTIONS LTD,11/04/2023,7533.08
Neighbourhood & Enforcement Services,Strategic Transport & Highway Network Management,Transport-Related Expenditure,Vehicle Parts,THE LODGE TYRE CO LTD,20/04/2023,105
Neighbourhood & Enforcement Services,Strategic Transport & Highway Network Management,Transport-Related Expenditure,Outside Hire,DAYS RENTAL,11/04/2023,100.1
Neighbourhood & Enforcement Services,Strategic Transport & Highway Network Management,Transport-Related Expenditure,Vehicle Parts,THE LODGE TYRE CO LTD,11/04/2023,196.3
Neighbourhood & Enforcement Services,Strategic Transport & Highway Network Management,Transport-Related Expenditure,Vehicle Parts,THE LODGE TYRE CO LTD,11/04/2023,350
Neighbourhood & Enforcement Services,Strategic Transport & Highway Network Management,Transport-Related Expenditure,Vehicle Parts,Euro Car Parts,11/04/2023,135.95
Neighbourhood & Enforcement Services,Strategic Transport & Highway Network Management,Transport-Related Expenditure,Outside Hire,Enterprise Flexi Rent,11/04/2023,666.28
Neighbourhood & Enforcement Services,Strategic Transport & Highway Network Management,Transport-Related Expenditure,Outside Hire,DAYS RENTAL,11/04/2023,250.25
Neighbourhood & Enforcement Services,Strategic Transport & Highway Network Management,Transport-Related Expenditure,Outside Hire,DAYS RENTAL,11/04/2023,250.25
Neighbourhood & Enforcement Services,Strategic Transport & Highway Network Management,Transport-Related Expenditure,Vehicle Parts,Enterprise Flexi Rent,12/04/2023,409.56
Neighbourhood & Enforcement Services,Strategic Transport & Highway Network Management,Transport-Related Expenditure,Vehicle Parts,Enterprise Flexi Rent,12/04/2023,269.5
Neighbourhood & Enforcement Services,Strategic Transport & Highway Network Management,Premises-Related Expenditure,R&M -Building Other,P LTD,06/04/2023,21026
Neighbourhood & Enforcement Services,Strategic Transport & Highway Network Management,Supplies & Services,Protective Clothing,ETAK Creative Ltd,26/04/2023,174.99
Neighbourhood & Enforcement Services,Strategic Transport & Highway Network Management,Transport-Related Expenditure,Outside Hire,DAYS RENTAL,05/04/2023,360.36
Neighbourhood & Enforcement Services,Strategic Transport & Highway Network Management,Transport-Related Expenditure,Outside Hire,DAYS RENTAL,05/04/2023,250.25
Neighbourhood & Enforcement Services,Strategic Transport & Highway Network Management,Transport-Related Expenditure,Outside Hire,DAYS RENTAL,05/04/2023,423.77
Neighbourhood & Enforcement Services,Strategic Transport & Highway Network Management,Transport-Related Expenditure,Outside Hire,DAYS RENTAL,05/04/2023,310.31
Neighbourhood & Enforcement Services,Strategic Transport & Highway Network Management,Transport-Related Expenditure,Outside Hire,DAYS RENTAL,05/04/2023,1270.07
Neighbourhood & Enforcement Services,Strategic Transport & Highway Network Management,Transport-Related Expenditure,Outside Hire,DAYS RENTAL,05/04/2023,310.31
Neighbourhood & Enforcement Services,Strategic Transport & Highway Network Management,Transport-Related Expenditure,Outside Hire,DAYS RENTAL,05/04/2023,384.32
Neighbourhood & Enforcement Services,Strategic Transport & Highway Network Management,Transport-Related Expenditure,Outside Hire,DAYS RENTAL,05/04/2023,310.31
Neighbourhood & Enforcement Services,Strategic Transport & Highway Network Management,Transport-Related Expenditure,Outside Hire,DAYS RENTAL,05/04/2023,250.25
Neighbourhood & Enforcement Services,Strategic Transport & Highway Network Management,Transport-Related Expenditure,Outside Hire,DAYS RENTAL,05/04/2023,1473.03
Neighbourhood & Enforcement Services,Strategic Transport & Highway Network Management,Transport-Related Expenditure,Outside Hire,DAYS RENTAL,05/04/2023,444.23
Neighbourhood & Enforcement Services,Strategic Transport & Highway Network Management,Transport-Related Expenditure,Outside Hire,DAYS RENTAL,05/04/2023,310.31
Neighbourhood & Enforcement Services,Strategic Transport & Highway Network Management,Transport-Related Expenditure,Outside Hire,DAYS RENTAL,05/04/2023,423.77
Neighbourhood & Enforcement Services,Strategic Transport & Highway Network Management,Transport-Related Expenditure,Outside Hire,DAYS RENTAL,17/04/2023,130.13
Neighbourhood & Enforcement Services,Strategic Transport & Highway Network Management,Transport-Related Expenditure,Servicing & Repairs V&P,AEM GROUP LTD,20/04/2023,379.5
Neighbourhood & Enforcement Services,Strategic Transport & Highway Network Management,Transport-Related Expenditure,Servicing & Repairs V&P,AEM GROUP LTD,20/04/2023,214.54
Neighbourhood & Enforcement Services,Strategic Transport & Highway Network Management,Transport-Related Expenditure,Outside Hire,DAYS RENTAL,11/04/2023,269.84
Neighbourhood & Enforcement Services,Strategic Transport & Highway Network Management,Transport-Related Expenditure,Outside Hire,DAYS RENTAL,11/04/2023,477.3
Neighbourhood & Enforcement Services,Strategic Transport & Highway Network Management,Transport-Related Expenditure,Servicing & Repairs V&P,AEM GROUP LTD,11/04/2023,262.53
Neighbourhood & Enforcement Services,Strategic Transport & Highway Network Management,Transport-Related Expenditure,Servicing & Repairs V&P,AEM GROUP LTD,11/04/2023,112.86
Neighbourhood & Enforcement Services,Strategic Transport & Highway Network Management,Supplies & Services,Computer Software (Maint),CCS MEDIA LIMITED,06/04/2023,400
Neighbourhood & Enforcement Services,Strategic Transport & Highway Network Management,Capital Expenditure,External Professional Fees,W Aspen,03/04/2023,960
Neighbourhood & Enforcement Services,Strategic Transport & Highway Network Management,Capital Expenditure,Payments to Contractor,SWARCO UK & IRELAND LTD,03/04/2023,12739.73
Neighbourhood & Enforcement Services,Strategic Transport & Highway Network Management,Capital Expenditure,Payments to Contractor,Morelock Signs Ltd,04/04/2023,5506
Neighbourhood & Enforcement Services,Strategic Transport & Highway Network Management,Capital Expenditure,External Professional Fees,W Aspen,12/04/2023,4680
Neighbourhood & Enforcement Services,Strategic Transport & Highway Network Management,Capital Expenditure,External Professional Fees,W Aspen,11/04/2023,-820.48
Neighbourhood & Enforcement Services,Strategic Transport & Highway Network Management,Capital Expenditure,Marketing / Advertising,THE MIDLAND NEWS ASSOCIATION LTD,18/04/2023,319.37
Neighbourhood & Enforcement Services,Strategic Transport & Highway Network Management,Capital Expenditure,Marketing / Advertising,THE MIDLAND NEWS ASSOCIATION LTD,18/04/2023,203.24
Neighbourhood & Enforcement Services,Strategic Transport & Highway Network Management,Capital Expenditure,Marketing / Advertising,THE MIDLAND NEWS ASSOCIATION LTD,26/04/2023,290.34
Neighbourhood & Enforcement Services,Strategic Transport & Highway Network Management,Capital Expenditure,Marketing / Advertising,THE MIDLAND NEWS ASSOCIATION LTD,25/04/2023,406.48
Neighbourhood & Enforcement Services,Strategic Transport & Highway Network Management,Capital Expenditure,Payments to Contractor,Journeo Passenger Systems Ltd,03/04/2023,15676.5
Neighbourhood & Enforcement Services,Strategic Transport & Highway Network Management,Capital Expenditure,Payments to Contractor,Amey OW Ltd,25/04/2023,4224.26
Neighbourhood & Enforcement Services,Strategic Transport & Highway Network Management,Capital Expenditure,Payments to Contractor,Journeo Passenger Systems Ltd,05/04/2023,79875.2
Neighbourhood & Enforcement Services,Strategic Transport & Highway Network Management,Capital Expenditure,Payments to Contractor,Journeo Passenger Systems Ltd,05/04/2023,27661.2
Neighbourhood & Enforcement Services,Waste & Neighbourhood Services,Third Party Payments,Contractor Recharge,SHROPSHIRE & WREKIN FIRE AUTHORITY,04/04/2023,2750
Neighbourhood & Enforcement Services,Waste & Neighbourhood Services,Premises-Related Expenditure,Grounds Maintenance - Other,Amey OW Ltd,14/04/2023,805.97
Neighbourhood & Enforcement Services,Waste & Neighbourhood Services,Supplies & Services,Security Services,Security Wise Ltd,27/04/2023,180
Neighbourhood & Enforcement Services,Waste & Neighbourhood Services,Premises-Related Expenditure,Grounds Maintenance - Other,Id verde,06/04/2023,15948.97
Neighbourhood & Enforcement Services,Waste & Neighbourhood Services,Premises-Related Expenditure,Grounds Maintenance - Other,Green-Tech Ltd,12/04/2023,248.4
Neighbourhood & Enforcement Services,Waste & Neighbourhood Services,Premises-Related Expenditure,Grounds Maintenance - Other,Industry Signage,13/04/2023,390
Neighbourhood & Enforcement Services,Waste & Neighbourhood Services,Premises-Related Expenditure,Grounds Maintenance - Other,Industry Signage,14/04/2023,4895
Neighbourhood & Enforcement Services,Waste & Neighbourhood Services,Premises-Related Expenditure,Grounds Maintenance - Other,Industry Signage,14/04/2023,7860
Neighbourhood & Enforcement Services,Waste & Neighbourhood Services,Premises-Related Expenditure,Grounds Maintenance - Other,Industry Signage,14/04/2023,4060
Neighbourhood & Enforcement Services,Waste & Neighbourhood Services,Premises-Related Expenditure,Grounds Maintenance - Other,SIGNS EXPRESS ,27/04/2023,499.25
Neighbourhood & Enforcement Services,Waste & Neighbourhood Services,Premises-Related Expenditure,Grounds Maintenance - Other,B NURSERIES,28/04/2023,142.1
Neighbourhood & Enforcement Services,Waste & Neighbourhood Services,Premises-Related Expenditure,Grounds Maintenance - Other,B NURSERIES,28/04/2023,110
Neighbourhood & Enforcement Services,Waste & Neighbourhood Services,Premises-Related Expenditure,Grounds Maintenance - Other,WMP Contracting Ltd,27/04/2023,3860
Neighbourhood & Enforcement Services,Waste & Neighbourhood Services,Premises-Related Expenditure,Grounds Maintenance - Other,Green-Tech Ltd,27/04/2023,1766.4
Neighbourhood & Enforcement Services,Waste & Neighbourhood Services,Premises-Related Expenditure,Grounds Maintenance - Other,Green-Tech Ltd,27/04/2023,1656
Neighbourhood & Enforcement Services,Waste & Neighbourhood Services,Premises-Related Expenditure,Grounds Maint - Playgrounds,KOMPAN Limited,03/04/2023,69000
Neighbourhood & Enforcement Services,Waste & Neighbourhood Services,Supplies & Services,Consultancy,RLSS UK Enterprises Ltd,06/04/2023,1500
Neighbourhood & Enforcement Services,Waste & Neighbourhood Services,Third Party Payments,Private Contractors,Veolia ES Telford and Wrekin Ltd,03/04/2023,1100896.44
Neighbourhood & Enforcement Services,Waste & Neighbourhood Services,Third Party Payments,Private Contractors,Veolia ES Telford and Wrekin Ltd,03/04/2023,1100896.44
Neighbourhood & Enforcement Services,Waste & Neighbourhood Services,Third Party Payments,Specialist Waste Contractor charge,PHS GROUP,14/04/2023,2073
Neighbourhood & Enforcement Services,Waste & Neighbourhood Services,Third Party Payments,Specialist Waste Contractor charge,PHS GROUP,04/04/2023,2834.4
Neighbourhood & Enforcement Services,Waste & Neighbourhood Services,Capital Expenditure,Payments to Contractor,S Carter,24/04/2023,11750
Neighbourhood & Enforcement Services,Waste & Neighbourhood Services,Capital Expenditure,Payments to Contractor,Dragon Play & Sports Ltd,12/04/2023,43250
Neighbourhood & Enforcement Services,Waste & Neighbourhood Services,Capital Expenditure,Payments to Contractor,S Carter,20/04/2023,9000
Neighbourhood & Enforcement Services,Waste & Neighbourhood Services,Capital Expenditure,Payments to Contractor,Midland Playscape,04/04/2023,1287.58
Neighbourhood & Enforcement Services,Waste & Neighbourhood Services,Capital Expenditure,Payments to Contractor,Midland Playscape,04/04/2023,608.45
Neighbourhood & Enforcement Services,Waste & Neighbourhood Services,Capital Expenditure,Payments to Contractor,Midland Playscape,04/04/2023,4119.69
Neighbourhood & Enforcement Services,Waste & Neighbourhood Services,Capital Expenditure,Payments to Contractor,Midland Playscape,04/04/2023,2187.19
Neighbourhood & Enforcement Services,Waste & Neighbourhood Services,Capital Expenditure,Payments to Contractor,Dragon Play & Sports Ltd,05/04/2023,40000
Neighbourhood & Enforcement Services,Waste & Neighbourhood Services,Capital Expenditure,Payments to Contractor,BounceBack Safety Surfaces Ltd,05/04/2023,23611
Policy & Governance,Governance & Legal Services,Supplies & Services,Other Expenses,BUSINESS WATCH GUARDING LIMITED,12/04/2023,105
Policy & Governance,Governance & Legal Services,Supplies & Services,Printing - Other,ROYAL MAIL GROUP PLC ,11/04/2023,16887.44
Policy & Governance,Governance & Legal Services,Supplies & Services,Stationery,IMPACT MAIL & PRINT LTD,03/04/2023,175.63
Policy & Governance,Governance & Legal Services,Supplies & Services,Printing - Other,ROYAL MAIL GROUP PLC ,21/04/2023,39183.41
Policy & Governance,Governance & Legal Services,Supplies & Services,Other Expenses,GRANVILLE CONSTRUCTION & MAINTENANCE LTD,11/04/2023,463.96
Policy & Governance,Governance & Legal Services,Supplies & Services,Printing - Other,ELECTORAL REFORM SERVICES,21/04/2023,42986.44
Policy & Governance,Governance & Legal Services,Employees,Agency Supply Costs,S Partnership,18/04/2023,2191.88
Policy & Governance,Governance & Legal Services,Employees,Agency Supply Costs,S Partnership,04/04/2023,2334
Policy & Governance,Governance & Legal Services,Employees,Agency Supply Costs,S Partnership,04/04/2023,2191.88
Policy & Governance,Governance & Legal Services,Employees,Agency Supply Costs,S Partnership,04/04/2023,2334
Policy & Governance,Governance & Legal Services,Employees,Agency Supply Costs,S Partnership,04/04/2023,1782.9
Policy & Governance,Governance & Legal Services,Employees,Agency Supply Costs,Vivid Resourcing,04/04/2023,2220
Policy & Governance,Governance & Legal Services,Employees,Agency Supply Costs,S Partnership,18/04/2023,2334
Policy & Governance,Governance & Legal Services,Employees,Agency Supply Costs,S Partnership,18/04/2023,1777.2
Policy & Governance,Governance & Legal Services,Employees,Agency Supply Costs,S Partnership,18/04/2023,1782.9
Policy & Governance,Governance & Legal Services,Employees,Agency Supply Costs,S Partnership,18/04/2023,1842.29
Policy & Governance,Governance & Legal Services,Employees,Agency Supply Costs,Vivid Resourcing,18/04/2023,2220
Policy & Governance,Governance & Legal Services,Employees,Agency Supply Costs,S Partnership,18/04/2023,1867.2
Policy & Governance,Governance & Legal Services,Employees,Agency Supply Costs,S Partnership,25/04/2023,1332.9
Policy & Governance,Governance & Legal Services,Employees,Agency Supply Costs,S Partnership,25/04/2023,1867.2
Policy & Governance,Governance & Legal Services,Employees,Agency Supply Costs,S Partnership,25/04/2023,594.3
Policy & Governance,Governance & Legal Services,Employees,Recruitment Advertising,HB Editorial Services Ltd,18/04/2023,495
Policy & Governance,Governance & Legal Services,Employees,Recruitment Advertising,THE LAW SOCIETY ,18/04/2023,995
Policy & Governance,Governance & Legal Services,Supplies & Services,Subscriptions,FAMILY LAW WEEK,18/04/2023,545
Policy & Governance,Governance & Legal Services,Supplies & Services,Miscellaneous Insurance,Advisory Insurance Brokers Ltd,14/04/2023,6330.38
Policy & Governance,Organisational Development & Delivery,Employees,Staff Training,SHROPSHIRE COUNCIL,14/04/2023,150
Policy & Governance,Organisational Development & Delivery,Employees,Staff Training,Unicorn Fire & Safety Solutions Ltd,13/04/2023,299.6
Prosperity & Investment,BiT,Premises-Related Expenditure,Service Contracts,T MECHANICAL H & P SERVICES LTD,04/04/2023,1395
Prosperity & Investment,BiT,Supplies & Services,Consultancy,A B ASSOCIATES LTD,18/04/2023,3200
Prosperity & Investment,BiT,Supplies & Services,Complaints,JCE & SONS LTD,04/04/2023,216.9
Prosperity & Investment,BiT,Supplies & Services,Consultancy,Ridge and Partners LLP,13/04/2023,3358
Prosperity & Investment,BiT,Supplies & Services,Consultancy,Ridge and Partners LLP,21/04/2023,7811
Prosperity & Investment,BiT,Premises-Related Expenditure,R&M -Buildings DLO Charge,Security Wise Ltd,14/04/2023,180
Prosperity & Investment,BiT,Premises-Related Expenditure,R&M -Buildings DLO Charge,Security Wise Ltd,14/04/2023,180
Prosperity & Investment,BiT,Premises-Related Expenditure,R&M -Buildings DLO Charge,JCE & SONS LTD,05/04/2023,247.5
Prosperity & Investment,BiT,Premises-Related Expenditure,R&M -Buildings DLO Charge,Security Wise Ltd,05/04/2023,150
Prosperity & Investment,BiT,Premises-Related Expenditure,R&M -Buildings DLO Charge,ESolutions Ltd,05/04/2023,380
Prosperity & Investment,BiT,Premises-Related Expenditure,R&M -Buildings DLO Charge,WREKIN DRAIN SERVICES LTD,05/04/2023,105
Prosperity & Investment,BiT,Premises-Related Expenditure,R&M -Buildings DLO Charge,Security Wise Ltd,05/04/2023,114
Prosperity & Investment,BiT,Premises-Related Expenditure,R&M -Buildings DLO Charge,WREKIN DRAIN SERVICES LTD,05/04/2023,105
Prosperity & Investment,BiT,Premises-Related Expenditure,R&M -Buildings DLO Charge,WREKIN DRAIN SERVICES LTD,05/04/2023,105
Prosperity & Investment,BiT,Premises-Related Expenditure,R&M -Buildings DLO Charge,WREKIN DRAIN SERVICES LTD,05/04/2023,105
Prosperity & Investment,BiT,Premises-Related Expenditure,R&M -Buildings DLO Charge,WREKIN DRAIN SERVICES LTD,28/04/2023,201.66
Prosperity & Investment,BiT,Premises-Related Expenditure,R&M -Buildings DLO Charge, MECHANICAL H & P SERVICES LTD,28/04/2023,180
Prosperity & Investment,BiT,Premises-Related Expenditure,R&M -Buildings DLO Charge,JCE & SONS LTD,28/04/2023,133.5
Prosperity & Investment,BiT,Premises-Related Expenditure,R&M -Buildings DLO Charge,E Solutions Ltd,28/04/2023,180
Prosperity & Investment,BiT,Premises-Related Expenditure,R&M -Buildings DLO Charge,T MECHANICAL H & P SERVICES LTD,28/04/2023,180
Prosperity & Investment,BiT,Premises-Related Expenditure,R&M -Buildings DLO Charge,Pumpforce Ltd,28/04/2023,253.54
Prosperity & Investment,BiT,Premises-Related Expenditure,R&M -Buildings DLO Charge,WREKIN DRAIN SERVICES LTD,28/04/2023,190
Prosperity & Investment,BiT,Premises-Related Expenditure,R&M -Buildings DLO Charge,WREKIN DRAIN SERVICES LTD,28/04/2023,330
Prosperity & Investment,BiT,Premises-Related Expenditure,R&M -Buildings DLO Charge,TMECHANICAL H & P SERVICES LTD,28/04/2023,180
Prosperity & Investment,BiT,Premises-Related Expenditure,R&M -Buildings DLO Charge,TMECHANICAL H & P SERVICES LTD,28/04/2023,120
Prosperity & Investment,BiT,Premises-Related Expenditure,R&M -Buildings DLO Charge,WREKIN DRAIN SERVICES LTD,28/04/2023,201.66
Prosperity & Investment,BiT,Premises-Related Expenditure,R&M -Buildings DLO Charge,WREKIN DRAIN SERVICES LTD,28/04/2023,201.66
Prosperity & Investment,BiT,Premises-Related Expenditure,R&M -Buildings DLO Charge,WREKIN DRAIN SERVICES LTD,28/04/2023,428
Prosperity & Investment,BiT,Premises-Related Expenditure,R&M -Buildings DLO Charge,WREKIN DRAIN SERVICES LTD,28/04/2023,105
Prosperity & Investment,BiT,Premises-Related Expenditure,R&M -Buildings DLO Charge,WREKIN DRAIN SERVICES LTD,28/04/2023,340
Prosperity & Investment,BiT,Premises-Related Expenditure,R&M -Buildings DLO Charge,WREKIN DRAIN SERVICES LTD,28/04/2023,201.66
Prosperity & Investment,BiT,Premises-Related Expenditure,R&M -Buildings DLO Charge,T MECHANICAL H & P SERVICES LTD,28/04/2023,240
Prosperity & Investment,BiT,Premises-Related Expenditure,R&M -Buildings DLO Charge,O DELTA LTD,28/04/2023,561
Prosperity & Investment,BiT,Premises-Related Expenditure,R&M -Buildings DLO Charge,JCE & SONS LTD,28/04/2023,172.24
Prosperity & Investment,BiT,Premises-Related Expenditure,R&M -Buildings DLO Charge,JCE & SONS LTD,28/04/2023,145.5
Prosperity & Investment,BiT,Premises-Related Expenditure,R&M -Buildings DLO Charge,A1 Glass & Glazing Limited,06/04/2023,150
Prosperity & Investment,BiT,Premises-Related Expenditure,R&M -Buildings DLO Charge,A1 Glass & Glazing Limited,06/04/2023,225
Prosperity & Investment,BiT,Premises-Related Expenditure,R&M -Buildings DLO Charge,TMECHANICAL H & P SERVICES LTD,06/04/2023,105
Prosperity & Investment,BiT,Premises-Related Expenditure,R&M -Buildings DLO Charge,GRANVILLE CONSTRUCTION & MAINTENANCE LTD,06/04/2023,282.25
Prosperity & Investment,BiT,Premises-Related Expenditure,R&M -Buildings DLO Charge,E Solutions Ltd,06/04/2023,380
Prosperity & Investment,BiT,Premises-Related Expenditure,R&M -Buildings DLO Charge,E Solutions Ltd,06/04/2023,380
Prosperity & Investment,BiT,Premises-Related Expenditure,R&M -Buildings DLO Charge,E Solutions Ltd,06/04/2023,380
Prosperity & Investment,BiT,Premises-Related Expenditure,R&M -Buildings DLO Charge,GRANVILLE CONSTRUCTION & MAINTENANCE LTD,06/04/2023,288.12
Prosperity & Investment,BiT,Premises-Related Expenditure,R&M -Buildings DLO Charge,WREKIN DRAIN SERVICES LTD,06/04/2023,125
Prosperity & Investment,BiT,Premises-Related Expenditure,R&M -Buildings DLO Charge,T MECHANICAL H & P SERVICES LTD,06/04/2023,984
Prosperity & Investment,BiT,Premises-Related Expenditure,R&M -Buildings DLO Charge,T MECHANICAL H & P SERVICES LTD,06/04/2023,360
Prosperity & Investment,BiT,Premises-Related Expenditure,R&M -Buildings DLO Charge,T MECHANICAL H & P SERVICES LTD,06/04/2023,384
Prosperity & Investment,BiT,Premises-Related Expenditure,R&M -Buildings DLO Charge,GRANVILLE CONSTRUCTION & MAINTENANCE LTD,06/04/2023,101.02
Prosperity & Investment,BiT,Premises-Related Expenditure,R&M -Buildings DLO Charge,GRANVILLE CONSTRUCTION & MAINTENANCE LTD,06/04/2023,108.79
Prosperity & Investment,BiT,Premises-Related Expenditure,R&M -Buildings DLO Charge,C Fire Security Ltd,06/04/2023,286.25
Prosperity & Investment,BiT,Premises-Related Expenditure,R&M -Buildings DLO Charge,ARJO UK LTD,24/04/2023,207.75
Prosperity & Investment,BiT,Premises-Related Expenditure,R&M -Buildings DLO Charge,ARJO UK LTD,24/04/2023,121
Prosperity & Investment,BiT,Premises-Related Expenditure,R&M -Buildings DLO Charge,Security Wise Ltd,14/04/2023,180
Prosperity & Investment,BiT,Premises-Related Expenditure,R&M -Buildings DLO Charge,Security Wise Ltd,14/04/2023,155
Prosperity & Investment,BiT,Premises-Related Expenditure,R&M -Buildings DLO Charge,Security Wise Ltd,14/04/2023,180
Prosperity & Investment,BiT,Premises-Related Expenditure,R&M -Buildings DLO Charge,JCE & SONS LTD,04/04/2023,458.02
Prosperity & Investment,BiT,Premises-Related Expenditure,R&M -Buildings DLO Charge,JCE & SONS LTD,04/04/2023,253.5
Prosperity & Investment,BiT,Premises-Related Expenditure,R&M -Buildings DLO Charge,JCE & SONS LTD,04/04/2023,328.32
Prosperity & Investment,BiT,Premises-Related Expenditure,R&M -Buildings DLO Charge,B INDUSTRIAL SERVICES,04/04/2023,355
Prosperity & Investment,BiT,Premises-Related Expenditure,R&M -Buildings DLO Charge,JCE & SONS LTD,04/04/2023,731
Prosperity & Investment,BiT,Premises-Related Expenditure,R&M -Buildings DLO Charge,JCE & SONS LTD,04/04/2023,139.5
Prosperity & Investment,BiT,Premises-Related Expenditure,R&M -Buildings DLO Charge,SKIPS TELFORD LTD,04/04/2023,210
